Workbook

Sheet 菜单

Sheet 商品信息
A1: 商品信息
A2: 货品编码 | B2: 货品名称 | C2: 规格型号 | D2: 单位 | E2: 进货单价 | F2: 销售单价
A3: 5566001 | B3: 货品1 | C3: 规格1 | D3: 瓶 | E3: 500 | F3: 1000
A4: 5566002 | B4: 货品2 | C4: 规格2 | D4: 瓶 | E4: 450 | F4: 900
A5: 5566003 | B5: 货品3 | C5: 规格3 | D5: 瓶 | E5: 600 | F5: 1500

Sheet 供应商信息
A1: 供应商信息
A2: 序号 | B2: 供应商 | C2: 联系电话 | D2: 地址
A3: 01 | B3: 供应商1 | C3: 89572111 | D3: 地址1
A4: 02 | B4: 供应商2 | C4: 89572112 | D4: 地址2
A5: 03 | B5: 供应商3 | C5: 89572113 | D5: 地址3

Sheet 客户信息
A1: 客户信息
A2: 序号 | B2: 客户名称 | C2: 联系电话 | D2: 地址
A3: 01 | B3: 客户1 | C3: 9553388 | D3: 广州
A4: 02 | B4: 客户2 | C4: 9553389 | D4: 深圳
A5: 03 | B5: 客户3 | C5: 9553390 | D5: 上海

Sheet 入库单
B1: 进 货 单
H2: No. | I2: =NOW() -> 2018-05-11T10:37:33.150
B3: 供货单位： | D3: 供应商1 | E3: 电话： | F3: 89572111 | H3: 日 期： | I3: 2018-05-11
B5: 序号 | C5: 商品编码 | D5: 商品名称 | E5: 规格型号 | F5: 数量 | G5: 单位 | H5: 单价（元） | I5: 金额（元） | J5: 备注
B6: 1 | C6: 5566001 | D6: 货品1 | E6: 规格1 | F6: 10 | G6: 瓶 | H6: 500 | I6: 5000 | J6: 11
B7: 2 | C7: 5566002 | D7: 货品2 | E7: 规格2 | F7: 20 | G7: 瓶 | H7: 450 | I7: 9000 | J7: 22
B8: 3 | C8: 5566003 | D8: 货品3 | E8: 规格3 | F8: 15 | G8: 瓶 | H8: 600 | I8: 9000 | J8: 33
B9: 4
B10: 5
B11: 6
B12: 7
B13: 8
H14: 合计： | I14: 23000
B15: 合计（大写） | D15: =I14 -> 23000
B16: 送货人： | D16: 张三 | I16: 收货人： | J16: 李四

Sheet 出库单
B1: 发 货 单
E2: 日 期： | F2: 2018-05-11 | H2: No. | I2: =NOW() -> 2018-05-11T10:37:33.150
B3: 客户名称： | D3: 客户2 | E3: 电 话： | F3: 9553389 | H3: 地址： | I3: 深圳
B5: 序号 | C5: 商品编码 | D5: 商品名称 | E5: 规格型号 | F5: 数量 | G5: 单位 | H5: 单价（元） | I5: 金额（元） | J5: 备注
B6: 1 | C6: 5566002 | D6: 货品2 | E6: 规格2 | G6: 瓶 | H6: 900
B7: 2
B8: 3
B9: 4
B10: 5
B11: 6
B12: 7
B13: 8
B15: 合计（大写） | D15: =I14 -> 0
B16: 收货人： | I16: 发货人：

Sheet 退货单
B1: 退 货 单
E2: 日 期： | F2: 2018-05-11 | H2: No. | I2: =NOW() -> 2018-05-11T10:37:33.150
B3: 客户名称： | D3: 客户2 | E3: 电 话： | F3: 9553389 | H3: 地址： | I3: 深圳
B5: 序号 | C5: 商品编码 | D5: 商品名称 | E5: 规格型号 | F5: 数量 | G5: 单位 | H5: 单价（元） | I5: 金额（元） | J5: 备注
B6: 1 | C6: 5566001 | D6: 货品1 | E6: 规格1 | F6: 10 | G6: 瓶 | H6: 1000 | I6: 10000 | J6: 11
B7: 2 | C7: 5566003 | D7: 货品3 | E7: 规格3 | F7: 20 | G7: 瓶 | H7: 1500 | I7: 30000 | J7: 22
B8: 3 | C8: 5566002 | D8: 货品2 | E8: 规格2 | F8: 15 | G8: 瓶 | H8: 900 | I8: 13500 | J8: 33
B9: 4
B10: 5
B11: 6
B12: 7
B13: 8
H14: 合计： | I14: 53500
B15: 合计（大写） | D15: =I14 -> 53500
B16: 收货人： | D16: 张三

Sheet 入库表
A1: 入库表
A2: 进货日期 | B2: 商品编码 | C2: 商品名称 | D2: 规格型号 | E2: 数 量 | F2: 单 位 | G2: 单价 | H2: 金 额 | I2: 供应商 | J2: 联系电话 | K2: 送货人 | L2: 发货人 | M2: 单号 | N2: 备注
A3: 2018-04-28 | B3: 5566001 | C3: 货品1 | D3: 规格1 | E3: 200 | F3: 瓶 | G3: 500 | H3: 5000 | I3: 供应商1 | J3: 89572111 | K3: 张三 | L3: 李四 | M3: 2018-05-10T11:26:37.750 | N3: 11
A4: 2018-04-28 | B4: 5566002 | C4: 货品2 | D4: 规格2 | E4: 50 | F4: 瓶 | G4: 450 | H4: 9000 | I4: 供应商1 | J4: 89572111 | K4: 张三 | L4: 李四 | M4: 2018-05-10T11:26:37.810 | N4: 22
A5: 2018-11-28 | B5: 5566003 | C5: 货品3 | D5: 规格3 | E5: 35 | F5: 瓶 | G5: 600 | H5: 9000 | I5: 供应商1 | J5: 89572111 | K5: 张三 | L5: 李四 | M5: 2018-05-10T11:26:37.860 | N5: 33
A6: 2018-04-28 | B6: 5566001 | C6: 货品1 | D6: 规格1 | E6: 10 | F6: 瓶 | G6: 500 | H6: 5000 | I6: 供应商1 | J6: 89572111 | K6: 张三 | L6: 李四 | M6: 2018-05-11T09:20:50.170 | N6: 11
A7: 2018-04-28 | B7: 5566002 | C7: 货品2 | D7: 规格2 | E7: 20 | F7: 瓶 | G7: 450 | H7: 9000 | I7: 供应商1 | J7: 89572111 | K7: 张三 | L7: 李四 | M7: 2018-05-11T09:20:50.240 | N7: 22
A8: 2018-04-28 | B8: 5566003 | C8: 货品3 | D8: 规格3 | E8: 15 | F8: 瓶 | G8: 600 | H8: 9000 | I8: 供应商1 | J8: 89572111 | K8: 张三 | L8: 李四 | M8: 2018-05-11T09:20:50.320 | N8: 33

Sheet 出库表
A1: 出库表
A2: 销售日期 | B2: 商品编码 | C2: 商品名称 | D2: 规格型号 | E2: 数 量 | F2: 单 位 | G2: 销售单价 | H2: 金 额 | I2: 客户 | J2: 联系电话 | K2: 地址 | L2: 收货人 | M2: 发货人 | N2: 单号 | O2: 备注
A3: 2017-11-01 | B3: 5566001 | C3: 货品1 | D3: 规格1 | E3: 16 | F3: 瓶 | G3: 1000 | H3: 16000 | I3: 客户1 | J3: 9553388 | K3: 广州 | L3: sss | M3: fff
A4: 2017-11-01 | B4: 5566002 | C4: 货品2 | D4: 规格2 | E4: 5 | F4: 瓶 | G4: 900 | H4: 21600 | I4: 客户1 | J4: 9553388 | K4: 广州 | L4: sss | M4: fff
A5: 2017-11-02 | B5: 5566001 | C5: 货品1 | D5: 规格1 | E5: 16 | F5: 瓶 | G5: 1000 | H5: 16000 | I5: 客户1 | J5: 9553388 | K5: 广州 | L5: sss | M5: fff
A6: 2017-11-02 | B6: 5566002 | C6: 货品2 | D6: 规格2 | E6: 5 | F6: 瓶 | G6: 900 | H6: 21600 | I6: 客户1 | J6: 9553388 | K6: 广州 | L6: sss | M6: fff
A7: 2017-11-09 | B7: 5566002 | C7: 货品2 | D7: 规格2 | E7: 10 | F7: 瓶 | G7: 450 | H7: 4500 | I7: 客户2 | J7: 9553389 | K7: 深圳 | L7: sss | M7: fff
A8: 2017-11-09 | B8: 5566003 | C8: 货品3 | D8: 规格3 | E8: 50 | F8: 瓶 | G8: 600 | H8: 12000 | I8: 客户2 | J8: 9553389 | K8: 深圳 | L8: sss | M8: fff
A9: 2018-04-28 | B9: 5566001 | C9: 货品1 | D9: 规格1 | E9: 10 | F9: 瓶 | G9: 1000 | H9: 10000 | I9: 客户2 | J9: 9553389 | K9: 深圳 | N9: 2018-05-10T10:27:18.950 | O9: 22
A10: 2018-04-28 | B10: 5566001 | C10: 货品1 | D10: 规格1 | E10: 10 | F10: 瓶 | G10: 1000 | H10: 10000 | I10: 客户2 | J10: 9553389 | K10: 深圳 | N10: 2018-05-10T10:27:24.650 | O10: 22

Sheet 退货表
A1: 退货表
A2: 退货日期 | B2: 商品编码 | C2: 商品名称 | D2: 规格型号 | E2: 数 量 | F2: 单 位 | G2: 销售单价 | H2: 金 额 | I2: 客户 | J2: 联系电话 | K2: 地址 | L2: 收货人 | M2: 单号 | N2: 备注
A3: 2018-04-03 | B3: 5566001 | C3: 货品1 | D3: 规格1 | E3: 10 | F3: 瓶 | G3: 1000 | H3: 10000 | I3: 客户2 | J3: 9553389 | K3: 深圳 | L3: 张三 | M3: 2018-05-10T10:50:56.980 | N3: 11
A4: 2018-04-03 | B4: 5566003 | C4: 货品3 | D4: 规格3 | E4: 20 | F4: 瓶 | G4: 1500 | H4: 30000 | I4: 客户2 | J4: 9553389 | K4: 深圳 | L4: 张三 | M4: 2018-05-10T10:50:56.980 | N4: 22
A5: 2018-04-03 | B5: 5566002 | C5: 货品2 | D5: 规格2 | E5: 15 | F5: 瓶 | G5: 900 | H5: 13500 | I5: 客户2 | J5: 9553389 | K5: 深圳 | L5: 张三 | M5: 2018-05-10T10:50:56.990 | N5: 33

Sheet 库存表
A1: 库存表 | N1: 库存预警设置
A2: 货品编码 | B2: 货品名称 | C2: 规格型号 | D2: 入库数量 | E2: 进货单价 | F2: 金 额 | G2: 出库数量 | H2: 销售单价 | I2: 金 额 | J2: 库存数量 | K2: 利润 | L2: 库存预警 | N2: 最大值 | O2: 最小值
A3: 5566001 | B3: =IFERROR(VLOOKUP(A3,商品信息!A:F,2,0),"-") -> 货品1 | C3: =IFERROR(VLOOKUP(A3,商品信息!A:F,3,0),"-") -> 规格1 | D3: =SUMIF(入库表!B:B,库存表!A3,入库表!E:E) -> 210 | E3: =IFERROR(VLOOKUP(A3,商品信息!A:F,5,0),"-") -> 500 | F3: =IFERROR(D3*E3,"-") -> 105000 | G3: =SUMIF(出库表!B:B,库存表!A3,出库表!E:E)-SUMIF(退货表!B:B,库存表!A3,退货表!E:E) -> 42 | H3: =IFERROR(VLOOKUP(A3,商品信息!A:F,6,0),"-") -> 1000 | I3: =IFERROR(G3*H3,"-") -> 42000 | J3: =D3-G3 -> 168 | K3: =IFERROR(G3*(H3-E3),"-") -> 21000 | L3: =IF(A3<>"",IF(J3<$O$3,"不足",IF(AND(J3>$O$3,J3<$N$3),"足",IF(J3>$N$3,"过量",""))),"") -> 过量 | N3: 100 | O3: 25
A4: 5566003 | B4: =IFERROR(VLOOKUP(A4,商品信息!A:F,2,0),"-") -> 货品3 | C4: =IFERROR(VLOOKUP(A4,商品信息!A:F,3,0),"-") -> 规格3 | D4: =SUMIF(入库表!B:B,库存表!A4,入库表!E:E) -> 50 | E4: =IFERROR(VLOOKUP(A4,商品信息!A:F,5,0),"-") -> 600 | F4: =IFERROR(D4*E4,"-") -> 30000 | G4: =SUMIF(出库表!B:B,库存表!A4,出库表!E:E)-SUMIF(退货表!B:B,库存表!A4,退货表!E:E) -> 30 | H4: =IFERROR(VLOOKUP(A4,商品信息!A:F,6,0),"-") -> 1500 | I4: =IFERROR(G4*H4,"-") -> 45000 | J4: =D4-G4 -> 20 | K4: =IFERROR(G4*(H4-E4),"-") -> 27000 | L4: =IF(A4<>"",IF(J4<$O$3,"不足",IF(AND(J4>$O$3,J4<$N$3),"足",IF(J4>$N$3,"过量",""))),"") -> 不足
A5: 5566002 | B5: =IFERROR(VLOOKUP(A5,商品信息!A:F,2,0),"-") -> 货品2 | C5: =IFERROR(VLOOKUP(A5,商品信息!A:F,3,0),"-") -> 规格2 | D5: =SUMIF(入库表!B:B,库存表!A5,入库表!E:E) -> 70 | E5: =IFERROR(VLOOKUP(A5,商品信息!A:F,5,0),"-") -> 450 | F5: 31500 | G5: =SUMIF(出库表!B:B,库存表!A5,出库表!E:E)-SUMIF(退货表!B:B,库存表!A5,退货表!E:E) -> 5 | H5: =IFERROR(VLOOKUP(A5,商品信息!A:F,6,0),"-") -> 900 | I5: 4500 | J5: 65 | K5: 2250 | L5: 足
B6: =IFERROR(VLOOKUP(A6,商品信息!A:F,2,0),"-") -> - | C6: =IFERROR(VLOOKUP(A6,商品信息!A:F,3,0),"-") -> - | D6: =SUMIF(入库表!B:B,库存表!A6,入库表!E:E) -> 0 | E6: =IFERROR(VLOOKUP(A6,商品信息!A:F,5,0),"-") -> - | F6: - | G6: =SUMIF(出库表!B:B,库存表!A6,出库表!E:E)-SUMIF(退货表!B:B,库存表!A6,退货表!E:E) -> 0 | H6: =IFERROR(VLOOKUP(A6,商品信息!A:F,6,0),"-") -> - | I6: - | J6: 0 | K6: -
B7: =IFERROR(VLOOKUP(A7,商品信息!A:F,2,0),"-") -> - | C7: =IFERROR(VLOOKUP(A7,商品信息!A:F,3,0),"-") -> - | D7: =SUMIF(入库表!B:B,库存表!A7,入库表!E:E) -> 0 | E7: =IFERROR(VLOOKUP(A7,商品信息!A:F,5,0),"-") -> - | F7: - | G7: =SUMIF(出库表!B:B,库存表!A7,出库表!E:E)-SUMIF(退货表!B:B,库存表!A7,退货表!E:E) -> 0 | H7: =IFERROR(VLOOKUP(A7,商品信息!A:F,6,0),"-") -> - | I7: - | J7: 0 | K7: -
B8: =IFERROR(VLOOKUP(A8,商品信息!A:F,2,0),"-") -> - | C8: =IFERROR(VLOOKUP(A8,商品信息!A:F,3,0),"-") -> - | D8: =SUMIF(入库表!B:B,库存表!A8,入库表!E:E) -> 0 | E8: =IFERROR(VLOOKUP(A8,商品信息!A:F,5,0),"-") -> - | F8: - | G8: =SUMIF(出库表!B:B,库存表!A8,出库表!E:E)-SUMIF(退货表!B:B,库存表!A8,退货表!E:E) -> 0 | H8: =IFERROR(VLOOKUP(A8,商品信息!A:F,6,0),"-") -> - | I8: - | J8: 0 | K8: -
B9: =IFERROR(VLOOKUP(A9,商品信息!A:F,2,0),"-") -> - | C9: =IFERROR(VLOOKUP(A9,商品信息!A:F,3,0),"-") -> - | D9: =SUMIF(入库表!B:B,库存表!A9,入库表!E:E) -> 0 | E9: =IFERROR(VLOOKUP(A9,商品信息!A:F,5,0),"-") -> - | F9: - | G9: =SUMIF(出库表!B:B,库存表!A9,出库表!E:E)-SUMIF(退货表!B:B,库存表!A9,退货表!E:E) -> 0 | H9: =IFERROR(VLOOKUP(A9,商品信息!A:F,6,0),"-") -> - | I9: - | J9: 0 | K9: -
B10: =IFERROR(VLOOKUP(A10,商品信息!A:F,2,0),"-") -> - | C10: =IFERROR(VLOOKUP(A10,商品信息!A:F,3,0),"-") -> - | D10: =SUMIF(入库表!B:B,库存表!A10,入库表!E:E) -> 0 | E10: =IFERROR(VLOOKUP(A10,商品信息!A:F,5,0),"-") -> - | F10: - | G10: =SUMIF(出库表!B:B,库存表!A10,出库表!E:E)-SUMIF(退货表!B:B,库存表!A10,退货表!E:E) -> 0 | H10: =IFERROR(VLOOKUP(A10,商品信息!A:F,6,0),"-") -> - | I10: - | J10: 0 | K10: -
B11: =IFERROR(VLOOKUP(A11,商品信息!A:F,2,0),"-") -> - | C11: =IFERROR(VLOOKUP(A11,商品信息!A:F,3,0),"-") -> - | D11: =SUMIF(入库表!B:B,库存表!A11,入库表!E:E) -> 0 | E11: =IFERROR(VLOOKUP(A11,商品信息!A:F,5,0),"-") -> - | F11: - | G11: =SUMIF(出库表!B:B,库存表!A11,出库表!E:E)-SUMIF(退货表!B:B,库存表!A11,退货表!E:E) -> 0 | H11: =IFERROR(VLOOKUP(A11,商品信息!A:F,6,0),"-") -> - | I11: - | J11: 0 | K11: -
B12: =IFERROR(VLOOKUP(A12,商品信息!A:F,2,0),"-") -> - | C12: =IFERROR(VLOOKUP(A12,商品信息!A:F,3,0),"-") -> - | D12: =SUMIF(入库表!B:B,库存表!A12,入库表!E:E) -> 0 | E12: =IFERROR(VLOOKUP(A12,商品信息!A:F,5,0),"-") -> - | F12: - | G12: =SUMIF(出库表!B:B,库存表!A12,出库表!E:E)-SUMIF(退货表!B:B,库存表!A12,退货表!E:E) -> 0 | H12: =IFERROR(VLOOKUP(A12,商品信息!A:F,6,0),"-") -> - | I12: - | J12: 0 | K12: -
B13: =IFERROR(VLOOKUP(A13,商品信息!A:F,2,0),"-") -> - | C13: =IFERROR(VLOOKUP(A13,商品信息!A:F,3,0),"-") -> - | D13: =SUMIF(入库表!B:B,库存表!A13,入库表!E:E) -> 0 | E13: =IFERROR(VLOOKUP(A13,商品信息!A:F,5,0),"-") -> - | F13: - | G13: =SUMIF(出库表!B:B,库存表!A13,出库表!E:E)-SUMIF(退货表!B:B,库存表!A13,退货表!E:E) -> 0 | H13: =IFERROR(VLOOKUP(A13,商品信息!A:F,6,0),"-") -> - | I13: - | J13: 0 | K13: -
B14: =IFERROR(VLOOKUP(A14,商品信息!A:F,2,0),"-") -> - | C14: =IFERROR(VLOOKUP(A14,商品信息!A:F,3,0),"-") -> - | D14: =SUMIF(入库表!B:B,库存表!A14,入库表!E:E) -> 0 | E14: =IFERROR(VLOOKUP(A14,商品信息!A:F,5,0),"-") -> - | F14: - | G14: =SUMIF(出库表!B:B,库存表!A14,出库表!E:E)-SUMIF(退货表!B:B,库存表!A14,退货表!E:E) -> 0 | H14: =IFERROR(VLOOKUP(A14,商品信息!A:F,6,0),"-") -> - | I14: - | J14: 0 | K14: -
B15: =IFERROR(VLOOKUP(A15,商品信息!A:F,2,0),"-") -> - | C15: =IFERROR(VLOOKUP(A15,商品信息!A:F,3,0),"-") -> - | D15: =SUMIF(入库表!B:B,库存表!A15,入库表!E:E) -> 0 | E15: =IFERROR(VLOOKUP(A15,商品信息!A:F,5,0),"-") -> - | F15: - | G15: =SUMIF(出库表!B:B,库存表!A15,出库表!E:E)-SUMIF(退货表!B:B,库存表!A15,退货表!E:E) -> 0 | H15: =IFERROR(VLOOKUP(A15,商品信息!A:F,6,0),"-") -> - | I15: - | J15: 0 | K15: -
B16: =IFERROR(VLOOKUP(A16,商品信息!A:F,2,0),"-") -> - | C16: =IFERROR(VLOOKUP(A16,商品信息!A:F,3,0),"-") -> - | D16: =SUMIF(入库表!B:B,库存表!A16,入库表!E:E) -> 0 | E16: =IFERROR(VLOOKUP(A16,商品信息!A:F,5,0),"-") -> - | F16: - | G16: =SUMIF(出库表!B:B,库存表!A16,出库表!E:E)-SUMIF(退货表!B:B,库存表!A16,退货表!E:E) -> 0 | H16: =IFERROR(VLOOKUP(A16,商品信息!A:F,6,0),"-") -> - | I16: - | J16: 0 | K16: -
B17: =IFERROR(VLOOKUP(A17,商品信息!A:F,2,0),"-") -> - | C17: =IFERROR(VLOOKUP(A17,商品信息!A:F,3,0),"-") -> - | D17: =SUMIF(入库表!B:B,库存表!A17,入库表!E:E) -> 0 | E17: =IFERROR(VLOOKUP(A17,商品信息!A:F,5,0),"-") -> - | F17: - | G17: =SUMIF(出库表!B:B,库存表!A17,出库表!E:E)-SUMIF(退货表!B:B,库存表!A17,退货表!E:E) -> 0 | H17: =IFERROR(VLOOKUP(A17,商品信息!A:F,6,0),"-") -> - | I17: - | J17: 0 | K17: -
B18: =IFERROR(VLOOKUP(A18,商品信息!A:F,2,0),"-") -> - | C18: =IFERROR(VLOOKUP(A18,商品信息!A:F,3,0),"-") -> - | D18: =SUMIF(入库表!B:B,库存表!A18,入库表!E:E) -> 0 | E18: =IFERROR(VLOOKUP(A18,商品信息!A:F,5,0),"-") -> - | F18: - | G18: =SUMIF(出库表!B:B,库存表!A18,出库表!E:E)-SUMIF(退货表!B:B,库存表!A18,退货表!E:E) -> 0 | H18: =IFERROR(VLOOKUP(A18,商品信息!A:F,6,0),"-") -> - | I18: - | J18: 0 | K18: -
B19: =IFERROR(VLOOKUP(A19,商品信息!A:F,2,0),"-") -> - | C19: =IFERROR(VLOOKUP(A19,商品信息!A:F,3,0),"-") -> - | D19: =SUMIF(入库表!B:B,库存表!A19,入库表!E:E) -> 0 | E19: =IFERROR(VLOOKUP(A19,商品信息!A:F,5,0),"-") -> - | F19: - | G19: =SUMIF(出库表!B:B,库存表!A19,出库表!E:E)-SUMIF(退货表!B:B,库存表!A19,退货表!E:E) -> 0 | H19: =IFERROR(VLOOKUP(A19,商品信息!A:F,6,0),"-") -> - | I19: - | J19: 0 | K19: -
B20: =IFERROR(VLOOKUP(A20,商品信息!A:F,2,0),"-") -> - | C20: =IFERROR(VLOOKUP(A20,商品信息!A:F,3,0),"-") -> - | D20: =SUMIF(入库表!B:B,库存表!A20,入库表!E:E) -> 0 | E20: =IFERROR(VLOOKUP(A20,商品信息!A:F,5,0),"-") -> - | F20: - | G20: =SUMIF(出库表!B:B,库存表!A20,出库表!E:E)-SUMIF(退货表!B:B,库存表!A20,退货表!E:E) -> 0 | H20: =IFERROR(VLOOKUP(A20,商品信息!A:F,6,0),"-") -> - | I20: - | J20: 0 | K20: -
B21: =IFERROR(VLOOKUP(A21,商品信息!A:F,2,0),"-") -> - | C21: =IFERROR(VLOOKUP(A21,商品信息!A:F,3,0),"-") -> - | D21: =SUMIF(入库表!B:B,库存表!A21,入库表!E:E) -> 0 | E21: =IFERROR(VLOOKUP(A21,商品信息!A:F,5,0),"-") -> - | F21: - | G21: =SUMIF(出库表!B:B,库存表!A21,出库表!E:E)-SUMIF(退货表!B:B,库存表!A21,退货表!E:E) -> 0 | H21: =IFERROR(VLOOKUP(A21,商品信息!A:F,6,0),"-") -> - | I21: - | J21: 0 | K21: -
B22: =IFERROR(VLOOKUP(A22,商品信息!A:F,2,0),"-") -> - | C22: =IFERROR(VLOOKUP(A22,商品信息!A:F,3,0),"-") -> - | D22: =SUMIF(入库表!B:B,库存表!A22,入库表!E:E) -> 0 | E22: =IFERROR(VLOOKUP(A22,商品信息!A:F,5,0),"-") -> - | F22: - | G22: =SUMIF(出库表!B:B,库存表!A22,出库表!E:E)-SUMIF(退货表!B:B,库存表!A22,退货表!E:E) -> 0 | H22: =IFERROR(VLOOKUP(A22,商品信息!A:F,6,0),"-") -> - | I22: - | J22: 0 | K22: -
B23: =IFERROR(VLOOKUP(A23,商品信息!A:F,2,0),"-") -> - | C23: =IFERROR(VLOOKUP(A23,商品信息!A:F,3,0),"-") -> - | D23: =SUMIF(入库表!B:B,库存表!A23,入库表!E:E) -> 0 | E23: =IFERROR(VLOOKUP(A23,商品信息!A:F,5,0),"-") -> - | F23: - | G23: =SUMIF(出库表!B:B,库存表!A23,出库表!E:E)-SUMIF(退货表!B:B,库存表!A23,退货表!E:E) -> 0 | H23: =IFERROR(VLOOKUP(A23,商品信息!A:F,6,0),"-") -> - | I23: - | J23: 0 | K23: -
B24: =IFERROR(VLOOKUP(A24,商品信息!A:F,2,0),"-") -> - | C24: =IFERROR(VLOOKUP(A24,商品信息!A:F,3,0),"-") -> - | D24: =SUMIF(入库表!B:B,库存表!A24,入库表!E:E) -> 0 | E24: =IFERROR(VLOOKUP(A24,商品信息!A:F,5,0),"-") -> - | F24: - | G24: =SUMIF(出库表!B:B,库存表!A24,出库表!E:E)-SUMIF(退货表!B:B,库存表!A24,退货表!E:E) -> 0 | H24: =IFERROR(VLOOKUP(A24,商品信息!A:F,6,0),"-") -> - | I24: - | J24: 0 | K24: -
B25: =IFERROR(VLOOKUP(A25,商品信息!A:F,2,0),"-") -> - | C25: =IFERROR(VLOOKUP(A25,商品信息!A:F,3,0),"-") -> - | D25: =SUMIF(入库表!B:B,库存表!A25,入库表!E:E) -> 0 | E25: =IFERROR(VLOOKUP(A25,商品信息!A:F,5,0),"-") -> - | F25: - | G25: =SUMIF(出库表!B:B,库存表!A25,出库表!E:E)-SUMIF(退货表!B:B,库存表!A25,退货表!E:E) -> 0 | H25: =IFERROR(VLOOKUP(A25,商品信息!A:F,6,0),"-") -> - | I25: - | J25: 0 | K25: -
B26: =IFERROR(VLOOKUP(A26,商品信息!A:F,2,0),"-") -> - | C26: =IFERROR(VLOOKUP(A26,商品信息!A:F,3,0),"-") -> - | D26: =SUMIF(入库表!B:B,库存表!A26,入库表!E:E) -> 0 | E26: =IFERROR(VLOOKUP(A26,商品信息!A:F,5,0),"-") -> - | F26: - | G26: =SUMIF(出库表!B:B,库存表!A26,出库表!E:E)-SUMIF(退货表!B:B,库存表!A26,退货表!E:E) -> 0 | H26: =IFERROR(VLOOKUP(A26,商品信息!A:F,6,0),"-") -> - | I26: - | J26: 0 | K26: -
B27: =IFERROR(VLOOKUP(A27,商品信息!A:F,2,0),"-") -> - | C27: =IFERROR(VLOOKUP(A27,商品信息!A:F,3,0),"-") -> - | D27: =SUMIF(入库表!B:B,库存表!A27,入库表!E:E) -> 0 | E27: =IFERROR(VLOOKUP(A27,商品信息!A:F,5,0),"-") -> - | F27: - | G27: =SUMIF(出库表!B:B,库存表!A27,出库表!E:E)-SUMIF(退货表!B:B,库存表!A27,退货表!E:E) -> 0 | H27: =IFERROR(VLOOKUP(A27,商品信息!A:F,6,0),"-") -> - | I27: - | J27: 0 | K27: -
B28: =IFERROR(VLOOKUP(A28,商品信息!A:F,2,0),"-") -> - | C28: =IFERROR(VLOOKUP(A28,商品信息!A:F,3,0),"-") -> - | D28: =SUMIF(入库表!B:B,库存表!A28,入库表!E:E) -> 0 | E28: =IFERROR(VLOOKUP(A28,商品信息!A:F,5,0),"-") -> - | F28: - | G28: =SUMIF(出库表!B:B,库存表!A28,出库表!E:E)-SUMIF(退货表!B:B,库存表!A28,退货表!E:E) -> 0 | H28: =IFERROR(VLOOKUP(A28,商品信息!A:F,6,0),"-") -> - | I28: - | J28: 0 | K28: -
B29: =IFERROR(VLOOKUP(A29,商品信息!A:F,2,0),"-") -> - | C29: =IFERROR(VLOOKUP(A29,商品信息!A:F,3,0),"-") -> - | D29: =SUMIF(入库表!B:B,库存表!A29,入库表!E:E) -> 0 | E29: =IFERROR(VLOOKUP(A29,商品信息!A:F,5,0),"-") -> - | F29: - | G29: =SUMIF(出库表!B:B,库存表!A29,出库表!E:E)-SUMIF(退货表!B:B,库存表!A29,退货表!E:E) -> 0 | H29: =IFERROR(VLOOKUP(A29,商品信息!A:F,6,0),"-") -> - | I29: - | J29: 0 | K29: -
B30: =IFERROR(VLOOKUP(A30,商品信息!A:F,2,0),"-") -> - | C30: =IFERROR(VLOOKUP(A30,商品信息!A:F,3,0),"-") -> - | D30: =SUMIF(入库表!B:B,库存表!A30,入库表!E:E) -> 0 | E30: =IFERROR(VLOOKUP(A30,商品信息!A:F,5,0),"-") -> - | F30: - | G30: =SUMIF(出库表!B:B,库存表!A30,出库表!E:E)-SUMIF(退货表!B:B,库存表!A30,退货表!E:E) -> 0 | H30: =IFERROR(VLOOKUP(A30,商品信息!A:F,6,0),"-") -> - | I30: - | J30: 0 | K30: -
B31: =IFERROR(VLOOKUP(A31,商品信息!A:F,2,0),"-") -> - | C31: =IFERROR(VLOOKUP(A31,商品信息!A:F,3,0),"-") -> - | D31: =SUMIF(入库表!B:B,库存表!A31,入库表!E:E) -> 0 | E31: =IFERROR(VLOOKUP(A31,商品信息!A:F,5,0),"-") -> - | F31: - | G31: =SUMIF(出库表!B:B,库存表!A31,出库表!E:E)-SUMIF(退货表!B:B,库存表!A31,退货表!E:E) -> 0 | H31: =IFERROR(VLOOKUP(A31,商品信息!A:F,6,0),"-") -> - | I31: - | J31: 0 | K31: -
B32: =IFERROR(VLOOKUP(A32,商品信息!A:F,2,0),"-") -> - | C32: =IFERROR(VLOOKUP(A32,商品信息!A:F,3,0),"-") -> - | D32: =SUMIF(入库表!B:B,库存表!A32,入库表!E:E) -> 0 | E32: =IFERROR(VLOOKUP(A32,商品信息!A:F,5,0),"-") -> - | F32: - | G32: =SUMIF(出库表!B:B,库存表!A32,出库表!E:E)-SUMIF(退货表!B:B,库存表!A32,退货表!E:E) -> 0 | H32: =IFERROR(VLOOKUP(A32,商品信息!A:F,6,0),"-") -> - | I32: - | J32: 0 | K32: -
B33: =IFERROR(VLOOKUP(A33,商品信息!A:F,2,0),"-") -> - | C33: =IFERROR(VLOOKUP(A33,商品信息!A:F,3,0),"-") -> - | D33: =SUMIF(入库表!B:B,库存表!A33,入库表!E:E) -> 0 | E33: =IFERROR(VLOOKUP(A33,商品信息!A:F,5,0),"-") -> - | F33: - | G33: =SUMIF(出库表!B:B,库存表!A33,出库表!E:E)-SUMIF(退货表!B:B,库存表!A33,退货表!E:E) -> 0 | H33: =IFERROR(VLOOKUP(A33,商品信息!A:F,6,0),"-") -> - | I33: - | J33: 0 | K33: -
B34: =IFERROR(VLOOKUP(A34,商品信息!A:F,2,0),"-") -> - | C34: =IFERROR(VLOOKUP(A34,商品信息!A:F,3,0),"-") -> - | D34: =SUMIF(入库表!B:B,库存表!A34,入库表!E:E) -> 0 | E34: =IFERROR(VLOOKUP(A34,商品信息!A:F,5,0),"-") -> - | F34: - | G34: =SUMIF(出库表!B:B,库存表!A34,出库表!E:E)-SUMIF(退货表!B:B,库存表!A34,退货表!E:E) -> 0 | H34: =IFERROR(VLOOKUP(A34,商品信息!A:F,6,0),"-") -> - | I34: - | J34: 0 | K34: -
B35: =IFERROR(VLOOKUP(A35,商品信息!A:F,2,0),"-") -> - | C35: =IFERROR(VLOOKUP(A35,商品信息!A:F,3,0),"-") -> - | D35: =SUMIF(入库表!B:B,库存表!A35,入库表!E:E) -> 0 | E35: =IFERROR(VLOOKUP(A35,商品信息!A:F,5,0),"-") -> - | F35: - | G35: =SUMIF(出库表!B:B,库存表!A35,出库表!E:E)-SUMIF(退货表!B:B,库存表!A35,退货表!E:E) -> 0 | H35: =IFERROR(VLOOKUP(A35,商品信息!A:F,6,0),"-") -> - | I35: - | J35: 0 | K35: -
B36: =IFERROR(VLOOKUP(A36,商品信息!A:F,2,0),"-") -> - | C36: =IFERROR(VLOOKUP(A36,商品信息!A:F,3,0),"-") -> - | D36: =SUMIF(入库表!B:B,库存表!A36,入库表!E:E) -> 0 | E36: =IFERROR(VLOOKUP(A36,商品信息!A:F,5,0),"-") -> - | F36: - | G36: =SUMIF(出库表!B:B,库存表!A36,出库表!E:E)-SUMIF(退货表!B:B,库存表!A36,退货表!E:E) -> 0 | H36: =IFERROR(VLOOKUP(A36,商品信息!A:F,6,0),"-") -> - | I36: - | J36: 0 | K36: -
B37: =IFERROR(VLOOKUP(A37,商品信息!A:F,2,0),"-") -> - | C37: =IFERROR(VLOOKUP(A37,商品信息!A:F,3,0),"-") -> - | D37: =SUMIF(入库表!B:B,库存表!A37,入库表!E:E) -> 0 | E37: =IFERROR(VLOOKUP(A37,商品信息!A:F,5,0),"-") -> - | F37: - | G37: =SUMIF(出库表!B:B,库存表!A37,出库表!E:E)-SUMIF(退货表!B:B,库存表!A37,退货表!E:E) -> 0 | H37: =IFERROR(VLOOKUP(A37,商品信息!A:F,6,0),"-") -> - | I37: - | J37: 0 | K37: -
B38: =IFERROR(VLOOKUP(A38,商品信息!A:F,2,0),"-") -> - | C38: =IFERROR(VLOOKUP(A38,商品信息!A:F,3,0),"-") -> - | D38: =SUMIF(入库表!B:B,库存表!A38,入库表!E:E) -> 0 | E38: =IFERROR(VLOOKUP(A38,商品信息!A:F,5,0),"-") -> - | F38: - | G38: =SUMIF(出库表!B:B,库存表!A38,出库表!E:E)-SUMIF(退货表!B:B,库存表!A38,退货表!E:E) -> 0 | H38: =IFERROR(VLOOKUP(A38,商品信息!A:F,6,0),"-") -> - | I38: - | J38: 0 | K38: -
B39: =IFERROR(VLOOKUP(A39,商品信息!A:F,2,0),"-") -> - | C39: =IFERROR(VLOOKUP(A39,商品信息!A:F,3,0),"-") -> - | D39: =SUMIF(入库表!B:B,库存表!A39,入库表!E:E) -> 0 | E39: =IFERROR(VLOOKUP(A39,商品信息!A:F,5,0),"-") -> - | F39: - | G39: =SUMIF(出库表!B:B,库存表!A39,出库表!E:E)-SUMIF(退货表!B:B,库存表!A39,退货表!E:E) -> 0 | H39: =IFERROR(VLOOKUP(A39,商品信息!A:F,6,0),"-") -> - | I39: - | J39: 0 | K39: -
B40: =IFERROR(VLOOKUP(A40,商品信息!A:F,2,0),"-") -> - | C40: =IFERROR(VLOOKUP(A40,商品信息!A:F,3,0),"-") -> - | D40: =SUMIF(入库表!B:B,库存表!A40,入库表!E:E) -> 0 | E40: =IFERROR(VLOOKUP(A40,商品信息!A:F,5,0),"-") -> - | F40: - | G40: =SUMIF(出库表!B:B,库存表!A40,出库表!E:E)-SUMIF(退货表!B:B,库存表!A40,退货表!E:E) -> 0 | H40: =IFERROR(VLOOKUP(A40,商品信息!A:F,6,0),"-") -> - | I40: - | J40: 0 | K40: -
B41: =IFERROR(VLOOKUP(A41,商品信息!A:F,2,0),"-") -> - | C41: =IFERROR(VLOOKUP(A41,商品信息!A:F,3,0),"-") -> - | D41: =SUMIF(入库表!B:B,库存表!A41,入库表!E:E) -> 0 | E41: =IFERROR(VLOOKUP(A41,商品信息!A:F,5,0),"-") -> - | F41: - | G41: =SUMIF(出库表!B:B,库存表!A41,出库表!E:E)-SUMIF(退货表!B:B,库存表!A41,退货表!E:E) -> 0 | H41: =IFERROR(VLOOKUP(A41,商品信息!A:F,6,0),"-") -> - | I41: - | J41: 0 | K41: -
B42: =IFERROR(VLOOKUP(A42,商品信息!A:F,2,0),"-") -> - | C42: =IFERROR(VLOOKUP(A42,商品信息!A:F,3,0),"-") -> - | D42: =SUMIF(入库表!B:B,库存表!A42,入库表!E:E) -> 0 | E42: =IFERROR(VLOOKUP(A42,商品信息!A:F,5,0),"-") -> - | F42: - | G42: =SUMIF(出库表!B:B,库存表!A42,出库表!E:E)-SUMIF(退货表!B:B,库存表!A42,退货表!E:E) -> 0 | H42: =IFERROR(VLOOKUP(A42,商品信息!A:F,6,0),"-") -> - | I42: - | J42: 0 | K42: -
B43: =IFERROR(VLOOKUP(A43,商品信息!A:F,2,0),"-") -> - | C43: =IFERROR(VLOOKUP(A43,商品信息!A:F,3,0),"-") -> - | D43: =SUMIF(入库表!B:B,库存表!A43,入库表!E:E) -> 0 | E43: =IFERROR(VLOOKUP(A43,商品信息!A:F,5,0),"-") -> - | F43: - | G43: =SUMIF(出库表!B:B,库存表!A43,出库表!E:E)-SUMIF(退货表!B:B,库存表!A43,退货表!E:E) -> 0 | H43: =IFERROR(VLOOKUP(A43,商品信息!A:F,6,0),"-") -> - | I43: - | J43: 0 | K43: -
B44: =IFERROR(VLOOKUP(A44,商品信息!A:F,2,0),"-") -> - | C44: =IFERROR(VLOOKUP(A44,商品信息!A:F,3,0),"-") -> - | D44: =SUMIF(入库表!B:B,库存表!A44,入库表!E:E) -> 0 | E44: =IFERROR(VLOOKUP(A44,商品信息!A:F,5,0),"-") -> - | F44: - | G44: =SUMIF(出库表!B:B,库存表!A44,出库表!E:E)-SUMIF(退货表!B:B,库存表!A44,退货表!E:E) -> 0 | H44: =IFERROR(VLOOKUP(A44,商品信息!A:F,6,0),"-") -> - | I44: - | J44: 0 | K44: -
B45: =IFERROR(VLOOKUP(A45,商品信息!A:F,2,0),"-") -> - | C45: =IFERROR(VLOOKUP(A45,商品信息!A:F,3,0),"-") -> - | D45: =SUMIF(入库表!B:B,库存表!A45,入库表!E:E) -> 0 | E45: =IFERROR(VLOOKUP(A45,商品信息!A:F,5,0),"-") -> - | F45: - | G45: =SUMIF(出库表!B:B,库存表!A45,出库表!E:E)-SUMIF(退货表!B:B,库存表!A45,退货表!E:E) -> 0 | H45: =IFERROR(VLOOKUP(A45,商品信息!A:F,6,0),"-") -> - | I45: - | J45: 0 | K45: -
B46: =IFERROR(VLOOKUP(A46,商品信息!A:F,2,0),"-") -> - | C46: =IFERROR(VLOOKUP(A46,商品信息!A:F,3,0),"-") -> - | D46: =SUMIF(入库表!B:B,库存表!A46,入库表!E:E) -> 0 | E46: =IFERROR(VLOOKUP(A46,商品信息!A:F,5,0),"-") -> - | F46: - | G46: =SUMIF(出库表!B:B,库存表!A46,出库表!E:E)-SUMIF(退货表!B:B,库存表!A46,退货表!E:E) -> 0 | H46: =IFERROR(VLOOKUP(A46,商品信息!A:F,6,0),"-") -> - | I46: - | J46: 0 | K46: -
B47: =IFERROR(VLOOKUP(A47,商品信息!A:F,2,0),"-") -> - | C47: =IFERROR(VLOOKUP(A47,商品信息!A:F,3,0),"-") -> - | D47: =SUMIF(入库表!B:B,库存表!A47,入库表!E:E) -> 0 | E47: =IFERROR(VLOOKUP(A47,商品信息!A:F,5,0),"-") -> - | F47: - | G47: =SUMIF(出库表!B:B,库存表!A47,出库表!E:E)-SUMIF(退货表!B:B,库存表!A47,退货表!E:E) -> 0 | H47: =IFERROR(VLOOKUP(A47,商品信息!A:F,6,0),"-") -> - | I47: - | J47: 0 | K47: -
B48: =IFERROR(VLOOKUP(A48,商品信息!A:F,2,0),"-") -> - | C48: =IFERROR(VLOOKUP(A48,商品信息!A:F,3,0),"-") -> - | D48: =SUMIF(入库表!B:B,库存表!A48,入库表!E:E) -> 0 | E48: =IFERROR(VLOOKUP(A48,商品信息!A:F,5,0),"-") -> - | F48: - | G48: =SUMIF(出库表!B:B,库存表!A48,出库表!E:E)-SUMIF(退货表!B:B,库存表!A48,退货表!E:E) -> 0 | H48: =IFERROR(VLOOKUP(A48,商品信息!A:F,6,0),"-") -> - | I48: - | J48: 0 | K48: -
B49: =IFERROR(VLOOKUP(A49,商品信息!A:F,2,0),"-") -> - | C49: =IFERROR(VLOOKUP(A49,商品信息!A:F,3,0),"-") -> - | D49: =SUMIF(入库表!B:B,库存表!A49,入库表!E:E) -> 0 | E49: =IFERROR(VLOOKUP(A49,商品信息!A:F,5,0),"-") -> - | F49: - | G49: =SUMIF(出库表!B:B,库存表!A49,出库表!E:E)-SUMIF(退货表!B:B,库存表!A49,退货表!E:E) -> 0 | H49: =IFERROR(VLOOKUP(A49,商品信息!A:F,6,0),"-") -> - | I49: - | J49: 0 | K49: -
B50: =IFERROR(VLOOKUP(A50,商品信息!A:F,2,0),"-") -> - | C50: =IFERROR(VLOOKUP(A50,商品信息!A:F,3,0),"-") -> - | D50: =SUMIF(入库表!B:B,库存表!A50,入库表!E:E) -> 0 | E50: =IFERROR(VLOOKUP(A50,商品信息!A:F,5,0),"-") -> - | F50: - | G50: =SUMIF(出库表!B:B,库存表!A50,出库表!E:E)-SUMIF(退货表!B:B,库存表!A50,退货表!E:E) -> 0 | H50: =IFERROR(VLOOKUP(A50,商品信息!A:F,6,0),"-") -> - | I50: - | J50: 0 | K50: -
B51: =IFERROR(VLOOKUP(A51,商品信息!A:F,2,0),"-") -> - | C51: =IFERROR(VLOOKUP(A51,商品信息!A:F,3,0),"-") -> - | D51: =SUMIF(入库表!B:B,库存表!A51,入库表!E:E) -> 0 | E51: =IFERROR(VLOOKUP(A51,商品信息!A:F,5,0),"-") -> - | F51: - | G51: =SUMIF(出库表!B:B,库存表!A51,出库表!E:E)-SUMIF(退货表!B:B,库存表!A51,退货表!E:E) -> 0 | H51: =IFERROR(VLOOKUP(A51,商品信息!A:F,6,0),"-") -> - | I51: - | J51: 0 | K51: -
B52: =IFERROR(VLOOKUP(A52,商品信息!A:F,2,0),"-") -> - | C52: =IFERROR(VLOOKUP(A52,商品信息!A:F,3,0),"-") -> - | D52: =SUMIF(入库表!B:B,库存表!A52,入库表!E:E) -> 0 | E52: =IFERROR(VLOOKUP(A52,商品信息!A:F,5,0),"-") -> - | F52: - | G52: =SUMIF(出库表!B:B,库存表!A52,出库表!E:E)-SUMIF(退货表!B:B,库存表!A52,退货表!E:E) -> 0 | H52: =IFERROR(VLOOKUP(A52,商品信息!A:F,6,0),"-") -> - | I52: - | J52: 0 | K52: -
B53: =IFERROR(VLOOKUP(A53,商品信息!A:F,2,0),"-") -> - | C53: =IFERROR(VLOOKUP(A53,商品信息!A:F,3,0),"-") -> - | D53: =SUMIF(入库表!B:B,库存表!A53,入库表!E:E) -> 0 | E53: =IFERROR(VLOOKUP(A53,商品信息!A:F,5,0),"-") -> - | F53: - | G53: =SUMIF(出库表!B:B,库存表!A53,出库表!E:E)-SUMIF(退货表!B:B,库存表!A53,退货表!E:E) -> 0 | H53: =IFERROR(VLOOKUP(A53,商品信息!A:F,6,0),"-") -> - | I53: - | J53: 0 | K53: -
B54: =IFERROR(VLOOKUP(A54,商品信息!A:F,2,0),"-") -> - | C54: =IFERROR(VLOOKUP(A54,商品信息!A:F,3,0),"-") -> - | D54: =SUMIF(入库表!B:B,库存表!A54,入库表!E:E) -> 0 | E54: =IFERROR(VLOOKUP(A54,商品信息!A:F,5,0),"-") -> - | F54: - | G54: =SUMIF(出库表!B:B,库存表!A54,出库表!E:E)-SUMIF(退货表!B:B,库存表!A54,退货表!E:E) -> 0 | H54: =IFERROR(VLOOKUP(A54,商品信息!A:F,6,0),"-") -> - | I54: - | J54: 0 | K54: -
B55: =IFERROR(VLOOKUP(A55,商品信息!A:F,2,0),"-") -> - | C55: =IFERROR(VLOOKUP(A55,商品信息!A:F,3,0),"-") -> - | D55: =SUMIF(入库表!B:B,库存表!A55,入库表!E:E) -> 0 | E55: =IFERROR(VLOOKUP(A55,商品信息!A:F,5,0),"-") -> - | F55: - | G55: =SUMIF(出库表!B:B,库存表!A55,出库表!E:E)-SUMIF(退货表!B:B,库存表!A55,退货表!E:E) -> 0 | H55: =IFERROR(VLOOKUP(A55,商品信息!A:F,6,0),"-") -> - | I55: - | J55: 0 | K55: -
B56: =IFERROR(VLOOKUP(A56,商品信息!A:F,2,0),"-") -> - | C56: =IFERROR(VLOOKUP(A56,商品信息!A:F,3,0),"-") -> - | D56: =SUMIF(入库表!B:B,库存表!A56,入库表!E:E) -> 0 | E56: =IFERROR(VLOOKUP(A56,商品信息!A:F,5,0),"-") -> - | F56: - | G56: =SUMIF(出库表!B:B,库存表!A56,出库表!E:E)-SUMIF(退货表!B:B,库存表!A56,退货表!E:E) -> 0 | H56: =IFERROR(VLOOKUP(A56,商品信息!A:F,6,0),"-") -> - | I56: - | J56: 0 | K56: -
B57: =IFERROR(VLOOKUP(A57,商品信息!A:F,2,0),"-") -> - | C57: =IFERROR(VLOOKUP(A57,商品信息!A:F,3,0),"-") -> - | D57: =SUMIF(入库表!B:B,库存表!A57,入库表!E:E) -> 0 | E57: =IFERROR(VLOOKUP(A57,商品信息!A:F,5,0),"-") -> - | F57: - | G57: =SUMIF(出库表!B:B,库存表!A57,出库表!E:E)-SUMIF(退货表!B:B,库存表!A57,退货表!E:E) -> 0 | H57: =IFERROR(VLOOKUP(A57,商品信息!A:F,6,0),"-") -> - | I57: - | J57: 0 | K57: -
B58: =IFERROR(VLOOKUP(A58,商品信息!A:F,2,0),"-") -> - | C58: =IFERROR(VLOOKUP(A58,商品信息!A:F,3,0),"-") -> - | D58: =SUMIF(入库表!B:B,库存表!A58,入库表!E:E) -> 0 | E58: =IFERROR(VLOOKUP(A58,商品信息!A:F,5,0),"-") -> - | F58: - | G58: =SUMIF(出库表!B:B,库存表!A58,出库表!E:E)-SUMIF(退货表!B:B,库存表!A58,退货表!E:E) -> 0 | H58: =IFERROR(VLOOKUP(A58,商品信息!A:F,6,0),"-") -> - | I58: - | J58: 0 | K58: -
B59: =IFERROR(VLOOKUP(A59,商品信息!A:F,2,0),"-") -> - | C59: =IFERROR(VLOOKUP(A59,商品信息!A:F,3,0),"-") -> - | D59: =SUMIF(入库表!B:B,库存表!A59,入库表!E:E) -> 0 | E59: =IFERROR(VLOOKUP(A59,商品信息!A:F,5,0),"-") -> - | F59: - | G59: =SUMIF(出库表!B:B,库存表!A59,出库表!E:E)-SUMIF(退货表!B:B,库存表!A59,退货表!E:E) -> 0 | H59: =IFERROR(VLOOKUP(A59,商品信息!A:F,6,0),"-") -> - | I59: - | J59: 0 | K59: -
B60: =IFERROR(VLOOKUP(A60,商品信息!A:F,2,0),"-") -> - | C60: =IFERROR(VLOOKUP(A60,商品信息!A:F,3,0),"-") -> - | D60: =SUMIF(入库表!B:B,库存表!A60,入库表!E:E) -> 0 | E60: =IFERROR(VLOOKUP(A60,商品信息!A:F,5,0),"-") -> - | F60: - | G60: =SUMIF(出库表!B:B,库存表!A60,出库表!E:E)-SUMIF(退货表!B:B,库存表!A60,退货表!E:E) -> 0 | H60: =IFERROR(VLOOKUP(A60,商品信息!A:F,6,0),"-") -> - | I60: - | J60: 0 | K60: -
B61: =IFERROR(VLOOKUP(A61,商品信息!A:F,2,0),"-") -> - | C61: =IFERROR(VLOOKUP(A61,商品信息!A:F,3,0),"-") -> - | D61: =SUMIF(入库表!B:B,库存表!A61,入库表!E:E) -> 0 | E61: =IFERROR(VLOOKUP(A61,商品信息!A:F,5,0),"-") -> - | F61: - | G61: =SUMIF(出库表!B:B,库存表!A61,出库表!E:E)-SUMIF(退货表!B:B,库存表!A61,退货表!E:E) -> 0 | H61: =IFERROR(VLOOKUP(A61,商品信息!A:F,6,0),"-") -> - | I61: - | J61: 0 | K61: -
B62: =IFERROR(VLOOKUP(A62,商品信息!A:F,2,0),"-") -> - | C62: =IFERROR(VLOOKUP(A62,商品信息!A:F,3,0),"-") -> - | D62: =SUMIF(入库表!B:B,库存表!A62,入库表!E:E) -> 0 | E62: =IFERROR(VLOOKUP(A62,商品信息!A:F,5,0),"-") -> - | F62: - | G62: =SUMIF(出库表!B:B,库存表!A62,出库表!E:E)-SUMIF(退货表!B:B,库存表!A62,退货表!E:E) -> 0 | H62: =IFERROR(VLOOKUP(A62,商品信息!A:F,6,0),"-") -> - | I62: - | J62: 0 | K62: -
B63: =IFERROR(VLOOKUP(A63,商品信息!A:F,2,0),"-") -> - | C63: =IFERROR(VLOOKUP(A63,商品信息!A:F,3,0),"-") -> - | D63: =SUMIF(入库表!B:B,库存表!A63,入库表!E:E) -> 0 | E63: =IFERROR(VLOOKUP(A63,商品信息!A:F,5,0),"-") -> - | F63: - | G63: =SUMIF(出库表!B:B,库存表!A63,出库表!E:E)-SUMIF(退货表!B:B,库存表!A63,退货表!E:E) -> 0 | H63: =IFERROR(VLOOKUP(A63,商品信息!A:F,6,0),"-") -> - | I63: - | J63: 0 | K63: -
B64: =IFERROR(VLOOKUP(A64,商品信息!A:F,2,0),"-") -> - | C64: =IFERROR(VLOOKUP(A64,商品信息!A:F,3,0),"-") -> - | D64: =SUMIF(入库表!B:B,库存表!A64,入库表!E:E) -> 0 | E64: =IFERROR(VLOOKUP(A64,商品信息!A:F,5,0),"-") -> - | F64: - | G64: =SUMIF(出库表!B:B,库存表!A64,出库表!E:E)-SUMIF(退货表!B:B,库存表!A64,退货表!E:E) -> 0 | H64: =IFERROR(VLOOKUP(A64,商品信息!A:F,6,0),"-") -> - | I64: - | J64: 0 | K64: -
B65: =IFERROR(VLOOKUP(A65,商品信息!A:F,2,0),"-") -> - | C65: =IFERROR(VLOOKUP(A65,商品信息!A:F,3,0),"-") -> - | D65: =SUMIF(入库表!B:B,库存表!A65,入库表!E:E) -> 0 | E65: =IFERROR(VLOOKUP(A65,商品信息!A:F,5,0),"-") -> - | F65: - | G65: =SUMIF(出库表!B:B,库存表!A65,出库表!E:E)-SUMIF(退货表!B:B,库存表!A65,退货表!E:E) -> 0 | H65: =IFERROR(VLOOKUP(A65,商品信息!A:F,6,0),"-") -> - | I65: - | J65: 0 | K65: -
B66: =IFERROR(VLOOKUP(A66,商品信息!A:F,2,0),"-") -> - | C66: =IFERROR(VLOOKUP(A66,商品信息!A:F,3,0),"-") -> - | D66: =SUMIF(入库表!B:B,库存表!A66,入库表!E:E) -> 0 | E66: =IFERROR(VLOOKUP(A66,商品信息!A:F,5,0),"-") -> - | F66: - | G66: =SUMIF(出库表!B:B,库存表!A66,出库表!E:E)-SUMIF(退货表!B:B,库存表!A66,退货表!E:E) -> 0 | H66: =IFERROR(VLOOKUP(A66,商品信息!A:F,6,0),"-") -> - | I66: - | J66: 0 | K66: -
B67: =IFERROR(VLOOKUP(A67,商品信息!A:F,2,0),"-") -> - | C67: =IFERROR(VLOOKUP(A67,商品信息!A:F,3,0),"-") -> - | D67: =SUMIF(入库表!B:B,库存表!A67,入库表!E:E) -> 0 | E67: =IFERROR(VLOOKUP(A67,商品信息!A:F,5,0),"-") -> - | F67: - | G67: =SUMIF(出库表!B:B,库存表!A67,出库表!E:E)-SUMIF(退货表!B:B,库存表!A67,退货表!E:E) -> 0 | H67: =IFERROR(VLOOKUP(A67,商品信息!A:F,6,0),"-") -> - | I67: - | J67: 0 | K67: -
B68: =IFERROR(VLOOKUP(A68,商品信息!A:F,2,0),"-") -> - | C68: =IFERROR(VLOOKUP(A68,商品信息!A:F,3,0),"-") -> - | D68: =SUMIF(入库表!B:B,库存表!A68,入库表!E:E) -> 0 | E68: =IFERROR(VLOOKUP(A68,商品信息!A:F,5,0),"-") -> - | F68: =IFERROR(D68*E68,"-") -> - | G68: =SUMIF(出库表!B:B,库存表!A68,出库表!E:E)-SUMIF(退货表!B:B,库存表!A68,退货表!E:E) -> 0 | H68: =IFERROR(VLOOKUP(A68,商品信息!A:F,6,0),"-") -> - | I68: =IFERROR(G68*H68,"-") -> - | J68: =D68-G68 -> 0 | K68: =IFERROR(G68*(H68-E68),"-") -> - | L68: =IF(A68<>"",IF(J68<$O$3,"不足",IF(AND(J68>$O$3,J68<$N$3),"足",IF(J68>$N$3,"过量",""))),"") -> 
B69: =IFERROR(VLOOKUP(A69,商品信息!A:F,2,0),"-") -> - | C69: =IFERROR(VLOOKUP(A69,商品信息!A:F,3,0),"-") -> - | D69: =SUMIF(入库表!B:B,库存表!A69,入库表!E:E) -> 0 | E69: =IFERROR(VLOOKUP(A69,商品信息!A:F,5,0),"-") -> - | F69: - | G69: =SUMIF(出库表!B:B,库存表!A69,出库表!E:E)-SUMIF(退货表!B:B,库存表!A69,退货表!E:E) -> 0 | H69: =IFERROR(VLOOKUP(A69,商品信息!A:F,6,0),"-") -> - | I69: - | J69: 0 | K69: -
B70: =IFERROR(VLOOKUP(A70,商品信息!A:F,2,0),"-") -> - | C70: =IFERROR(VLOOKUP(A70,商品信息!A:F,3,0),"-") -> - | D70: =SUMIF(入库表!B:B,库存表!A70,入库表!E:E) -> 0 | E70: =IFERROR(VLOOKUP(A70,商品信息!A:F,5,0),"-") -> - | F70: - | G70: =SUMIF(出库表!B:B,库存表!A70,出库表!E:E)-SUMIF(退货表!B:B,库存表!A70,退货表!E:E) -> 0 | H70: =IFERROR(VLOOKUP(A70,商品信息!A:F,6,0),"-") -> - | I70: - | J70: 0 | K70: -
B71: =IFERROR(VLOOKUP(A71,商品信息!A:F,2,0),"-") -> - | C71: =IFERROR(VLOOKUP(A71,商品信息!A:F,3,0),"-") -> - | D71: =SUMIF(入库表!B:B,库存表!A71,入库表!E:E) -> 0 | E71: =IFERROR(VLOOKUP(A71,商品信息!A:F,5,0),"-") -> - | F71: - | G71: =SUMIF(出库表!B:B,库存表!A71,出库表!E:E)-SUMIF(退货表!B:B,库存表!A71,退货表!E:E) -> 0 | H71: =IFERROR(VLOOKUP(A71,商品信息!A:F,6,0),"-") -> - | I71: - | J71: 0 | K71: -
B72: =IFERROR(VLOOKUP(A72,商品信息!A:F,2,0),"-") -> - | C72: =IFERROR(VLOOKUP(A72,商品信息!A:F,3,0),"-") -> - | D72: =SUMIF(入库表!B:B,库存表!A72,入库表!E:E) -> 0 | E72: =IFERROR(VLOOKUP(A72,商品信息!A:F,5,0),"-") -> - | F72: - | G72: =SUMIF(出库表!B:B,库存表!A72,出库表!E:E)-SUMIF(退货表!B:B,库存表!A72,退货表!E:E) -> 0 | H72: =IFERROR(VLOOKUP(A72,商品信息!A:F,6,0),"-") -> - | I72: - | J72: 0 | K72: -
B73: =IFERROR(VLOOKUP(A73,商品信息!A:F,2,0),"-") -> - | C73: =IFERROR(VLOOKUP(A73,商品信息!A:F,3,0),"-") -> - | D73: =SUMIF(入库表!B:B,库存表!A73,入库表!E:E) -> 0 | E73: =IFERROR(VLOOKUP(A73,商品信息!A:F,5,0),"-") -> - | F73: - | G73: =SUMIF(出库表!B:B,库存表!A73,出库表!E:E)-SUMIF(退货表!B:B,库存表!A73,退货表!E:E) -> 0 | H73: =IFERROR(VLOOKUP(A73,商品信息!A:F,6,0),"-") -> - | I73: - | J73: 0 | K73: -
B74: =IFERROR(VLOOKUP(A74,商品信息!A:F,2,0),"-") -> - | C74: =IFERROR(VLOOKUP(A74,商品信息!A:F,3,0),"-") -> - | D74: =SUMIF(入库表!B:B,库存表!A74,入库表!E:E) -> 0 | E74: =IFERROR(VLOOKUP(A74,商品信息!A:F,5,0),"-") -> - | F74: - | G74: =SUMIF(出库表!B:B,库存表!A74,出库表!E:E)-SUMIF(退货表!B:B,库存表!A74,退货表!E:E) -> 0 | H74: =IFERROR(VLOOKUP(A74,商品信息!A:F,6,0),"-") -> - | I74: - | J74: 0 | K74: -
B75: =IFERROR(VLOOKUP(A75,商品信息!A:F,2,0),"-") -> - | C75: =IFERROR(VLOOKUP(A75,商品信息!A:F,3,0),"-") -> - | D75: =SUMIF(入库表!B:B,库存表!A75,入库表!E:E) -> 0 | E75: =IFERROR(VLOOKUP(A75,商品信息!A:F,5,0),"-") -> - | F75: - | G75: =SUMIF(出库表!B:B,库存表!A75,出库表!E:E)-SUMIF(退货表!B:B,库存表!A75,退货表!E:E) -> 0 | H75: =IFERROR(VLOOKUP(A75,商品信息!A:F,6,0),"-") -> - | I75: - | J75: 0 | K75: -
B76: =IFERROR(VLOOKUP(A76,商品信息!A:F,2,0),"-") -> - | C76: =IFERROR(VLOOKUP(A76,商品信息!A:F,3,0),"-") -> - | D76: =SUMIF(入库表!B:B,库存表!A76,入库表!E:E) -> 0 | E76: =IFERROR(VLOOKUP(A76,商品信息!A:F,5,0),"-") -> - | F76: - | G76: =SUMIF(出库表!B:B,库存表!A76,出库表!E:E)-SUMIF(退货表!B:B,库存表!A76,退货表!E:E) -> 0 | H76: =IFERROR(VLOOKUP(A76,商品信息!A:F,6,0),"-") -> - | I76: - | J76: 0 | K76: -
B77: =IFERROR(VLOOKUP(A77,商品信息!A:F,2,0),"-") -> - | C77: =IFERROR(VLOOKUP(A77,商品信息!A:F,3,0),"-") -> - | D77: =SUMIF(入库表!B:B,库存表!A77,入库表!E:E) -> 0 | E77: =IFERROR(VLOOKUP(A77,商品信息!A:F,5,0),"-") -> - | F77: - | G77: =SUMIF(出库表!B:B,库存表!A77,出库表!E:E)-SUMIF(退货表!B:B,库存表!A77,退货表!E:E) -> 0 | H77: =IFERROR(VLOOKUP(A77,商品信息!A:F,6,0),"-") -> - | I77: - | J77: 0 | K77: -
B78: =IFERROR(VLOOKUP(A78,商品信息!A:F,2,0),"-") -> - | C78: =IFERROR(VLOOKUP(A78,商品信息!A:F,3,0),"-") -> - | D78: =SUMIF(入库表!B:B,库存表!A78,入库表!E:E) -> 0 | E78: =IFERROR(VLOOKUP(A78,商品信息!A:F,5,0),"-") -> - | F78: - | G78: =SUMIF(出库表!B:B,库存表!A78,出库表!E:E)-SUMIF(退货表!B:B,库存表!A78,退货表!E:E) -> 0 | H78: =IFERROR(VLOOKUP(A78,商品信息!A:F,6,0),"-") -> - | I78: - | J78: 0 | K78: -
B79: =IFERROR(VLOOKUP(A79,商品信息!A:F,2,0),"-") -> - | C79: =IFERROR(VLOOKUP(A79,商品信息!A:F,3,0),"-") -> - | D79: =SUMIF(入库表!B:B,库存表!A79,入库表!E:E) -> 0 | E79: =IFERROR(VLOOKUP(A79,商品信息!A:F,5,0),"-") -> - | F79: - | G79: =SUMIF(出库表!B:B,库存表!A79,出库表!E:E)-SUMIF(退货表!B:B,库存表!A79,退货表!E:E) -> 0 | H79: =IFERROR(VLOOKUP(A79,商品信息!A:F,6,0),"-") -> - | I79: - | J79: 0 | K79: -
B80: =IFERROR(VLOOKUP(A80,商品信息!A:F,2,0),"-") -> - | C80: =IFERROR(VLOOKUP(A80,商品信息!A:F,3,0),"-") -> - | D80: =SUMIF(入库表!B:B,库存表!A80,入库表!E:E) -> 0 | E80: =IFERROR(VLOOKUP(A80,商品信息!A:F,5,0),"-") -> - | F80: - | G80: =SUMIF(出库表!B:B,库存表!A80,出库表!E:E)-SUMIF(退货表!B:B,库存表!A80,退货表!E:E) -> 0 | H80: =IFERROR(VLOOKUP(A80,商品信息!A:F,6,0),"-") -> - | I80: - | J80: 0 | K80: -
B81: =IFERROR(VLOOKUP(A81,商品信息!A:F,2,0),"-") -> - | C81: =IFERROR(VLOOKUP(A81,商品信息!A:F,3,0),"-") -> - | D81: =SUMIF(入库表!B:B,库存表!A81,入库表!E:E) -> 0 | E81: =IFERROR(VLOOKUP(A81,商品信息!A:F,5,0),"-") -> - | F81: - | G81: =SUMIF(出库表!B:B,库存表!A81,出库表!E:E)-SUMIF(退货表!B:B,库存表!A81,退货表!E:E) -> 0 | H81: =IFERROR(VLOOKUP(A81,商品信息!A:F,6,0),"-") -> - | I81: - | J81: 0 | K81: -
B82: =IFERROR(VLOOKUP(A82,商品信息!A:F,2,0),"-") -> - | C82: =IFERROR(VLOOKUP(A82,商品信息!A:F,3,0),"-") -> - | D82: =SUMIF(入库表!B:B,库存表!A82,入库表!E:E) -> 0 | E82: =IFERROR(VLOOKUP(A82,商品信息!A:F,5,0),"-") -> - | F82: - | G82: =SUMIF(出库表!B:B,库存表!A82,出库表!E:E)-SUMIF(退货表!B:B,库存表!A82,退货表!E:E) -> 0 | H82: =IFERROR(VLOOKUP(A82,商品信息!A:F,6,0),"-") -> - | I82: - | J82: 0 | K82: -
B83: =IFERROR(VLOOKUP(A83,商品信息!A:F,2,0),"-") -> - | C83: =IFERROR(VLOOKUP(A83,商品信息!A:F,3,0),"-") -> - | D83: =SUMIF(入库表!B:B,库存表!A83,入库表!E:E) -> 0 | E83: =IFERROR(VLOOKUP(A83,商品信息!A:F,5,0),"-") -> - | F83: - | G83: =SUMIF(出库表!B:B,库存表!A83,出库表!E:E)-SUMIF(退货表!B:B,库存表!A83,退货表!E:E) -> 0 | H83: =IFERROR(VLOOKUP(A83,商品信息!A:F,6,0),"-") -> - | I83: - | J83: 0 | K83: -
B84: =IFERROR(VLOOKUP(A84,商品信息!A:F,2,0),"-") -> - | C84: =IFERROR(VLOOKUP(A84,商品信息!A:F,3,0),"-") -> - | D84: =SUMIF(入库表!B:B,库存表!A84,入库表!E:E) -> 0 | E84: =IFERROR(VLOOKUP(A84,商品信息!A:F,5,0),"-") -> - | F84: - | G84: =SUMIF(出库表!B:B,库存表!A84,出库表!E:E)-SUMIF(退货表!B:B,库存表!A84,退货表!E:E) -> 0 | H84: =IFERROR(VLOOKUP(A84,商品信息!A:F,6,0),"-") -> - | I84: - | J84: 0 | K84: -
B85: =IFERROR(VLOOKUP(A85,商品信息!A:F,2,0),"-") -> - | C85: =IFERROR(VLOOKUP(A85,商品信息!A:F,3,0),"-") -> - | D85: =SUMIF(入库表!B:B,库存表!A85,入库表!E:E) -> 0 | E85: =IFERROR(VLOOKUP(A85,商品信息!A:F,5,0),"-") -> - | F85: - | G85: =SUMIF(出库表!B:B,库存表!A85,出库表!E:E)-SUMIF(退货表!B:B,库存表!A85,退货表!E:E) -> 0 | H85: =IFERROR(VLOOKUP(A85,商品信息!A:F,6,0),"-") -> - | I85: - | J85: 0 | K85: -
B86: =IFERROR(VLOOKUP(A86,商品信息!A:F,2,0),"-") -> - | C86: =IFERROR(VLOOKUP(A86,商品信息!A:F,3,0),"-") -> - | D86: =SUMIF(入库表!B:B,库存表!A86,入库表!E:E) -> 0 | E86: =IFERROR(VLOOKUP(A86,商品信息!A:F,5,0),"-") -> - | F86: - | G86: =SUMIF(出库表!B:B,库存表!A86,出库表!E:E)-SUMIF(退货表!B:B,库存表!A86,退货表!E:E) -> 0 | H86: =IFERROR(VLOOKUP(A86,商品信息!A:F,6,0),"-") -> - | I86: - | J86: 0 | K86: -
B87: =IFERROR(VLOOKUP(A87,商品信息!A:F,2,0),"-") -> - | C87: =IFERROR(VLOOKUP(A87,商品信息!A:F,3,0),"-") -> - | D87: =SUMIF(入库表!B:B,库存表!A87,入库表!E:E) -> 0 | E87: =IFERROR(VLOOKUP(A87,商品信息!A:F,5,0),"-") -> - | F87: - | G87: =SUMIF(出库表!B:B,库存表!A87,出库表!E:E)-SUMIF(退货表!B:B,库存表!A87,退货表!E:E) -> 0 | H87: =IFERROR(VLOOKUP(A87,商品信息!A:F,6,0),"-") -> - | I87: - | J87: 0 | K87: -
B88: =IFERROR(VLOOKUP(A88,商品信息!A:F,2,0),"-") -> - | C88: =IFERROR(VLOOKUP(A88,商品信息!A:F,3,0),"-") -> - | D88: =SUMIF(入库表!B:B,库存表!A88,入库表!E:E) -> 0 | E88: =IFERROR(VLOOKUP(A88,商品信息!A:F,5,0),"-") -> - | F88: - | G88: =SUMIF(出库表!B:B,库存表!A88,出库表!E:E)-SUMIF(退货表!B:B,库存表!A88,退货表!E:E) -> 0 | H88: =IFERROR(VLOOKUP(A88,商品信息!A:F,6,0),"-") -> - | I88: - | J88: 0 | K88: -
B89: =IFERROR(VLOOKUP(A89,商品信息!A:F,2,0),"-") -> - | C89: =IFERROR(VLOOKUP(A89,商品信息!A:F,3,0),"-") -> - | D89: =SUMIF(入库表!B:B,库存表!A89,入库表!E:E) -> 0 | E89: =IFERROR(VLOOKUP(A89,商品信息!A:F,5,0),"-") -> - | F89: - | G89: =SUMIF(出库表!B:B,库存表!A89,出库表!E:E)-SUMIF(退货表!B:B,库存表!A89,退货表!E:E) -> 0 | H89: =IFERROR(VLOOKUP(A89,商品信息!A:F,6,0),"-") -> - | I89: - | J89: 0 | K89: -
B90: =IFERROR(VLOOKUP(A90,商品信息!A:F,2,0),"-") -> - | C90: =IFERROR(VLOOKUP(A90,商品信息!A:F,3,0),"-") -> - | D90: =SUMIF(入库表!B:B,库存表!A90,入库表!E:E) -> 0 | E90: =IFERROR(VLOOKUP(A90,商品信息!A:F,5,0),"-") -> - | F90: - | G90: =SUMIF(出库表!B:B,库存表!A90,出库表!E:E)-SUMIF(退货表!B:B,库存表!A90,退货表!E:E) -> 0 | H90: =IFERROR(VLOOKUP(A90,商品信息!A:F,6,0),"-") -> - | I90: - | J90: 0 | K90: -
B91: =IFERROR(VLOOKUP(A91,商品信息!A:F,2,0),"-") -> - | C91: =IFERROR(VLOOKUP(A91,商品信息!A:F,3,0),"-") -> - | D91: =SUMIF(入库表!B:B,库存表!A91,入库表!E:E) -> 0 | E91: =IFERROR(VLOOKUP(A91,商品信息!A:F,5,0),"-") -> - | F91: - | G91: =SUMIF(出库表!B:B,库存表!A91,出库表!E:E)-SUMIF(退货表!B:B,库存表!A91,退货表!E:E) -> 0 | H91: =IFERROR(VLOOKUP(A91,商品信息!A:F,6,0),"-") -> - | I91: - | J91: 0 | K91: -
B92: =IFERROR(VLOOKUP(A92,商品信息!A:F,2,0),"-") -> - | C92: =IFERROR(VLOOKUP(A92,商品信息!A:F,3,0),"-") -> - | D92: =SUMIF(入库表!B:B,库存表!A92,入库表!E:E) -> 0 | E92: =IFERROR(VLOOKUP(A92,商品信息!A:F,5,0),"-") -> - | F92: - | G92: =SUMIF(出库表!B:B,库存表!A92,出库表!E:E)-SUMIF(退货表!B:B,库存表!A92,退货表!E:E) -> 0 | H92: =IFERROR(VLOOKUP(A92,商品信息!A:F,6,0),"-") -> - | I92: - | J92: 0 | K92: -
B93: =IFERROR(VLOOKUP(A93,商品信息!A:F,2,0),"-") -> - | C93: =IFERROR(VLOOKUP(A93,商品信息!A:F,3,0),"-") -> - | D93: =SUMIF(入库表!B:B,库存表!A93,入库表!E:E) -> 0 | E93: =IFERROR(VLOOKUP(A93,商品信息!A:F,5,0),"-") -> - | F93: - | G93: =SUMIF(出库表!B:B,库存表!A93,出库表!E:E)-SUMIF(退货表!B:B,库存表!A93,退货表!E:E) -> 0 | H93: =IFERROR(VLOOKUP(A93,商品信息!A:F,6,0),"-") -> - | I93: - | J93: 0 | K93: -
B94: =IFERROR(VLOOKUP(A94,商品信息!A:F,2,0),"-") -> - | C94: =IFERROR(VLOOKUP(A94,商品信息!A:F,3,0),"-") -> - | D94: =SUMIF(入库表!B:B,库存表!A94,入库表!E:E) -> 0 | E94: =IFERROR(VLOOKUP(A94,商品信息!A:F,5,0),"-") -> - | F94: - | G94: =SUMIF(出库表!B:B,库存表!A94,出库表!E:E)-SUMIF(退货表!B:B,库存表!A94,退货表!E:E) -> 0 | H94: =IFERROR(VLOOKUP(A94,商品信息!A:F,6,0),"-") -> - | I94: - | J94: 0 | K94: -
B95: =IFERROR(VLOOKUP(A95,商品信息!A:F,2,0),"-") -> - | C95: =IFERROR(VLOOKUP(A95,商品信息!A:F,3,0),"-") -> - | D95: =SUMIF(入库表!B:B,库存表!A95,入库表!E:E) -> 0 | E95: =IFERROR(VLOOKUP(A95,商品信息!A:F,5,0),"-") -> - | F95: - | G95: =SUMIF(出库表!B:B,库存表!A95,出库表!E:E)-SUMIF(退货表!B:B,库存表!A95,退货表!E:E) -> 0 | H95: =IFERROR(VLOOKUP(A95,商品信息!A:F,6,0),"-") -> - | I95: - | J95: 0 | K95: -
B96: =IFERROR(VLOOKUP(A96,商品信息!A:F,2,0),"-") -> - | C96: =IFERROR(VLOOKUP(A96,商品信息!A:F,3,0),"-") -> - | D96: =SUMIF(入库表!B:B,库存表!A96,入库表!E:E) -> 0 | E96: =IFERROR(VLOOKUP(A96,商品信息!A:F,5,0),"-") -> - | F96: - | G96: =SUMIF(出库表!B:B,库存表!A96,出库表!E:E)-SUMIF(退货表!B:B,库存表!A96,退货表!E:E) -> 0 | H96: =IFERROR(VLOOKUP(A96,商品信息!A:F,6,0),"-") -> - | I96: - | J96: 0 | K96: -
B97: =IFERROR(VLOOKUP(A97,商品信息!A:F,2,0),"-") -> - | C97: =IFERROR(VLOOKUP(A97,商品信息!A:F,3,0),"-") -> - | D97: =SUMIF(入库表!B:B,库存表!A97,入库表!E:E) -> 0 | E97: =IFERROR(VLOOKUP(A97,商品信息!A:F,5,0),"-") -> - | F97: - | G97: =SUMIF(出库表!B:B,库存表!A97,出库表!E:E)-SUMIF(退货表!B:B,库存表!A97,退货表!E:E) -> 0 | H97: =IFERROR(VLOOKUP(A97,商品信息!A:F,6,0),"-") -> - | I97: - | J97: 0 | K97: -
B98: =IFERROR(VLOOKUP(A98,商品信息!A:F,2,0),"-") -> - | C98: =IFERROR(VLOOKUP(A98,商品信息!A:F,3,0),"-") -> - | D98: =SUMIF(入库表!B:B,库存表!A98,入库表!E:E) -> 0 | E98: =IFERROR(VLOOKUP(A98,商品信息!A:F,5,0),"-") -> - | F98: - | G98: =SUMIF(出库表!B:B,库存表!A98,出库表!E:E)-SUMIF(退货表!B:B,库存表!A98,退货表!E:E) -> 0 | H98: =IFERROR(VLOOKUP(A98,商品信息!A:F,6,0),"-") -> - | I98: - | J98: 0 | K98: -
B99: =IFERROR(VLOOKUP(A99,商品信息!A:F,2,0),"-") -> - | C99: =IFERROR(VLOOKUP(A99,商品信息!A:F,3,0),"-") -> - | D99: =SUMIF(入库表!B:B,库存表!A99,入库表!E:E) -> 0 | E99: =IFERROR(VLOOKUP(A99,商品信息!A:F,5,0),"-") -> - | F99: - | G99: =SUMIF(出库表!B:B,库存表!A99,出库表!E:E)-SUMIF(退货表!B:B,库存表!A99,退货表!E:E) -> 0 | H99: =IFERROR(VLOOKUP(A99,商品信息!A:F,6,0),"-") -> - | I99: - | J99: 0 | K99: -
B100: =IFERROR(VLOOKUP(A100,商品信息!A:F,2,0),"-") -> - | C100: =IFERROR(VLOOKUP(A100,商品信息!A:F,3,0),"-") -> - | D100: =SUMIF(入库表!B:B,库存表!A100,入库表!E:E) -> 0 | E100: =IFERROR(VLOOKUP(A100,商品信息!A:F,5,0),"-") -> - | F100: - | G100: =SUMIF(出库表!B:B,库存表!A100,出库表!E:E)-SUMIF(退货表!B:B,库存表!A100,退货表!E:E) -> 0 | H100: =IFERROR(VLOOKUP(A100,商品信息!A:F,6,0),"-") -> - | I100: - | J100: 0 | K100: -
B101: =IFERROR(VLOOKUP(A101,商品信息!A:F,2,0),"-") -> - | C101: =IFERROR(VLOOKUP(A101,商品信息!A:F,3,0),"-") -> - | D101: =SUMIF(入库表!B:B,库存表!A101,入库表!E:E) -> 0 | E101: =IFERROR(VLOOKUP(A101,商品信息!A:F,5,0),"-") -> - | F101: - | G101: =SUMIF(出库表!B:B,库存表!A101,出库表!E:E)-SUMIF(退货表!B:B,库存表!A101,退货表!E:E) -> 0 | H101: =IFERROR(VLOOKUP(A101,商品信息!A:F,6,0),"-") -> - | I101: - | J101: 0 | K101: -
B102: =IFERROR(VLOOKUP(A102,商品信息!A:F,2,0),"-") -> - | C102: =IFERROR(VLOOKUP(A102,商品信息!A:F,3,0),"-") -> - | D102: =SUMIF(入库表!B:B,库存表!A102,入库表!E:E) -> 0 | E102: =IFERROR(VLOOKUP(A102,商品信息!A:F,5,0),"-") -> - | F102: - | G102: =SUMIF(出库表!B:B,库存表!A102,出库表!E:E)-SUMIF(退货表!B:B,库存表!A102,退货表!E:E) -> 0 | H102: =IFERROR(VLOOKUP(A102,商品信息!A:F,6,0),"-") -> - | I102: - | J102: 0 | K102: -
B103: =IFERROR(VLOOKUP(A103,商品信息!A:F,2,0),"-") -> - | C103: =IFERROR(VLOOKUP(A103,商品信息!A:F,3,0),"-") -> - | D103: =SUMIF(入库表!B:B,库存表!A103,入库表!E:E) -> 0 | E103: =IFERROR(VLOOKUP(A103,商品信息!A:F,5,0),"-") -> - | F103: - | G103: =SUMIF(出库表!B:B,库存表!A103,出库表!E:E)-SUMIF(退货表!B:B,库存表!A103,退货表!E:E) -> 0 | H103: =IFERROR(VLOOKUP(A103,商品信息!A:F,6,0),"-") -> - | I103: - | J103: 0 | K103: -
B104: =IFERROR(VLOOKUP(A104,商品信息!A:F,2,0),"-") -> - | C104: =IFERROR(VLOOKUP(A104,商品信息!A:F,3,0),"-") -> - | D104: =SUMIF(入库表!B:B,库存表!A104,入库表!E:E) -> 0 | E104: =IFERROR(VLOOKUP(A104,商品信息!A:F,5,0),"-") -> - | F104: - | G104: =SUMIF(出库表!B:B,库存表!A104,出库表!E:E)-SUMIF(退货表!B:B,库存表!A104,退货表!E:E) -> 0 | H104: =IFERROR(VLOOKUP(A104,商品信息!A:F,6,0),"-") -> - | I104: - | J104: 0 | K104: -
B105: =IFERROR(VLOOKUP(A105,商品信息!A:F,2,0),"-") -> - | C105: =IFERROR(VLOOKUP(A105,商品信息!A:F,3,0),"-") -> - | D105: =SUMIF(入库表!B:B,库存表!A105,入库表!E:E) -> 0 | E105: =IFERROR(VLOOKUP(A105,商品信息!A:F,5,0),"-") -> - | F105: - | G105: =SUMIF(出库表!B:B,库存表!A105,出库表!E:E)-SUMIF(退货表!B:B,库存表!A105,退货表!E:E) -> 0 | H105: =IFERROR(VLOOKUP(A105,商品信息!A:F,6,0),"-") -> - | I105: - | J105: 0 | K105: -
B106: =IFERROR(VLOOKUP(A106,商品信息!A:F,2,0),"-") -> - | C106: =IFERROR(VLOOKUP(A106,商品信息!A:F,3,0),"-") -> - | D106: =SUMIF(入库表!B:B,库存表!A106,入库表!E:E) -> 0 | E106: =IFERROR(VLOOKUP(A106,商品信息!A:F,5,0),"-") -> - | F106: - | G106: =SUMIF(出库表!B:B,库存表!A106,出库表!E:E)-SUMIF(退货表!B:B,库存表!A106,退货表!E:E) -> 0 | H106: =IFERROR(VLOOKUP(A106,商品信息!A:F,6,0),"-") -> - | I106: - | J106: 0 | K106: -
B107: =IFERROR(VLOOKUP(A107,商品信息!A:F,2,0),"-") -> - | C107: =IFERROR(VLOOKUP(A107,商品信息!A:F,3,0),"-") -> - | D107: =SUMIF(入库表!B:B,库存表!A107,入库表!E:E) -> 0 | E107: =IFERROR(VLOOKUP(A107,商品信息!A:F,5,0),"-") -> - | F107: - | G107: =SUMIF(出库表!B:B,库存表!A107,出库表!E:E)-SUMIF(退货表!B:B,库存表!A107,退货表!E:E) -> 0 | H107: =IFERROR(VLOOKUP(A107,商品信息!A:F,6,0),"-") -> - | I107: - | J107: 0 | K107: -
B108: =IFERROR(VLOOKUP(A108,商品信息!A:F,2,0),"-") -> - | C108: =IFERROR(VLOOKUP(A108,商品信息!A:F,3,0),"-") -> - | D108: =SUMIF(入库表!B:B,库存表!A108,入库表!E:E) -> 0 | E108: =IFERROR(VLOOKUP(A108,商品信息!A:F,5,0),"-") -> - | F108: - | G108: =SUMIF(出库表!B:B,库存表!A108,出库表!E:E)-SUMIF(退货表!B:B,库存表!A108,退货表!E:E) -> 0 | H108: =IFERROR(VLOOKUP(A108,商品信息!A:F,6,0),"-") -> - | I108: - | J108: 0 | K108: -
B109: =IFERROR(VLOOKUP(A109,商品信息!A:F,2,0),"-") -> - | C109: =IFERROR(VLOOKUP(A109,商品信息!A:F,3,0),"-") -> - | D109: =SUMIF(入库表!B:B,库存表!A109,入库表!E:E) -> 0 | E109: =IFERROR(VLOOKUP(A109,商品信息!A:F,5,0),"-") -> - | F109: - | G109: =SUMIF(出库表!B:B,库存表!A109,出库表!E:E)-SUMIF(退货表!B:B,库存表!A109,退货表!E:E) -> 0 | H109: =IFERROR(VLOOKUP(A109,商品信息!A:F,6,0),"-") -> - | I109: - | J109: 0 | K109: -
B110: =IFERROR(VLOOKUP(A110,商品信息!A:F,2,0),"-") -> - | C110: =IFERROR(VLOOKUP(A110,商品信息!A:F,3,0),"-") -> - | D110: =SUMIF(入库表!B:B,库存表!A110,入库表!E:E) -> 0 | E110: =IFERROR(VLOOKUP(A110,商品信息!A:F,5,0),"-") -> - | F110: - | G110: =SUMIF(出库表!B:B,库存表!A110,出库表!E:E)-SUMIF(退货表!B:B,库存表!A110,退货表!E:E) -> 0 | H110: =IFERROR(VLOOKUP(A110,商品信息!A:F,6,0),"-") -> - | I110: - | J110: 0 | K110: -
B111: =IFERROR(VLOOKUP(A111,商品信息!A:F,2,0),"-") -> - | C111: =IFERROR(VLOOKUP(A111,商品信息!A:F,3,0),"-") -> - | D111: =SUMIF(入库表!B:B,库存表!A111,入库表!E:E) -> 0 | E111: =IFERROR(VLOOKUP(A111,商品信息!A:F,5,0),"-") -> - | F111: - | G111: =SUMIF(出库表!B:B,库存表!A111,出库表!E:E)-SUMIF(退货表!B:B,库存表!A111,退货表!E:E) -> 0 | H111: =IFERROR(VLOOKUP(A111,商品信息!A:F,6,0),"-") -> - | I111: - | J111: 0 | K111: -
B112: =IFERROR(VLOOKUP(A112,商品信息!A:F,2,0),"-") -> - | C112: =IFERROR(VLOOKUP(A112,商品信息!A:F,3,0),"-") -> - | D112: =SUMIF(入库表!B:B,库存表!A112,入库表!E:E) -> 0 | E112: =IFERROR(VLOOKUP(A112,商品信息!A:F,5,0),"-") -> - | F112: - | G112: =SUMIF(出库表!B:B,库存表!A112,出库表!E:E)-SUMIF(退货表!B:B,库存表!A112,退货表!E:E) -> 0 | H112: =IFERROR(VLOOKUP(A112,商品信息!A:F,6,0),"-") -> - | I112: - | J112: 0 | K112: -
B113: =IFERROR(VLOOKUP(A113,商品信息!A:F,2,0),"-") -> - | C113: =IFERROR(VLOOKUP(A113,商品信息!A:F,3,0),"-") -> - | D113: =SUMIF(入库表!B:B,库存表!A113,入库表!E:E) -> 0 | E113: =IFERROR(VLOOKUP(A113,商品信息!A:F,5,0),"-") -> - | F113: - | G113: =SUMIF(出库表!B:B,库存表!A113,出库表!E:E)-SUMIF(退货表!B:B,库存表!A113,退货表!E:E) -> 0 | H113: =IFERROR(VLOOKUP(A113,商品信息!A:F,6,0),"-") -> - | I113: - | J113: 0 | K113: -
B114: =IFERROR(VLOOKUP(A114,商品信息!A:F,2,0),"-") -> - | C114: =IFERROR(VLOOKUP(A114,商品信息!A:F,3,0),"-") -> - | D114: =SUMIF(入库表!B:B,库存表!A114,入库表!E:E) -> 0 | E114: =IFERROR(VLOOKUP(A114,商品信息!A:F,5,0),"-") -> - | F114: - | G114: =SUMIF(出库表!B:B,库存表!A114,出库表!E:E)-SUMIF(退货表!B:B,库存表!A114,退货表!E:E) -> 0 | H114: =IFERROR(VLOOKUP(A114,商品信息!A:F,6,0),"-") -> - | I114: - | J114: 0 | K114: -
B115: =IFERROR(VLOOKUP(A115,商品信息!A:F,2,0),"-") -> - | C115: =IFERROR(VLOOKUP(A115,商品信息!A:F,3,0),"-") -> - | D115: =SUMIF(入库表!B:B,库存表!A115,入库表!E:E) -> 0 | E115: =IFERROR(VLOOKUP(A115,商品信息!A:F,5,0),"-") -> - | F115: - | G115: =SUMIF(出库表!B:B,库存表!A115,出库表!E:E)-SUMIF(退货表!B:B,库存表!A115,退货表!E:E) -> 0 | H115: =IFERROR(VLOOKUP(A115,商品信息!A:F,6,0),"-") -> - | I115: - | J115: 0 | K115: -
B116: =IFERROR(VLOOKUP(A116,商品信息!A:F,2,0),"-") -> - | C116: =IFERROR(VLOOKUP(A116,商品信息!A:F,3,0),"-") -> - | D116: =SUMIF(入库表!B:B,库存表!A116,入库表!E:E) -> 0 | E116: =IFERROR(VLOOKUP(A116,商品信息!A:F,5,0),"-") -> - | F116: - | G116: =SUMIF(出库表!B:B,库存表!A116,出库表!E:E)-SUMIF(退货表!B:B,库存表!A116,退货表!E:E) -> 0 | H116: =IFERROR(VLOOKUP(A116,商品信息!A:F,6,0),"-") -> - | I116: - | J116: 0 | K116: -
B117: =IFERROR(VLOOKUP(A117,商品信息!A:F,2,0),"-") -> - | C117: =IFERROR(VLOOKUP(A117,商品信息!A:F,3,0),"-") -> - | D117: =SUMIF(入库表!B:B,库存表!A117,入库表!E:E) -> 0 | E117: =IFERROR(VLOOKUP(A117,商品信息!A:F,5,0),"-") -> - | F117: - | G117: =SUMIF(出库表!B:B,库存表!A117,出库表!E:E)-SUMIF(退货表!B:B,库存表!A117,退货表!E:E) -> 0 | H117: =IFERROR(VLOOKUP(A117,商品信息!A:F,6,0),"-") -> - | I117: - | J117: 0 | K117: -
B118: =IFERROR(VLOOKUP(A118,商品信息!A:F,2,0),"-") -> - | C118: =IFERROR(VLOOKUP(A118,商品信息!A:F,3,0),"-") -> - | D118: =SUMIF(入库表!B:B,库存表!A118,入库表!E:E) -> 0 | E118: =IFERROR(VLOOKUP(A118,商品信息!A:F,5,0),"-") -> - | F118: - | G118: =SUMIF(出库表!B:B,库存表!A118,出库表!E:E)-SUMIF(退货表!B:B,库存表!A118,退货表!E:E) -> 0 | H118: =IFERROR(VLOOKUP(A118,商品信息!A:F,6,0),"-") -> - | I118: - | J118: 0 | K118: -
B119: =IFERROR(VLOOKUP(A119,商品信息!A:F,2,0),"-") -> - | C119: =IFERROR(VLOOKUP(A119,商品信息!A:F,3,0),"-") -> - | D119: =SUMIF(入库表!B:B,库存表!A119,入库表!E:E) -> 0 | E119: =IFERROR(VLOOKUP(A119,商品信息!A:F,5,0),"-") -> - | F119: - | G119: =SUMIF(出库表!B:B,库存表!A119,出库表!E:E)-SUMIF(退货表!B:B,库存表!A119,退货表!E:E) -> 0 | H119: =IFERROR(VLOOKUP(A119,商品信息!A:F,6,0),"-") -> - | I119: - | J119: 0 | K119: -
B120: =IFERROR(VLOOKUP(A120,商品信息!A:F,2,0),"-") -> - | C120: =IFERROR(VLOOKUP(A120,商品信息!A:F,3,0),"-") -> - | D120: =SUMIF(入库表!B:B,库存表!A120,入库表!E:E) -> 0 | E120: =IFERROR(VLOOKUP(A120,商品信息!A:F,5,0),"-") -> - | F120: - | G120: =SUMIF(出库表!B:B,库存表!A120,出库表!E:E)-SUMIF(退货表!B:B,库存表!A120,退货表!E:E) -> 0 | H120: =IFERROR(VLOOKUP(A120,商品信息!A:F,6,0),"-") -> - | I120: - | J120: 0 | K120: -
B121: =IFERROR(VLOOKUP(A121,商品信息!A:F,2,0),"-") -> - | C121: =IFERROR(VLOOKUP(A121,商品信息!A:F,3,0),"-") -> - | D121: =SUMIF(入库表!B:B,库存表!A121,入库表!E:E) -> 0 | E121: =IFERROR(VLOOKUP(A121,商品信息!A:F,5,0),"-") -> - | F121: - | G121: =SUMIF(出库表!B:B,库存表!A121,出库表!E:E)-SUMIF(退货表!B:B,库存表!A121,退货表!E:E) -> 0 | H121: =IFERROR(VLOOKUP(A121,商品信息!A:F,6,0),"-") -> - | I121: - | J121: 0 | K121: -
B122: =IFERROR(VLOOKUP(A122,商品信息!A:F,2,0),"-") -> - | C122: =IFERROR(VLOOKUP(A122,商品信息!A:F,3,0),"-") -> - | D122: =SUMIF(入库表!B:B,库存表!A122,入库表!E:E) -> 0 | E122: =IFERROR(VLOOKUP(A122,商品信息!A:F,5,0),"-") -> - | F122: - | G122: =SUMIF(出库表!B:B,库存表!A122,出库表!E:E)-SUMIF(退货表!B:B,库存表!A122,退货表!E:E) -> 0 | H122: =IFERROR(VLOOKUP(A122,商品信息!A:F,6,0),"-") -> - | I122: - | J122: 0 | K122: -
B123: =IFERROR(VLOOKUP(A123,商品信息!A:F,2,0),"-") -> - | C123: =IFERROR(VLOOKUP(A123,商品信息!A:F,3,0),"-") -> - | D123: =SUMIF(入库表!B:B,库存表!A123,入库表!E:E) -> 0 | E123: =IFERROR(VLOOKUP(A123,商品信息!A:F,5,0),"-") -> - | F123: - | G123: =SUMIF(出库表!B:B,库存表!A123,出库表!E:E)-SUMIF(退货表!B:B,库存表!A123,退货表!E:E) -> 0 | H123: =IFERROR(VLOOKUP(A123,商品信息!A:F,6,0),"-") -> - | I123: - | J123: 0 | K123: -
B124: =IFERROR(VLOOKUP(A124,商品信息!A:F,2,0),"-") -> - | C124: =IFERROR(VLOOKUP(A124,商品信息!A:F,3,0),"-") -> - | D124: =SUMIF(入库表!B:B,库存表!A124,入库表!E:E) -> 0 | E124: =IFERROR(VLOOKUP(A124,商品信息!A:F,5,0),"-") -> - | F124: - | G124: =SUMIF(出库表!B:B,库存表!A124,出库表!E:E)-SUMIF(退货表!B:B,库存表!A124,退货表!E:E) -> 0 | H124: =IFERROR(VLOOKUP(A124,商品信息!A:F,6,0),"-") -> - | I124: - | J124: 0 | K124: -
B125: =IFERROR(VLOOKUP(A125,商品信息!A:F,2,0),"-") -> - | C125: =IFERROR(VLOOKUP(A125,商品信息!A:F,3,0),"-") -> - | D125: =SUMIF(入库表!B:B,库存表!A125,入库表!E:E) -> 0 | E125: =IFERROR(VLOOKUP(A125,商品信息!A:F,5,0),"-") -> - | F125: - | G125: =SUMIF(出库表!B:B,库存表!A125,出库表!E:E)-SUMIF(退货表!B:B,库存表!A125,退货表!E:E) -> 0 | H125: =IFERROR(VLOOKUP(A125,商品信息!A:F,6,0),"-") -> - | I125: - | J125: 0 | K125: -
B126: =IFERROR(VLOOKUP(A126,商品信息!A:F,2,0),"-") -> - | C126: =IFERROR(VLOOKUP(A126,商品信息!A:F,3,0),"-") -> - | D126: =SUMIF(入库表!B:B,库存表!A126,入库表!E:E) -> 0 | E126: =IFERROR(VLOOKUP(A126,商品信息!A:F,5,0),"-") -> - | F126: - | G126: =SUMIF(出库表!B:B,库存表!A126,出库表!E:E)-SUMIF(退货表!B:B,库存表!A126,退货表!E:E) -> 0 | H126: =IFERROR(VLOOKUP(A126,商品信息!A:F,6,0),"-") -> - | I126: - | J126: 0 | K126: -
B127: =IFERROR(VLOOKUP(A127,商品信息!A:F,2,0),"-") -> - | C127: =IFERROR(VLOOKUP(A127,商品信息!A:F,3,0),"-") -> - | D127: =SUMIF(入库表!B:B,库存表!A127,入库表!E:E) -> 0 | E127: =IFERROR(VLOOKUP(A127,商品信息!A:F,5,0),"-") -> - | F127: - | G127: =SUMIF(出库表!B:B,库存表!A127,出库表!E:E)-SUMIF(退货表!B:B,库存表!A127,退货表!E:E) -> 0 | H127: =IFERROR(VLOOKUP(A127,商品信息!A:F,6,0),"-") -> - | I127: - | J127: 0 | K127: -
B128: =IFERROR(VLOOKUP(A128,商品信息!A:F,2,0),"-") -> - | C128: =IFERROR(VLOOKUP(A128,商品信息!A:F,3,0),"-") -> - | D128: =SUMIF(入库表!B:B,库存表!A128,入库表!E:E) -> 0 | E128: =IFERROR(VLOOKUP(A128,商品信息!A:F,5,0),"-") -> - | F128: - | G128: =SUMIF(出库表!B:B,库存表!A128,出库表!E:E)-SUMIF(退货表!B:B,库存表!A128,退货表!E:E) -> 0 | H128: =IFERROR(VLOOKUP(A128,商品信息!A:F,6,0),"-") -> - | I128: - | J128: 0 | K128: -
B129: =IFERROR(VLOOKUP(A129,商品信息!A:F,2,0),"-") -> - | C129: =IFERROR(VLOOKUP(A129,商品信息!A:F,3,0),"-") -> - | D129: =SUMIF(入库表!B:B,库存表!A129,入库表!E:E) -> 0 | E129: =IFERROR(VLOOKUP(A129,商品信息!A:F,5,0),"-") -> - | F129: - | G129: =SUMIF(出库表!B:B,库存表!A129,出库表!E:E)-SUMIF(退货表!B:B,库存表!A129,退货表!E:E) -> 0 | H129: =IFERROR(VLOOKUP(A129,商品信息!A:F,6,0),"-") -> - | I129: - | J129: 0 | K129: -
B130: =IFERROR(VLOOKUP(A130,商品信息!A:F,2,0),"-") -> - | C130: =IFERROR(VLOOKUP(A130,商品信息!A:F,3,0),"-") -> - | D130: =SUMIF(入库表!B:B,库存表!A130,入库表!E:E) -> 0 | E130: =IFERROR(VLOOKUP(A130,商品信息!A:F,5,0),"-") -> - | F130: - | G130: =SUMIF(出库表!B:B,库存表!A130,出库表!E:E)-SUMIF(退货表!B:B,库存表!A130,退货表!E:E) -> 0 | H130: =IFERROR(VLOOKUP(A130,商品信息!A:F,6,0),"-") -> - | I130: - | J130: 0 | K130: -
B131: =IFERROR(VLOOKUP(A131,商品信息!A:F,2,0),"-") -> - | C131: =IFERROR(VLOOKUP(A131,商品信息!A:F,3,0),"-") -> - | D131: =SUMIF(入库表!B:B,库存表!A131,入库表!E:E) -> 0 | E131: =IFERROR(VLOOKUP(A131,商品信息!A:F,5,0),"-") -> - | F131: - | G131: =SUMIF(出库表!B:B,库存表!A131,出库表!E:E)-SUMIF(退货表!B:B,库存表!A131,退货表!E:E) -> 0 | H131: =IFERROR(VLOOKUP(A131,商品信息!A:F,6,0),"-") -> - | I131: - | J131: 0 | K131: -
B132: =IFERROR(VLOOKUP(A132,商品信息!A:F,2,0),"-") -> - | C132: =IFERROR(VLOOKUP(A132,商品信息!A:F,3,0),"-") -> - | D132: =SUMIF(入库表!B:B,库存表!A132,入库表!E:E) -> 0 | E132: =IFERROR(VLOOKUP(A132,商品信息!A:F,5,0),"-") -> - | F132: =IFERROR(D132*E132,"-") -> - | G132: =SUMIF(出库表!B:B,库存表!A132,出库表!E:E)-SUMIF(退货表!B:B,库存表!A132,退货表!E:E) -> 0 | H132: =IFERROR(VLOOKUP(A132,商品信息!A:F,6,0),"-") -> - | I132: =IFERROR(G132*H132,"-") -> - | J132: =D132-G132 -> 0 | K132: =IFERROR(G132*(H132-E132),"-") -> - | L132: =IF(A132<>"",IF(J132<$O$3,"不足",IF(AND(J132>$O$3,J132<$N$3),"足",IF(J132>$N$3,"过量",""))),"") -> 
B133: =IFERROR(VLOOKUP(A133,商品信息!A:F,2,0),"-") -> - | C133: =IFERROR(VLOOKUP(A133,商品信息!A:F,3,0),"-") -> - | D133: =SUMIF(入库表!B:B,库存表!A133,入库表!E:E) -> 0 | E133: =IFERROR(VLOOKUP(A133,商品信息!A:F,5,0),"-") -> - | F133: - | G133: =SUMIF(出库表!B:B,库存表!A133,出库表!E:E)-SUMIF(退货表!B:B,库存表!A133,退货表!E:E) -> 0 | H133: =IFERROR(VLOOKUP(A133,商品信息!A:F,6,0),"-") -> - | I133: - | J133: 0 | K133: -
B134: =IFERROR(VLOOKUP(A134,商品信息!A:F,2,0),"-") -> - | C134: =IFERROR(VLOOKUP(A134,商品信息!A:F,3,0),"-") -> - | D134: =SUMIF(入库表!B:B,库存表!A134,入库表!E:E) -> 0 | E134: =IFERROR(VLOOKUP(A134,商品信息!A:F,5,0),"-") -> - | F134: - | G134: =SUMIF(出库表!B:B,库存表!A134,出库表!E:E)-SUMIF(退货表!B:B,库存表!A134,退货表!E:E) -> 0 | H134: =IFERROR(VLOOKUP(A134,商品信息!A:F,6,0),"-") -> - | I134: - | J134: 0 | K134: -
B135: =IFERROR(VLOOKUP(A135,商品信息!A:F,2,0),"-") -> - | C135: =IFERROR(VLOOKUP(A135,商品信息!A:F,3,0),"-") -> - | D135: =SUMIF(入库表!B:B,库存表!A135,入库表!E:E) -> 0 | E135: =IFERROR(VLOOKUP(A135,商品信息!A:F,5,0),"-") -> - | F135: - | G135: =SUMIF(出库表!B:B,库存表!A135,出库表!E:E)-SUMIF(退货表!B:B,库存表!A135,退货表!E:E) -> 0 | H135: =IFERROR(VLOOKUP(A135,商品信息!A:F,6,0),"-") -> - | I135: - | J135: 0 | K135: -
B136: =IFERROR(VLOOKUP(A136,商品信息!A:F,2,0),"-") -> - | C136: =IFERROR(VLOOKUP(A136,商品信息!A:F,3,0),"-") -> - | D136: =SUMIF(入库表!B:B,库存表!A136,入库表!E:E) -> 0 | E136: =IFERROR(VLOOKUP(A136,商品信息!A:F,5,0),"-") -> - | F136: - | G136: =SUMIF(出库表!B:B,库存表!A136,出库表!E:E)-SUMIF(退货表!B:B,库存表!A136,退货表!E:E) -> 0 | H136: =IFERROR(VLOOKUP(A136,商品信息!A:F,6,0),"-") -> - | I136: - | J136: 0 | K136: -
B137: =IFERROR(VLOOKUP(A137,商品信息!A:F,2,0),"-") -> - | C137: =IFERROR(VLOOKUP(A137,商品信息!A:F,3,0),"-") -> - | D137: =SUMIF(入库表!B:B,库存表!A137,入库表!E:E) -> 0 | E137: =IFERROR(VLOOKUP(A137,商品信息!A:F,5,0),"-") -> - | F137: - | G137: =SUMIF(出库表!B:B,库存表!A137,出库表!E:E)-SUMIF(退货表!B:B,库存表!A137,退货表!E:E) -> 0 | H137: =IFERROR(VLOOKUP(A137,商品信息!A:F,6,0),"-") -> - | I137: - | J137: 0 | K137: -
B138: =IFERROR(VLOOKUP(A138,商品信息!A:F,2,0),"-") -> - | C138: =IFERROR(VLOOKUP(A138,商品信息!A:F,3,0),"-") -> - | D138: =SUMIF(入库表!B:B,库存表!A138,入库表!E:E) -> 0 | E138: =IFERROR(VLOOKUP(A138,商品信息!A:F,5,0),"-") -> - | F138: - | G138: =SUMIF(出库表!B:B,库存表!A138,出库表!E:E)-SUMIF(退货表!B:B,库存表!A138,退货表!E:E) -> 0 | H138: =IFERROR(VLOOKUP(A138,商品信息!A:F,6,0),"-") -> - | I138: - | J138: 0 | K138: -
B139: =IFERROR(VLOOKUP(A139,商品信息!A:F,2,0),"-") -> - | C139: =IFERROR(VLOOKUP(A139,商品信息!A:F,3,0),"-") -> - | D139: =SUMIF(入库表!B:B,库存表!A139,入库表!E:E) -> 0 | E139: =IFERROR(VLOOKUP(A139,商品信息!A:F,5,0),"-") -> - | F139: - | G139: =SUMIF(出库表!B:B,库存表!A139,出库表!E:E)-SUMIF(退货表!B:B,库存表!A139,退货表!E:E) -> 0 | H139: =IFERROR(VLOOKUP(A139,商品信息!A:F,6,0),"-") -> - | I139: - | J139: 0 | K139: -
B140: =IFERROR(VLOOKUP(A140,商品信息!A:F,2,0),"-") -> - | C140: =IFERROR(VLOOKUP(A140,商品信息!A:F,3,0),"-") -> - | D140: =SUMIF(入库表!B:B,库存表!A140,入库表!E:E) -> 0 | E140: =IFERROR(VLOOKUP(A140,商品信息!A:F,5,0),"-") -> - | F140: - | G140: =SUMIF(出库表!B:B,库存表!A140,出库表!E:E)-SUMIF(退货表!B:B,库存表!A140,退货表!E:E) -> 0 | H140: =IFERROR(VLOOKUP(A140,商品信息!A:F,6,0),"-") -> - | I140: - | J140: 0 | K140: -
B141: =IFERROR(VLOOKUP(A141,商品信息!A:F,2,0),"-") -> - | C141: =IFERROR(VLOOKUP(A141,商品信息!A:F,3,0),"-") -> - | D141: =SUMIF(入库表!B:B,库存表!A141,入库表!E:E) -> 0 | E141: =IFERROR(VLOOKUP(A141,商品信息!A:F,5,0),"-") -> - | F141: - | G141: =SUMIF(出库表!B:B,库存表!A141,出库表!E:E)-SUMIF(退货表!B:B,库存表!A141,退货表!E:E) -> 0 | H141: =IFERROR(VLOOKUP(A141,商品信息!A:F,6,0),"-") -> - | I141: - | J141: 0 | K141: -
B142: =IFERROR(VLOOKUP(A142,商品信息!A:F,2,0),"-") -> - | C142: =IFERROR(VLOOKUP(A142,商品信息!A:F,3,0),"-") -> - | D142: =SUMIF(入库表!B:B,库存表!A142,入库表!E:E) -> 0 | E142: =IFERROR(VLOOKUP(A142,商品信息!A:F,5,0),"-") -> - | F142: - | G142: =SUMIF(出库表!B:B,库存表!A142,出库表!E:E)-SUMIF(退货表!B:B,库存表!A142,退货表!E:E) -> 0 | H142: =IFERROR(VLOOKUP(A142,商品信息!A:F,6,0),"-") -> - | I142: - | J142: 0 | K142: -
B143: =IFERROR(VLOOKUP(A143,商品信息!A:F,2,0),"-") -> - | C143: =IFERROR(VLOOKUP(A143,商品信息!A:F,3,0),"-") -> - | D143: =SUMIF(入库表!B:B,库存表!A143,入库表!E:E) -> 0 | E143: =IFERROR(VLOOKUP(A143,商品信息!A:F,5,0),"-") -> - | F143: - | G143: =SUMIF(出库表!B:B,库存表!A143,出库表!E:E)-SUMIF(退货表!B:B,库存表!A143,退货表!E:E) -> 0 | H143: =IFERROR(VLOOKUP(A143,商品信息!A:F,6,0),"-") -> - | I143: - | J143: 0 | K143: -
B144: =IFERROR(VLOOKUP(A144,商品信息!A:F,2,0),"-") -> - | C144: =IFERROR(VLOOKUP(A144,商品信息!A:F,3,0),"-") -> - | D144: =SUMIF(入库表!B:B,库存表!A144,入库表!E:E) -> 0 | E144: =IFERROR(VLOOKUP(A144,商品信息!A:F,5,0),"-") -> - | F144: - | G144: =SUMIF(出库表!B:B,库存表!A144,出库表!E:E)-SUMIF(退货表!B:B,库存表!A144,退货表!E:E) -> 0 | H144: =IFERROR(VLOOKUP(A144,商品信息!A:F,6,0),"-") -> - | I144: - | J144: 0 | K144: -
B145: =IFERROR(VLOOKUP(A145,商品信息!A:F,2,0),"-") -> - | C145: =IFERROR(VLOOKUP(A145,商品信息!A:F,3,0),"-") -> - | D145: =SUMIF(入库表!B:B,库存表!A145,入库表!E:E) -> 0 | E145: =IFERROR(VLOOKUP(A145,商品信息!A:F,5,0),"-") -> - | F145: - | G145: =SUMIF(出库表!B:B,库存表!A145,出库表!E:E)-SUMIF(退货表!B:B,库存表!A145,退货表!E:E) -> 0 | H145: =IFERROR(VLOOKUP(A145,商品信息!A:F,6,0),"-") -> - | I145: - | J145: 0 | K145: -
B146: =IFERROR(VLOOKUP(A146,商品信息!A:F,2,0),"-") -> - | C146: =IFERROR(VLOOKUP(A146,商品信息!A:F,3,0),"-") -> - | D146: =SUMIF(入库表!B:B,库存表!A146,入库表!E:E) -> 0 | E146: =IFERROR(VLOOKUP(A146,商品信息!A:F,5,0),"-") -> - | F146: - | G146: =SUMIF(出库表!B:B,库存表!A146,出库表!E:E)-SUMIF(退货表!B:B,库存表!A146,退货表!E:E) -> 0 | H146: =IFERROR(VLOOKUP(A146,商品信息!A:F,6,0),"-") -> - | I146: - | J146: 0 | K146: -
B147: =IFERROR(VLOOKUP(A147,商品信息!A:F,2,0),"-") -> - | C147: =IFERROR(VLOOKUP(A147,商品信息!A:F,3,0),"-") -> - | D147: =SUMIF(入库表!B:B,库存表!A147,入库表!E:E) -> 0 | E147: =IFERROR(VLOOKUP(A147,商品信息!A:F,5,0),"-") -> - | F147: - | G147: =SUMIF(出库表!B:B,库存表!A147,出库表!E:E)-SUMIF(退货表!B:B,库存表!A147,退货表!E:E) -> 0 | H147: =IFERROR(VLOOKUP(A147,商品信息!A:F,6,0),"-") -> - | I147: - | J147: 0 | K147: -
B148: =IFERROR(VLOOKUP(A148,商品信息!A:F,2,0),"-") -> - | C148: =IFERROR(VLOOKUP(A148,商品信息!A:F,3,0),"-") -> - | D148: =SUMIF(入库表!B:B,库存表!A148,入库表!E:E) -> 0 | E148: =IFERROR(VLOOKUP(A148,商品信息!A:F,5,0),"-") -> - | F148: - | G148: =SUMIF(出库表!B:B,库存表!A148,出库表!E:E)-SUMIF(退货表!B:B,库存表!A148,退货表!E:E) -> 0 | H148: =IFERROR(VLOOKUP(A148,商品信息!A:F,6,0),"-") -> - | I148: - | J148: 0 | K148: -
B149: =IFERROR(VLOOKUP(A149,商品信息!A:F,2,0),"-") -> - | C149: =IFERROR(VLOOKUP(A149,商品信息!A:F,3,0),"-") -> - | D149: =SUMIF(入库表!B:B,库存表!A149,入库表!E:E) -> 0 | E149: =IFERROR(VLOOKUP(A149,商品信息!A:F,5,0),"-") -> - | F149: - | G149: =SUMIF(出库表!B:B,库存表!A149,出库表!E:E)-SUMIF(退货表!B:B,库存表!A149,退货表!E:E) -> 0 | H149: =IFERROR(VLOOKUP(A149,商品信息!A:F,6,0),"-") -> - | I149: - | J149: 0 | K149: -
B150: =IFERROR(VLOOKUP(A150,商品信息!A:F,2,0),"-") -> - | C150: =IFERROR(VLOOKUP(A150,商品信息!A:F,3,0),"-") -> - | D150: =SUMIF(入库表!B:B,库存表!A150,入库表!E:E) -> 0 | E150: =IFERROR(VLOOKUP(A150,商品信息!A:F,5,0),"-") -> - | F150: - | G150: =SUMIF(出库表!B:B,库存表!A150,出库表!E:E)-SUMIF(退货表!B:B,库存表!A150,退货表!E:E) -> 0 | H150: =IFERROR(VLOOKUP(A150,商品信息!A:F,6,0),"-") -> - | I150: - | J150: 0 | K150: -
B151: =IFERROR(VLOOKUP(A151,商品信息!A:F,2,0),"-") -> - | C151: =IFERROR(VLOOKUP(A151,商品信息!A:F,3,0),"-") -> - | D151: =SUMIF(入库表!B:B,库存表!A151,入库表!E:E) -> 0 | E151: =IFERROR(VLOOKUP(A151,商品信息!A:F,5,0),"-") -> - | F151: - | G151: =SUMIF(出库表!B:B,库存表!A151,出库表!E:E)-SUMIF(退货表!B:B,库存表!A151,退货表!E:E) -> 0 | H151: =IFERROR(VLOOKUP(A151,商品信息!A:F,6,0),"-") -> - | I151: - | J151: 0 | K151: -
B152: =IFERROR(VLOOKUP(A152,商品信息!A:F,2,0),"-") -> - | C152: =IFERROR(VLOOKUP(A152,商品信息!A:F,3,0),"-") -> - | D152: =SUMIF(入库表!B:B,库存表!A152,入库表!E:E) -> 0 | E152: =IFERROR(VLOOKUP(A152,商品信息!A:F,5,0),"-") -> - | F152: - | G152: =SUMIF(出库表!B:B,库存表!A152,出库表!E:E)-SUMIF(退货表!B:B,库存表!A152,退货表!E:E) -> 0 | H152: =IFERROR(VLOOKUP(A152,商品信息!A:F,6,0),"-") -> - | I152: - | J152: 0 | K152: -
B153: =IFERROR(VLOOKUP(A153,商品信息!A:F,2,0),"-") -> - | C153: =IFERROR(VLOOKUP(A153,商品信息!A:F,3,0),"-") -> - | D153: =SUMIF(入库表!B:B,库存表!A153,入库表!E:E) -> 0 | E153: =IFERROR(VLOOKUP(A153,商品信息!A:F,5,0),"-") -> - | F153: - | G153: =SUMIF(出库表!B:B,库存表!A153,出库表!E:E)-SUMIF(退货表!B:B,库存表!A153,退货表!E:E) -> 0 | H153: =IFERROR(VLOOKUP(A153,商品信息!A:F,6,0),"-") -> - | I153: - | J153: 0 | K153: -
B154: =IFERROR(VLOOKUP(A154,商品信息!A:F,2,0),"-") -> - | C154: =IFERROR(VLOOKUP(A154,商品信息!A:F,3,0),"-") -> - | D154: =SUMIF(入库表!B:B,库存表!A154,入库表!E:E) -> 0 | E154: =IFERROR(VLOOKUP(A154,商品信息!A:F,5,0),"-") -> - | F154: - | G154: =SUMIF(出库表!B:B,库存表!A154,出库表!E:E)-SUMIF(退货表!B:B,库存表!A154,退货表!E:E) -> 0 | H154: =IFERROR(VLOOKUP(A154,商品信息!A:F,6,0),"-") -> - | I154: - | J154: 0 | K154: -
B155: =IFERROR(VLOOKUP(A155,商品信息!A:F,2,0),"-") -> - | C155: =IFERROR(VLOOKUP(A155,商品信息!A:F,3,0),"-") -> - | D155: =SUMIF(入库表!B:B,库存表!A155,入库表!E:E) -> 0 | E155: =IFERROR(VLOOKUP(A155,商品信息!A:F,5,0),"-") -> - | F155: - | G155: =SUMIF(出库表!B:B,库存表!A155,出库表!E:E)-SUMIF(退货表!B:B,库存表!A155,退货表!E:E) -> 0 | H155: =IFERROR(VLOOKUP(A155,商品信息!A:F,6,0),"-") -> - | I155: - | J155: 0 | K155: -
B156: =IFERROR(VLOOKUP(A156,商品信息!A:F,2,0),"-") -> - | C156: =IFERROR(VLOOKUP(A156,商品信息!A:F,3,0),"-") -> - | D156: =SUMIF(入库表!B:B,库存表!A156,入库表!E:E) -> 0 | E156: =IFERROR(VLOOKUP(A156,商品信息!A:F,5,0),"-") -> - | F156: - | G156: =SUMIF(出库表!B:B,库存表!A156,出库表!E:E)-SUMIF(退货表!B:B,库存表!A156,退货表!E:E) -> 0 | H156: =IFERROR(VLOOKUP(A156,商品信息!A:F,6,0),"-") -> - | I156: - | J156: 0 | K156: -
B157: =IFERROR(VLOOKUP(A157,商品信息!A:F,2,0),"-") -> - | C157: =IFERROR(VLOOKUP(A157,商品信息!A:F,3,0),"-") -> - | D157: =SUMIF(入库表!B:B,库存表!A157,入库表!E:E) -> 0 | E157: =IFERROR(VLOOKUP(A157,商品信息!A:F,5,0),"-") -> - | F157: - | G157: =SUMIF(出库表!B:B,库存表!A157,出库表!E:E)-SUMIF(退货表!B:B,库存表!A157,退货表!E:E) -> 0 | H157: =IFERROR(VLOOKUP(A157,商品信息!A:F,6,0),"-") -> - | I157: - | J157: 0 | K157: -
B158: =IFERROR(VLOOKUP(A158,商品信息!A:F,2,0),"-") -> - | C158: =IFERROR(VLOOKUP(A158,商品信息!A:F,3,0),"-") -> - | D158: =SUMIF(入库表!B:B,库存表!A158,入库表!E:E) -> 0 | E158: =IFERROR(VLOOKUP(A158,商品信息!A:F,5,0),"-") -> - | F158: - | G158: =SUMIF(出库表!B:B,库存表!A158,出库表!E:E)-SUMIF(退货表!B:B,库存表!A158,退货表!E:E) -> 0 | H158: =IFERROR(VLOOKUP(A158,商品信息!A:F,6,0),"-") -> - | I158: - | J158: 0 | K158: -
B159: =IFERROR(VLOOKUP(A159,商品信息!A:F,2,0),"-") -> - | C159: =IFERROR(VLOOKUP(A159,商品信息!A:F,3,0),"-") -> - | D159: =SUMIF(入库表!B:B,库存表!A159,入库表!E:E) -> 0 | E159: =IFERROR(VLOOKUP(A159,商品信息!A:F,5,0),"-") -> - | F159: - | G159: =SUMIF(出库表!B:B,库存表!A159,出库表!E:E)-SUMIF(退货表!B:B,库存表!A159,退货表!E:E) -> 0 | H159: =IFERROR(VLOOKUP(A159,商品信息!A:F,6,0),"-") -> - | I159: - | J159: 0 | K159: -
B160: =IFERROR(VLOOKUP(A160,商品信息!A:F,2,0),"-") -> - | C160: =IFERROR(VLOOKUP(A160,商品信息!A:F,3,0),"-") -> - | D160: =SUMIF(入库表!B:B,库存表!A160,入库表!E:E) -> 0 | E160: =IFERROR(VLOOKUP(A160,商品信息!A:F,5,0),"-") -> - | F160: - | G160: =SUMIF(出库表!B:B,库存表!A160,出库表!E:E)-SUMIF(退货表!B:B,库存表!A160,退货表!E:E) -> 0 | H160: =IFERROR(VLOOKUP(A160,商品信息!A:F,6,0),"-") -> - | I160: - | J160: 0 | K160: -
B161: =IFERROR(VLOOKUP(A161,商品信息!A:F,2,0),"-") -> - | C161: =IFERROR(VLOOKUP(A161,商品信息!A:F,3,0),"-") -> - | D161: =SUMIF(入库表!B:B,库存表!A161,入库表!E:E) -> 0 | E161: =IFERROR(VLOOKUP(A161,商品信息!A:F,5,0),"-") -> - | F161: - | G161: =SUMIF(出库表!B:B,库存表!A161,出库表!E:E)-SUMIF(退货表!B:B,库存表!A161,退货表!E:E) -> 0 | H161: =IFERROR(VLOOKUP(A161,商品信息!A:F,6,0),"-") -> - | I161: - | J161: 0 | K161: -
B162: =IFERROR(VLOOKUP(A162,商品信息!A:F,2,0),"-") -> - | C162: =IFERROR(VLOOKUP(A162,商品信息!A:F,3,0),"-") -> - | D162: =SUMIF(入库表!B:B,库存表!A162,入库表!E:E) -> 0 | E162: =IFERROR(VLOOKUP(A162,商品信息!A:F,5,0),"-") -> - | F162: - | G162: =SUMIF(出库表!B:B,库存表!A162,出库表!E:E)-SUMIF(退货表!B:B,库存表!A162,退货表!E:E) -> 0 | H162: =IFERROR(VLOOKUP(A162,商品信息!A:F,6,0),"-") -> - | I162: - | J162: 0 | K162: -
B163: =IFERROR(VLOOKUP(A163,商品信息!A:F,2,0),"-") -> - | C163: =IFERROR(VLOOKUP(A163,商品信息!A:F,3,0),"-") -> - | D163: =SUMIF(入库表!B:B,库存表!A163,入库表!E:E) -> 0 | E163: =IFERROR(VLOOKUP(A163,商品信息!A:F,5,0),"-") -> - | F163: - | G163: =SUMIF(出库表!B:B,库存表!A163,出库表!E:E)-SUMIF(退货表!B:B,库存表!A163,退货表!E:E) -> 0 | H163: =IFERROR(VLOOKUP(A163,商品信息!A:F,6,0),"-") -> - | I163: - | J163: 0 | K163: -
B164: =IFERROR(VLOOKUP(A164,商品信息!A:F,2,0),"-") -> - | C164: =IFERROR(VLOOKUP(A164,商品信息!A:F,3,0),"-") -> - | D164: =SUMIF(入库表!B:B,库存表!A164,入库表!E:E) -> 0 | E164: =IFERROR(VLOOKUP(A164,商品信息!A:F,5,0),"-") -> - | F164: - | G164: =SUMIF(出库表!B:B,库存表!A164,出库表!E:E)-SUMIF(退货表!B:B,库存表!A164,退货表!E:E) -> 0 | H164: =IFERROR(VLOOKUP(A164,商品信息!A:F,6,0),"-") -> - | I164: - | J164: 0 | K164: -
B165: =IFERROR(VLOOKUP(A165,商品信息!A:F,2,0),"-") -> - | C165: =IFERROR(VLOOKUP(A165,商品信息!A:F,3,0),"-") -> - | D165: =SUMIF(入库表!B:B,库存表!A165,入库表!E:E) -> 0 | E165: =IFERROR(VLOOKUP(A165,商品信息!A:F,5,0),"-") -> - | F165: - | G165: =SUMIF(出库表!B:B,库存表!A165,出库表!E:E)-SUMIF(退货表!B:B,库存表!A165,退货表!E:E) -> 0 | H165: =IFERROR(VLOOKUP(A165,商品信息!A:F,6,0),"-") -> - | I165: - | J165: 0 | K165: -
B166: =IFERROR(VLOOKUP(A166,商品信息!A:F,2,0),"-") -> - | C166: =IFERROR(VLOOKUP(A166,商品信息!A:F,3,0),"-") -> - | D166: =SUMIF(入库表!B:B,库存表!A166,入库表!E:E) -> 0 | E166: =IFERROR(VLOOKUP(A166,商品信息!A:F,5,0),"-") -> - | F166: - | G166: =SUMIF(出库表!B:B,库存表!A166,出库表!E:E)-SUMIF(退货表!B:B,库存表!A166,退货表!E:E) -> 0 | H166: =IFERROR(VLOOKUP(A166,商品信息!A:F,6,0),"-") -> - | I166: - | J166: 0 | K166: -
B167: =IFERROR(VLOOKUP(A167,商品信息!A:F,2,0),"-") -> - | C167: =IFERROR(VLOOKUP(A167,商品信息!A:F,3,0),"-") -> - | D167: =SUMIF(入库表!B:B,库存表!A167,入库表!E:E) -> 0 | E167: =IFERROR(VLOOKUP(A167,商品信息!A:F,5,0),"-") -> - | F167: - | G167: =SUMIF(出库表!B:B,库存表!A167,出库表!E:E)-SUMIF(退货表!B:B,库存表!A167,退货表!E:E) -> 0 | H167: =IFERROR(VLOOKUP(A167,商品信息!A:F,6,0),"-") -> - | I167: - | J167: 0 | K167: -
B168: =IFERROR(VLOOKUP(A168,商品信息!A:F,2,0),"-") -> - | C168: =IFERROR(VLOOKUP(A168,商品信息!A:F,3,0),"-") -> - | D168: =SUMIF(入库表!B:B,库存表!A168,入库表!E:E) -> 0 | E168: =IFERROR(VLOOKUP(A168,商品信息!A:F,5,0),"-") -> - | F168: - | G168: =SUMIF(出库表!B:B,库存表!A168,出库表!E:E)-SUMIF(退货表!B:B,库存表!A168,退货表!E:E) -> 0 | H168: =IFERROR(VLOOKUP(A168,商品信息!A:F,6,0),"-") -> - | I168: - | J168: 0 | K168: -
B169: =IFERROR(VLOOKUP(A169,商品信息!A:F,2,0),"-") -> - | C169: =IFERROR(VLOOKUP(A169,商品信息!A:F,3,0),"-") -> - | D169: =SUMIF(入库表!B:B,库存表!A169,入库表!E:E) -> 0 | E169: =IFERROR(VLOOKUP(A169,商品信息!A:F,5,0),"-") -> - | F169: - | G169: =SUMIF(出库表!B:B,库存表!A169,出库表!E:E)-SUMIF(退货表!B:B,库存表!A169,退货表!E:E) -> 0 | H169: =IFERROR(VLOOKUP(A169,商品信息!A:F,6,0),"-") -> - | I169: - | J169: 0 | K169: -
B170: =IFERROR(VLOOKUP(A170,商品信息!A:F,2,0),"-") -> - | C170: =IFERROR(VLOOKUP(A170,商品信息!A:F,3,0),"-") -> - | D170: =SUMIF(入库表!B:B,库存表!A170,入库表!E:E) -> 0 | E170: =IFERROR(VLOOKUP(A170,商品信息!A:F,5,0),"-") -> - | F170: - | G170: =SUMIF(出库表!B:B,库存表!A170,出库表!E:E)-SUMIF(退货表!B:B,库存表!A170,退货表!E:E) -> 0 | H170: =IFERROR(VLOOKUP(A170,商品信息!A:F,6,0),"-") -> - | I170: - | J170: 0 | K170: -
B171: =IFERROR(VLOOKUP(A171,商品信息!A:F,2,0),"-") -> - | C171: =IFERROR(VLOOKUP(A171,商品信息!A:F,3,0),"-") -> - | D171: =SUMIF(入库表!B:B,库存表!A171,入库表!E:E) -> 0 | E171: =IFERROR(VLOOKUP(A171,商品信息!A:F,5,0),"-") -> - | F171: - | G171: =SUMIF(出库表!B:B,库存表!A171,出库表!E:E)-SUMIF(退货表!B:B,库存表!A171,退货表!E:E) -> 0 | H171: =IFERROR(VLOOKUP(A171,商品信息!A:F,6,0),"-") -> - | I171: - | J171: 0 | K171: -
B172: =IFERROR(VLOOKUP(A172,商品信息!A:F,2,0),"-") -> - | C172: =IFERROR(VLOOKUP(A172,商品信息!A:F,3,0),"-") -> - | D172: =SUMIF(入库表!B:B,库存表!A172,入库表!E:E) -> 0 | E172: =IFERROR(VLOOKUP(A172,商品信息!A:F,5,0),"-") -> - | F172: - | G172: =SUMIF(出库表!B:B,库存表!A172,出库表!E:E)-SUMIF(退货表!B:B,库存表!A172,退货表!E:E) -> 0 | H172: =IFERROR(VLOOKUP(A172,商品信息!A:F,6,0),"-") -> - | I172: - | J172: 0 | K172: -
B173: =IFERROR(VLOOKUP(A173,商品信息!A:F,2,0),"-") -> - | C173: =IFERROR(VLOOKUP(A173,商品信息!A:F,3,0),"-") -> - | D173: =SUMIF(入库表!B:B,库存表!A173,入库表!E:E) -> 0 | E173: =IFERROR(VLOOKUP(A173,商品信息!A:F,5,0),"-") -> - | F173: - | G173: =SUMIF(出库表!B:B,库存表!A173,出库表!E:E)-SUMIF(退货表!B:B,库存表!A173,退货表!E:E) -> 0 | H173: =IFERROR(VLOOKUP(A173,商品信息!A:F,6,0),"-") -> - | I173: - | J173: 0 | K173: -
B174: =IFERROR(VLOOKUP(A174,商品信息!A:F,2,0),"-") -> - | C174: =IFERROR(VLOOKUP(A174,商品信息!A:F,3,0),"-") -> - | D174: =SUMIF(入库表!B:B,库存表!A174,入库表!E:E) -> 0 | E174: =IFERROR(VLOOKUP(A174,商品信息!A:F,5,0),"-") -> - | F174: - | G174: =SUMIF(出库表!B:B,库存表!A174,出库表!E:E)-SUMIF(退货表!B:B,库存表!A174,退货表!E:E) -> 0 | H174: =IFERROR(VLOOKUP(A174,商品信息!A:F,6,0),"-") -> - | I174: - | J174: 0 | K174: -
B175: =IFERROR(VLOOKUP(A175,商品信息!A:F,2,0),"-") -> - | C175: =IFERROR(VLOOKUP(A175,商品信息!A:F,3,0),"-") -> - | D175: =SUMIF(入库表!B:B,库存表!A175,入库表!E:E) -> 0 | E175: =IFERROR(VLOOKUP(A175,商品信息!A:F,5,0),"-") -> - | F175: - | G175: =SUMIF(出库表!B:B,库存表!A175,出库表!E:E)-SUMIF(退货表!B:B,库存表!A175,退货表!E:E) -> 0 | H175: =IFERROR(VLOOKUP(A175,商品信息!A:F,6,0),"-") -> - | I175: - | J175: 0 | K175: -
B176: =IFERROR(VLOOKUP(A176,商品信息!A:F,2,0),"-") -> - | C176: =IFERROR(VLOOKUP(A176,商品信息!A:F,3,0),"-") -> - | D176: =SUMIF(入库表!B:B,库存表!A176,入库表!E:E) -> 0 | E176: =IFERROR(VLOOKUP(A176,商品信息!A:F,5,0),"-") -> - | F176: - | G176: =SUMIF(出库表!B:B,库存表!A176,出库表!E:E)-SUMIF(退货表!B:B,库存表!A176,退货表!E:E) -> 0 | H176: =IFERROR(VLOOKUP(A176,商品信息!A:F,6,0),"-") -> - | I176: - | J176: 0 | K176: -
B177: =IFERROR(VLOOKUP(A177,商品信息!A:F,2,0),"-") -> - | C177: =IFERROR(VLOOKUP(A177,商品信息!A:F,3,0),"-") -> - | D177: =SUMIF(入库表!B:B,库存表!A177,入库表!E:E) -> 0 | E177: =IFERROR(VLOOKUP(A177,商品信息!A:F,5,0),"-") -> - | F177: - | G177: =SUMIF(出库表!B:B,库存表!A177,出库表!E:E)-SUMIF(退货表!B:B,库存表!A177,退货表!E:E) -> 0 | H177: =IFERROR(VLOOKUP(A177,商品信息!A:F,6,0),"-") -> - | I177: - | J177: 0 | K177: -
B178: =IFERROR(VLOOKUP(A178,商品信息!A:F,2,0),"-") -> - | C178: =IFERROR(VLOOKUP(A178,商品信息!A:F,3,0),"-") -> - | D178: =SUMIF(入库表!B:B,库存表!A178,入库表!E:E) -> 0 | E178: =IFERROR(VLOOKUP(A178,商品信息!A:F,5,0),"-") -> - | F178: - | G178: =SUMIF(出库表!B:B,库存表!A178,出库表!E:E)-SUMIF(退货表!B:B,库存表!A178,退货表!E:E) -> 0 | H178: =IFERROR(VLOOKUP(A178,商品信息!A:F,6,0),"-") -> - | I178: - | J178: 0 | K178: -
B179: =IFERROR(VLOOKUP(A179,商品信息!A:F,2,0),"-") -> - | C179: =IFERROR(VLOOKUP(A179,商品信息!A:F,3,0),"-") -> - | D179: =SUMIF(入库表!B:B,库存表!A179,入库表!E:E) -> 0 | E179: =IFERROR(VLOOKUP(A179,商品信息!A:F,5,0),"-") -> - | F179: - | G179: =SUMIF(出库表!B:B,库存表!A179,出库表!E:E)-SUMIF(退货表!B:B,库存表!A179,退货表!E:E) -> 0 | H179: =IFERROR(VLOOKUP(A179,商品信息!A:F,6,0),"-") -> - | I179: - | J179: 0 | K179: -
B180: =IFERROR(VLOOKUP(A180,商品信息!A:F,2,0),"-") -> - | C180: =IFERROR(VLOOKUP(A180,商品信息!A:F,3,0),"-") -> - | D180: =SUMIF(入库表!B:B,库存表!A180,入库表!E:E) -> 0 | E180: =IFERROR(VLOOKUP(A180,商品信息!A:F,5,0),"-") -> - | F180: - | G180: =SUMIF(出库表!B:B,库存表!A180,出库表!E:E)-SUMIF(退货表!B:B,库存表!A180,退货表!E:E) -> 0 | H180: =IFERROR(VLOOKUP(A180,商品信息!A:F,6,0),"-") -> - | I180: - | J180: 0 | K180: -
B181: =IFERROR(VLOOKUP(A181,商品信息!A:F,2,0),"-") -> - | C181: =IFERROR(VLOOKUP(A181,商品信息!A:F,3,0),"-") -> - | D181: =SUMIF(入库表!B:B,库存表!A181,入库表!E:E) -> 0 | E181: =IFERROR(VLOOKUP(A181,商品信息!A:F,5,0),"-") -> - | F181: - | G181: =SUMIF(出库表!B:B,库存表!A181,出库表!E:E)-SUMIF(退货表!B:B,库存表!A181,退货表!E:E) -> 0 | H181: =IFERROR(VLOOKUP(A181,商品信息!A:F,6,0),"-") -> - | I181: - | J181: 0 | K181: -
B182: =IFERROR(VLOOKUP(A182,商品信息!A:F,2,0),"-") -> - | C182: =IFERROR(VLOOKUP(A182,商品信息!A:F,3,0),"-") -> - | D182: =SUMIF(入库表!B:B,库存表!A182,入库表!E:E) -> 0 | E182: =IFERROR(VLOOKUP(A182,商品信息!A:F,5,0),"-") -> - | F182: - | G182: =SUMIF(出库表!B:B,库存表!A182,出库表!E:E)-SUMIF(退货表!B:B,库存表!A182,退货表!E:E) -> 0 | H182: =IFERROR(VLOOKUP(A182,商品信息!A:F,6,0),"-") -> - | I182: - | J182: 0 | K182: -
B183: =IFERROR(VLOOKUP(A183,商品信息!A:F,2,0),"-") -> - | C183: =IFERROR(VLOOKUP(A183,商品信息!A:F,3,0),"-") -> - | D183: =SUMIF(入库表!B:B,库存表!A183,入库表!E:E) -> 0 | E183: =IFERROR(VLOOKUP(A183,商品信息!A:F,5,0),"-") -> - | F183: - | G183: =SUMIF(出库表!B:B,库存表!A183,出库表!E:E)-SUMIF(退货表!B:B,库存表!A183,退货表!E:E) -> 0 | H183: =IFERROR(VLOOKUP(A183,商品信息!A:F,6,0),"-") -> - | I183: - | J183: 0 | K183: -
B184: =IFERROR(VLOOKUP(A184,商品信息!A:F,2,0),"-") -> - | C184: =IFERROR(VLOOKUP(A184,商品信息!A:F,3,0),"-") -> - | D184: =SUMIF(入库表!B:B,库存表!A184,入库表!E:E) -> 0 | E184: =IFERROR(VLOOKUP(A184,商品信息!A:F,5,0),"-") -> - | F184: - | G184: =SUMIF(出库表!B:B,库存表!A184,出库表!E:E)-SUMIF(退货表!B:B,库存表!A184,退货表!E:E) -> 0 | H184: =IFERROR(VLOOKUP(A184,商品信息!A:F,6,0),"-") -> - | I184: - | J184: 0 | K184: -
B185: =IFERROR(VLOOKUP(A185,商品信息!A:F,2,0),"-") -> - | C185: =IFERROR(VLOOKUP(A185,商品信息!A:F,3,0),"-") -> - | D185: =SUMIF(入库表!B:B,库存表!A185,入库表!E:E) -> 0 | E185: =IFERROR(VLOOKUP(A185,商品信息!A:F,5,0),"-") -> - | F185: - | G185: =SUMIF(出库表!B:B,库存表!A185,出库表!E:E)-SUMIF(退货表!B:B,库存表!A185,退货表!E:E) -> 0 | H185: =IFERROR(VLOOKUP(A185,商品信息!A:F,6,0),"-") -> - | I185: - | J185: 0 | K185: -
B186: =IFERROR(VLOOKUP(A186,商品信息!A:F,2,0),"-") -> - | C186: =IFERROR(VLOOKUP(A186,商品信息!A:F,3,0),"-") -> - | D186: =SUMIF(入库表!B:B,库存表!A186,入库表!E:E) -> 0 | E186: =IFERROR(VLOOKUP(A186,商品信息!A:F,5,0),"-") -> - | F186: - | G186: =SUMIF(出库表!B:B,库存表!A186,出库表!E:E)-SUMIF(退货表!B:B,库存表!A186,退货表!E:E) -> 0 | H186: =IFERROR(VLOOKUP(A186,商品信息!A:F,6,0),"-") -> - | I186: - | J186: 0 | K186: -
B187: =IFERROR(VLOOKUP(A187,商品信息!A:F,2,0),"-") -> - | C187: =IFERROR(VLOOKUP(A187,商品信息!A:F,3,0),"-") -> - | D187: =SUMIF(入库表!B:B,库存表!A187,入库表!E:E) -> 0 | E187: =IFERROR(VLOOKUP(A187,商品信息!A:F,5,0),"-") -> - | F187: - | G187: =SUMIF(出库表!B:B,库存表!A187,出库表!E:E)-SUMIF(退货表!B:B,库存表!A187,退货表!E:E) -> 0 | H187: =IFERROR(VLOOKUP(A187,商品信息!A:F,6,0),"-") -> - | I187: - | J187: 0 | K187: -
B188: =IFERROR(VLOOKUP(A188,商品信息!A:F,2,0),"-") -> - | C188: =IFERROR(VLOOKUP(A188,商品信息!A:F,3,0),"-") -> - | D188: =SUMIF(入库表!B:B,库存表!A188,入库表!E:E) -> 0 | E188: =IFERROR(VLOOKUP(A188,商品信息!A:F,5,0),"-") -> - | F188: - | G188: =SUMIF(出库表!B:B,库存表!A188,出库表!E:E)-SUMIF(退货表!B:B,库存表!A188,退货表!E:E) -> 0 | H188: =IFERROR(VLOOKUP(A188,商品信息!A:F,6,0),"-") -> - | I188: - | J188: 0 | K188: -
B189: =IFERROR(VLOOKUP(A189,商品信息!A:F,2,0),"-") -> - | C189: =IFERROR(VLOOKUP(A189,商品信息!A:F,3,0),"-") -> - | D189: =SUMIF(入库表!B:B,库存表!A189,入库表!E:E) -> 0 | E189: =IFERROR(VLOOKUP(A189,商品信息!A:F,5,0),"-") -> - | F189: - | G189: =SUMIF(出库表!B:B,库存表!A189,出库表!E:E)-SUMIF(退货表!B:B,库存表!A189,退货表!E:E) -> 0 | H189: =IFERROR(VLOOKUP(A189,商品信息!A:F,6,0),"-") -> - | I189: - | J189: 0 | K189: -
B190: =IFERROR(VLOOKUP(A190,商品信息!A:F,2,0),"-") -> - | C190: =IFERROR(VLOOKUP(A190,商品信息!A:F,3,0),"-") -> - | D190: =SUMIF(入库表!B:B,库存表!A190,入库表!E:E) -> 0 | E190: =IFERROR(VLOOKUP(A190,商品信息!A:F,5,0),"-") -> - | F190: - | G190: =SUMIF(出库表!B:B,库存表!A190,出库表!E:E)-SUMIF(退货表!B:B,库存表!A190,退货表!E:E) -> 0 | H190: =IFERROR(VLOOKUP(A190,商品信息!A:F,6,0),"-") -> - | I190: - | J190: 0 | K190: -
B191: =IFERROR(VLOOKUP(A191,商品信息!A:F,2,0),"-") -> - | C191: =IFERROR(VLOOKUP(A191,商品信息!A:F,3,0),"-") -> - | D191: =SUMIF(入库表!B:B,库存表!A191,入库表!E:E) -> 0 | E191: =IFERROR(VLOOKUP(A191,商品信息!A:F,5,0),"-") -> - | F191: - | G191: =SUMIF(出库表!B:B,库存表!A191,出库表!E:E)-SUMIF(退货表!B:B,库存表!A191,退货表!E:E) -> 0 | H191: =IFERROR(VLOOKUP(A191,商品信息!A:F,6,0),"-") -> - | I191: - | J191: 0 | K191: -
B192: =IFERROR(VLOOKUP(A192,商品信息!A:F,2,0),"-") -> - | C192: =IFERROR(VLOOKUP(A192,商品信息!A:F,3,0),"-") -> - | D192: =SUMIF(入库表!B:B,库存表!A192,入库表!E:E) -> 0 | E192: =IFERROR(VLOOKUP(A192,商品信息!A:F,5,0),"-") -> - | F192: - | G192: =SUMIF(出库表!B:B,库存表!A192,出库表!E:E)-SUMIF(退货表!B:B,库存表!A192,退货表!E:E) -> 0 | H192: =IFERROR(VLOOKUP(A192,商品信息!A:F,6,0),"-") -> - | I192: - | J192: 0 | K192: -
B193: =IFERROR(VLOOKUP(A193,商品信息!A:F,2,0),"-") -> - | C193: =IFERROR(VLOOKUP(A193,商品信息!A:F,3,0),"-") -> - | D193: =SUMIF(入库表!B:B,库存表!A193,入库表!E:E) -> 0 | E193: =IFERROR(VLOOKUP(A193,商品信息!A:F,5,0),"-") -> - | F193: - | G193: =SUMIF(出库表!B:B,库存表!A193,出库表!E:E)-SUMIF(退货表!B:B,库存表!A193,退货表!E:E) -> 0 | H193: =IFERROR(VLOOKUP(A193,商品信息!A:F,6,0),"-") -> - | I193: - | J193: 0 | K193: -
B194: =IFERROR(VLOOKUP(A194,商品信息!A:F,2,0),"-") -> - | C194: =IFERROR(VLOOKUP(A194,商品信息!A:F,3,0),"-") -> - | D194: =SUMIF(入库表!B:B,库存表!A194,入库表!E:E) -> 0 | E194: =IFERROR(VLOOKUP(A194,商品信息!A:F,5,0),"-") -> - | F194: - | G194: =SUMIF(出库表!B:B,库存表!A194,出库表!E:E)-SUMIF(退货表!B:B,库存表!A194,退货表!E:E) -> 0 | H194: =IFERROR(VLOOKUP(A194,商品信息!A:F,6,0),"-") -> - | I194: - | J194: 0 | K194: -
B195: =IFERROR(VLOOKUP(A195,商品信息!A:F,2,0),"-") -> - | C195: =IFERROR(VLOOKUP(A195,商品信息!A:F,3,0),"-") -> - | D195: =SUMIF(入库表!B:B,库存表!A195,入库表!E:E) -> 0 | E195: =IFERROR(VLOOKUP(A195,商品信息!A:F,5,0),"-") -> - | F195: - | G195: =SUMIF(出库表!B:B,库存表!A195,出库表!E:E)-SUMIF(退货表!B:B,库存表!A195,退货表!E:E) -> 0 | H195: =IFERROR(VLOOKUP(A195,商品信息!A:F,6,0),"-") -> - | I195: - | J195: 0 | K195: -
B196: =IFERROR(VLOOKUP(A196,商品信息!A:F,2,0),"-") -> - | C196: =IFERROR(VLOOKUP(A196,商品信息!A:F,3,0),"-") -> - | D196: =SUMIF(入库表!B:B,库存表!A196,入库表!E:E) -> 0 | E196: =IFERROR(VLOOKUP(A196,商品信息!A:F,5,0),"-") -> - | F196: =IFERROR(D196*E196,"-") -> - | G196: =SUMIF(出库表!B:B,库存表!A196,出库表!E:E)-SUMIF(退货表!B:B,库存表!A196,退货表!E:E) -> 0 | H196: =IFERROR(VLOOKUP(A196,商品信息!A:F,6,0),"-") -> - | I196: =IFERROR(G196*H196,"-") -> - | J196: =D196-G196 -> 0 | K196: =IFERROR(G196*(H196-E196),"-") -> - | L196: =IF(A196<>"",IF(J196<$O$3,"不足",IF(AND(J196>$O$3,J196<$N$3),"足",IF(J196>$N$3,"过量",""))),"") -> 
B197: =IFERROR(VLOOKUP(A197,商品信息!A:F,2,0),"-") -> - | C197: =IFERROR(VLOOKUP(A197,商品信息!A:F,3,0),"-") -> - | D197: =SUMIF(入库表!B:B,库存表!A197,入库表!E:E) -> 0 | E197: =IFERROR(VLOOKUP(A197,商品信息!A:F,5,0),"-") -> - | F197: - | G197: =SUMIF(出库表!B:B,库存表!A197,出库表!E:E)-SUMIF(退货表!B:B,库存表!A197,退货表!E:E) -> 0 | H197: =IFERROR(VLOOKUP(A197,商品信息!A:F,6,0),"-") -> - | I197: - | J197: 0 | K197: -
B198: =IFERROR(VLOOKUP(A198,商品信息!A:F,2,0),"-") -> - | C198: =IFERROR(VLOOKUP(A198,商品信息!A:F,3,0),"-") -> - | D198: =SUMIF(入库表!B:B,库存表!A198,入库表!E:E) -> 0 | E198: =IFERROR(VLOOKUP(A198,商品信息!A:F,5,0),"-") -> - | F198: - | G198: =SUMIF(出库表!B:B,库存表!A198,出库表!E:E)-SUMIF(退货表!B:B,库存表!A198,退货表!E:E) -> 0 | H198: =IFERROR(VLOOKUP(A198,商品信息!A:F,6,0),"-") -> - | I198: - | J198: 0 | K198: -
B199: =IFERROR(VLOOKUP(A199,商品信息!A:F,2,0),"-") -> - | C199: =IFERROR(VLOOKUP(A199,商品信息!A:F,3,0),"-") -> - | D199: =SUMIF(入库表!B:B,库存表!A199,入库表!E:E) -> 0 | E199: =IFERROR(VLOOKUP(A199,商品信息!A:F,5,0),"-") -> - | F199: - | G199: =SUMIF(出库表!B:B,库存表!A199,出库表!E:E)-SUMIF(退货表!B:B,库存表!A199,退货表!E:E) -> 0 | H199: =IFERROR(VLOOKUP(A199,商品信息!A:F,6,0),"-") -> - | I199: - | J199: 0 | K199: -
B200: =IFERROR(VLOOKUP(A200,商品信息!A:F,2,0),"-") -> - | C200: =IFERROR(VLOOKUP(A200,商品信息!A:F,3,0),"-") -> - | D200: =SUMIF(入库表!B:B,库存表!A200,入库表!E:E) -> 0 | E200: =IFERROR(VLOOKUP(A200,商品信息!A:F,5,0),"-") -> - | F200: - | G200: =SUMIF(出库表!B:B,库存表!A200,出库表!E:E)-SUMIF(退货表!B:B,库存表!A200,退货表!E:E) -> 0 | H200: =IFERROR(VLOOKUP(A200,商品信息!A:F,6,0),"-") -> - | I200: - | J200: 0 | K200: -

Sheet 出入库存查询
A1: 进货日期 | B1: 商品编码 | C1: 商品名称 | D1: 规格型号 | E1: 数 量 | F1: 单 位 | G1: 单价 | H1: 金 额 | I1: 供应商 | J1: 联系电话 | K1: 送货人 | L1: 发货人 | M1: 单号 | N1: 备注
A2: 2018-04-28 | B2: 5566001 | C2: 货品1 | D2: 规格1 | E2: 200 | F2: 瓶 | G2: 500 | H2: 5000 | I2: 供应商1 | J2: 89572111 | K2: 张三 | L2: 李四 | M2: 2018-05-10T11:26:37.750 | N2: 11
A3: 2018-04-28 | B3: 5566002 | C3: 货品2 | D3: 规格2 | E3: 50 | F3: 瓶 | G3: 450 | H3: 9000 | I3: 供应商1 | J3: 89572111 | K3: 张三 | L3: 李四 | M3: 2018-05-10T11:26:37.810 | N3: 22
A4: 2018-04-28 | B4: 5566001 | C4: 货品1 | D4: 规格1 | E4: 10 | F4: 瓶 | G4: 500 | H4: 5000 | I4: 供应商1 | J4: 89572111 | K4: 张三 | L4: 李四 | M4: 2018-05-11T09:20:50.170 | N4: 11
A5: 2018-04-28 | B5: 5566002 | C5: 货品2 | D5: 规格2 | E5: 20 | F5: 瓶 | G5: 450 | H5: 9000 | I5: 供应商1 | J5: 89572111 | K5: 张三 | L5: 李四 | M5: 2018-05-11T09:20:50.240 | N5: 22
A6: 2018-04-28 | B6: 5566003 | C6: 货品3 | D6: 规格3 | E6: 15 | F6: 瓶 | G6: 600 | H6: 9000 | I6: 供应商1 | J6: 89572111 | K6: 张三 | L6: 李四 | M6: 2018-05-11T09:20:50.320 | N6: 33

Sheet 收款录入
A1: 收款明细
A2: 日期 | B2: 客户 | C2: 金额 | D2: 收款方式 | E2: 账户 | F2: 收款人 | G2: 备注
A3: 2018-05-09 | B3: 客户1 | C3: 30000 | D3: 转账 | E3: 建行 | F3: 张三 | G3: 货款
A4: 2018-05-10 | B4: 客户2 | C4: 5000 | D4: 现金 | E4: 农行 | F4: 张三 | G4: 货款

Sheet 付款录入
A1: 付款明细
A2: 日期 | B2: 供应商 | C2: 金额 | D2: 付款方式 | E2: 账户 | F2: 付款人 | G2: 备注
A3: 2018-02-08 | B3: 供应商1 | C3: 20000 | D3: 转账 | E3: 建行 | F3: 张三 | G3: 货款
A4: 2018-02-09 | B4: 供应商2 | C4: 3000 | D4: 现金 | E4: 农行 | F4: 张三 | G4: 货款
I24: 2018-04-30

Sheet 账户余额
A1: 账户余额
A2: 账户 | B2: 期初余额 | C2: 收入 | D2: 支出 | E2: 余额
A3: 建行 | B3: 100000 | C3: =IF(A3="","-",SUMIF(收款录入!E:E,账户余额!A3,收款录入!C:C)) -> 30000 | D3: =IF(A3="","-",SUMIF(付款录入!E:E,账户余额!A3,付款录入!C:C)) -> 20000 | E3: =IFERROR(B3+C3-D3,"-") -> 110000
A4: 农行 | B4: 90000 | C4: =IF(A4="","-",SUMIF(收款录入!E:E,账户余额!A4,收款录入!C:C)) -> 5000 | D4: =IF(A4="","-",SUMIF(付款录入!E:E,账户余额!A4,付款录入!C:C)) -> 3000 | E4: =IFERROR(B4+C4-D4,"-") -> 92000
C5: =IF(A5="","-",SUMIF(收款录入!E:E,账户余额!A5,收款录入!C:C)) -> - | D5: =IF(A5="","-",SUMIF(付款录入!E:E,账户余额!A5,付款录入!C:C)) -> - | E5: -
C6: =IF(A6="","-",SUMIF(收款录入!E:E,账户余额!A6,收款录入!C:C)) -> - | D6: =IF(A6="","-",SUMIF(付款录入!E:E,账户余额!A6,付款录入!C:C)) -> - | E6: -
C7: =IF(A7="","-",SUMIF(收款录入!E:E,账户余额!A7,收款录入!C:C)) -> - | D7: =IF(A7="","-",SUMIF(付款录入!E:E,账户余额!A7,付款录入!C:C)) -> - | E7: -
C8: =IF(A8="","-",SUMIF(收款录入!E:E,账户余额!A8,收款录入!C:C)) -> - | D8: =IF(A8="","-",SUMIF(付款录入!E:E,账户余额!A8,付款录入!C:C)) -> - | E8: -
C9: =IF(A9="","-",SUMIF(收款录入!E:E,账户余额!A9,收款录入!C:C)) -> - | D9: =IF(A9="","-",SUMIF(付款录入!E:E,账户余额!A9,付款录入!C:C)) -> - | E9: -
C10: =IF(A10="","-",SUMIF(收款录入!E:E,账户余额!A10,收款录入!C:C)) -> - | D10: =IF(A10="","-",SUMIF(付款录入!E:E,账户余额!A10,付款录入!C:C)) -> - | E10: -
C11: =IF(A11="","-",SUMIF(收款录入!E:E,账户余额!A11,收款录入!C:C)) -> - | D11: =IF(A11="","-",SUMIF(付款录入!E:E,账户余额!A11,付款录入!C:C)) -> - | E11: -
C12: =IF(A12="","-",SUMIF(收款录入!E:E,账户余额!A12,收款录入!C:C)) -> - | D12: =IF(A12="","-",SUMIF(付款录入!E:E,账户余额!A12,付款录入!C:C)) -> - | E12: -

Sheet 收付款明细查询
A1: 日期 | B1: 客户 | C1: 金额 | D1: 收款方式 | E1: 账户 | F1: 收款人 | G1: 备注
A2: 2018-05-09 | B2: 客户1 | C2: 30000 | D2: 转账 | E2: 建行 | F2: 张三 | G2: 货款

Sheet 日收支统计
A1: 日收支统计
A2: 11 | B2: 月 | C2: 收入 | D2: 支出
A3: 1 | C3: =SUMPRODUCT((MONTH(出库表!$A$3:$A$4999)=日收支统计!$A$2)*(DAY(出库表!$A$3:$A$4999)=日收支统计!A3)*出库表!$H$3:$H$4999) -> 37600 | D3: =SUMPRODUCT((MONTH(入库表!$A$3:$A$5000)=日收支统计!$A$2)*(DAY(入库表!$A$3:$A$5000)=日收支统计!A3)*入库表!$H$3:$H$5000) -> 0
A4: 2 | C4: =SUMPRODUCT((MONTH(出库表!$A$3:$A$4999)=日收支统计!$A$2)*(DAY(出库表!$A$3:$A$4999)=日收支统计!A4)*出库表!$H$3:$H$4999) -> 37600 | D4: =SUMPRODUCT((MONTH(入库表!$A$3:$A$5000)=日收支统计!$A$2)*(DAY(入库表!$A$3:$A$5000)=日收支统计!A4)*入库表!$H$3:$H$5000) -> 0
A5: 3 | C5: =SUMPRODUCT((MONTH(出库表!$A$3:$A$4999)=日收支统计!$A$2)*(DAY(出库表!$A$3:$A$4999)=日收支统计!A5)*出库表!$H$3:$H$4999) -> 0 | D5: =SUMPRODUCT((MONTH(入库表!$A$3:$A$5000)=日收支统计!$A$2)*(DAY(入库表!$A$3:$A$5000)=日收支统计!A5)*入库表!$H$3:$H$5000) -> 0
A6: 4 | C6: =SUMPRODUCT((MONTH(出库表!$A$3:$A$4999)=日收支统计!$A$2)*(DAY(出库表!$A$3:$A$4999)=日收支统计!A6)*出库表!$H$3:$H$4999) -> 0 | D6: =SUMPRODUCT((MONTH(入库表!$A$3:$A$5000)=日收支统计!$A$2)*(DAY(入库表!$A$3:$A$5000)=日收支统计!A6)*入库表!$H$3:$H$5000) -> 0
A7: 5 | C7: =SUMPRODUCT((MONTH(出库表!$A$3:$A$4999)=日收支统计!$A$2)*(DAY(出库表!$A$3:$A$4999)=日收支统计!A7)*出库表!$H$3:$H$4999) -> 0 | D7: =SUMPRODUCT((MONTH(入库表!$A$3:$A$5000)=日收支统计!$A$2)*(DAY(入库表!$A$3:$A$5000)=日收支统计!A7)*入库表!$H$3:$H$5000) -> 0
A8: 6 | C8: =SUMPRODUCT((MONTH(出库表!$A$3:$A$4999)=日收支统计!$A$2)*(DAY(出库表!$A$3:$A$4999)=日收支统计!A8)*出库表!$H$3:$H$4999) -> 0 | D8: =SUMPRODUCT((MONTH(入库表!$A$3:$A$5000)=日收支统计!$A$2)*(DAY(入库表!$A$3:$A$5000)=日收支统计!A8)*入库表!$H$3:$H$5000) -> 0
A9: 7 | C9: =SUMPRODUCT((MONTH(出库表!$A$3:$A$4999)=日收支统计!$A$2)*(DAY(出库表!$A$3:$A$4999)=日收支统计!A9)*出库表!$H$3:$H$4999) -> 0 | D9: =SUMPRODUCT((MONTH(入库表!$A$3:$A$5000)=日收支统计!$A$2)*(DAY(入库表!$A$3:$A$5000)=日收支统计!A9)*入库表!$H$3:$H$5000) -> 0
A10: 8 | C10: =SUMPRODUCT((MONTH(出库表!$A$3:$A$4999)=日收支统计!$A$2)*(DAY(出库表!$A$3:$A$4999)=日收支统计!A10)*出库表!$H$3:$H$4999) -> 0 | D10: =SUMPRODUCT((MONTH(入库表!$A$3:$A$5000)=日收支统计!$A$2)*(DAY(入库表!$A$3:$A$5000)=日收支统计!A10)*入库表!$H$3:$H$5000) -> 0
A11: 9 | C11: =SUMPRODUCT((MONTH(出库表!$A$3:$A$4999)=日收支统计!$A$2)*(DAY(出库表!$A$3:$A$4999)=日收支统计!A11)*出库表!$H$3:$H$4999) -> 16500 | D11: =SUMPRODUCT((MONTH(入库表!$A$3:$A$5000)=日收支统计!$A$2)*(DAY(入库表!$A$3:$A$5000)=日收支统计!A11)*入库表!$H$3:$H$5000) -> 0
A12: 10 | C12: =SUMPRODUCT((MONTH(出库表!$A$3:$A$4999)=日收支统计!$A$2)*(DAY(出库表!$A$3:$A$4999)=日收支统计!A12)*出库表!$H$3:$H$4999) -> 0 | D12: =SUMPRODUCT((MONTH(入库表!$A$3:$A$5000)=日收支统计!$A$2)*(DAY(入库表!$A$3:$A$5000)=日收支统计!A12)*入库表!$H$3:$H$5000) -> 0
A13: 11 | C13: =SUMPRODUCT((MONTH(出库表!$A$3:$A$4999)=日收支统计!$A$2)*(DAY(出库表!$A$3:$A$4999)=日收支统计!A13)*出库表!$H$3:$H$4999) -> 0 | D13: =SUMPRODUCT((MONTH(入库表!$A$3:$A$5000)=日收支统计!$A$2)*(DAY(入库表!$A$3:$A$5000)=日收支统计!A13)*入库表!$H$3:$H$5000) -> 0
A14: 12 | C14: =SUMPRODUCT((MONTH(出库表!$A$3:$A$4999)=日收支统计!$A$2)*(DAY(出库表!$A$3:$A$4999)=日收支统计!A14)*出库表!$H$3:$H$4999) -> 0 | D14: =SUMPRODUCT((MONTH(入库表!$A$3:$A$5000)=日收支统计!$A$2)*(DAY(入库表!$A$3:$A$5000)=日收支统计!A14)*入库表!$H$3:$H$5000) -> 0
A15: 13 | C15: =SUMPRODUCT((MONTH(出库表!$A$3:$A$4999)=日收支统计!$A$2)*(DAY(出库表!$A$3:$A$4999)=日收支统计!A15)*出库表!$H$3:$H$4999) -> 0 | D15: =SUMPRODUCT((MONTH(入库表!$A$3:$A$5000)=日收支统计!$A$2)*(DAY(入库表!$A$3:$A$5000)=日收支统计!A15)*入库表!$H$3:$H$5000) -> 0
A16: 14 | C16: =SUMPRODUCT((MONTH(出库表!$A$3:$A$4999)=日收支统计!$A$2)*(DAY(出库表!$A$3:$A$4999)=日收支统计!A16)*出库表!$H$3:$H$4999) -> 0 | D16: =SUMPRODUCT((MONTH(入库表!$A$3:$A$5000)=日收支统计!$A$2)*(DAY(入库表!$A$3:$A$5000)=日收支统计!A16)*入库表!$H$3:$H$5000) -> 0
A17: 15 | C17: =SUMPRODUCT((MONTH(出库表!$A$3:$A$4999)=日收支统计!$A$2)*(DAY(出库表!$A$3:$A$4999)=日收支统计!A17)*出库表!$H$3:$H$4999) -> 0 | D17: =SUMPRODUCT((MONTH(入库表!$A$3:$A$5000)=日收支统计!$A$2)*(DAY(入库表!$A$3:$A$5000)=日收支统计!A17)*入库表!$H$3:$H$5000) -> 0
A18: 16 | C18: =SUMPRODUCT((MONTH(出库表!$A$3:$A$4999)=日收支统计!$A$2)*(DAY(出库表!$A$3:$A$4999)=日收支统计!A18)*出库表!$H$3:$H$4999) -> 0 | D18: =SUMPRODUCT((MONTH(入库表!$A$3:$A$5000)=日收支统计!$A$2)*(DAY(入库表!$A$3:$A$5000)=日收支统计!A18)*入库表!$H$3:$H$5000) -> 0
A19: 17 | C19: =SUMPRODUCT((MONTH(出库表!$A$3:$A$4999)=日收支统计!$A$2)*(DAY(出库表!$A$3:$A$4999)=日收支统计!A19)*出库表!$H$3:$H$4999) -> 0 | D19: =SUMPRODUCT((MONTH(入库表!$A$3:$A$5000)=日收支统计!$A$2)*(DAY(入库表!$A$3:$A$5000)=日收支统计!A19)*入库表!$H$3:$H$5000) -> 0
A20: 18 | C20: =SUMPRODUCT((MONTH(出库表!$A$3:$A$4999)=日收支统计!$A$2)*(DAY(出库表!$A$3:$A$4999)=日收支统计!A20)*出库表!$H$3:$H$4999) -> 0 | D20: =SUMPRODUCT((MONTH(入库表!$A$3:$A$5000)=日收支统计!$A$2)*(DAY(入库表!$A$3:$A$5000)=日收支统计!A20)*入库表!$H$3:$H$5000) -> 0
A21: 19 | C21: =SUMPRODUCT((MONTH(出库表!$A$3:$A$4999)=日收支统计!$A$2)*(DAY(出库表!$A$3:$A$4999)=日收支统计!A21)*出库表!$H$3:$H$4999) -> 0 | D21: =SUMPRODUCT((MONTH(入库表!$A$3:$A$5000)=日收支统计!$A$2)*(DAY(入库表!$A$3:$A$5000)=日收支统计!A21)*入库表!$H$3:$H$5000) -> 0
A22: 20 | C22: =SUMPRODUCT((MONTH(出库表!$A$3:$A$4999)=日收支统计!$A$2)*(DAY(出库表!$A$3:$A$4999)=日收支统计!A22)*出库表!$H$3:$H$4999) -> 0 | D22: =SUMPRODUCT((MONTH(入库表!$A$3:$A$5000)=日收支统计!$A$2)*(DAY(入库表!$A$3:$A$5000)=日收支统计!A22)*入库表!$H$3:$H$5000) -> 0
A23: 21 | C23: =SUMPRODUCT((MONTH(出库表!$A$3:$A$4999)=日收支统计!$A$2)*(DAY(出库表!$A$3:$A$4999)=日收支统计!A23)*出库表!$H$3:$H$4999) -> 0 | D23: =SUMPRODUCT((MONTH(入库表!$A$3:$A$5000)=日收支统计!$A$2)*(DAY(入库表!$A$3:$A$5000)=日收支统计!A23)*入库表!$H$3:$H$5000) -> 0
A24: 22 | C24: =SUMPRODUCT((MONTH(出库表!$A$3:$A$4999)=日收支统计!$A$2)*(DAY(出库表!$A$3:$A$4999)=日收支统计!A24)*出库表!$H$3:$H$4999) -> 0 | D24: =SUMPRODUCT((MONTH(入库表!$A$3:$A$5000)=日收支统计!$A$2)*(DAY(入库表!$A$3:$A$5000)=日收支统计!A24)*入库表!$H$3:$H$5000) -> 0
A25: 23 | C25: =SUMPRODUCT((MONTH(出库表!$A$3:$A$4999)=日收支统计!$A$2)*(DAY(出库表!$A$3:$A$4999)=日收支统计!A25)*出库表!$H$3:$H$4999) -> 0 | D25: =SUMPRODUCT((MONTH(入库表!$A$3:$A$5000)=日收支统计!$A$2)*(DAY(入库表!$A$3:$A$5000)=日收支统计!A25)*入库表!$H$3:$H$5000) -> 0
A26: 24 | C26: =SUMPRODUCT((MONTH(出库表!$A$3:$A$4999)=日收支统计!$A$2)*(DAY(出库表!$A$3:$A$4999)=日收支统计!A26)*出库表!$H$3:$H$4999) -> 0 | D26: =SUMPRODUCT((MONTH(入库表!$A$3:$A$5000)=日收支统计!$A$2)*(DAY(入库表!$A$3:$A$5000)=日收支统计!A26)*入库表!$H$3:$H$5000) -> 0
A27: 25 | C27: =SUMPRODUCT((MONTH(出库表!$A$3:$A$4999)=日收支统计!$A$2)*(DAY(出库表!$A$3:$A$4999)=日收支统计!A27)*出库表!$H$3:$H$4999) -> 0 | D27: =SUMPRODUCT((MONTH(入库表!$A$3:$A$5000)=日收支统计!$A$2)*(DAY(入库表!$A$3:$A$5000)=日收支统计!A27)*入库表!$H$3:$H$5000) -> 0
A28: 26 | C28: =SUMPRODUCT((MONTH(出库表!$A$3:$A$4999)=日收支统计!$A$2)*(DAY(出库表!$A$3:$A$4999)=日收支统计!A28)*出库表!$H$3:$H$4999) -> 0 | D28: =SUMPRODUCT((MONTH(入库表!$A$3:$A$5000)=日收支统计!$A$2)*(DAY(入库表!$A$3:$A$5000)=日收支统计!A28)*入库表!$H$3:$H$5000) -> 0
A29: 27 | C29: =SUMPRODUCT((MONTH(出库表!$A$3:$A$4999)=日收支统计!$A$2)*(DAY(出库表!$A$3:$A$4999)=日收支统计!A29)*出库表!$H$3:$H$4999) -> 0 | D29: =SUMPRODUCT((MONTH(入库表!$A$3:$A$5000)=日收支统计!$A$2)*(DAY(入库表!$A$3:$A$5000)=日收支统计!A29)*入库表!$H$3:$H$5000) -> 0
A30: 28 | C30: =SUMPRODUCT((MONTH(出库表!$A$3:$A$4999)=日收支统计!$A$2)*(DAY(出库表!$A$3:$A$4999)=日收支统计!A30)*出库表!$H$3:$H$4999) -> 0 | D30: =SUMPRODUCT((MONTH(入库表!$A$3:$A$5000)=日收支统计!$A$2)*(DAY(入库表!$A$3:$A$5000)=日收支统计!A30)*入库表!$H$3:$H$5000) -> 9000
A31: 29 | C31: =SUMPRODUCT((MONTH(出库表!$A$3:$A$4999)=日收支统计!$A$2)*(DAY(出库表!$A$3:$A$4999)=日收支统计!A31)*出库表!$H$3:$H$4999) -> 0 | D31: =SUMPRODUCT((MONTH(入库表!$A$3:$A$5000)=日收支统计!$A$2)*(DAY(入库表!$A$3:$A$5000)=日收支统计!A31)*入库表!$H$3:$H$5000) -> 0
A32: 30 | C32: =SUMPRODUCT((MONTH(出库表!$A$3:$A$4999)=日收支统计!$A$2)*(DAY(出库表!$A$3:$A$4999)=日收支统计!A32)*出库表!$H$3:$H$4999) -> 0 | D32: =SUMPRODUCT((MONTH(入库表!$A$3:$A$5000)=日收支统计!$A$2)*(DAY(入库表!$A$3:$A$5000)=日收支统计!A32)*入库表!$H$3:$H$5000) -> 0
A33: 31 | C33: =SUMPRODUCT((MONTH(出库表!$A$3:$A$4999)=日收支统计!$A$2)*(DAY(出库表!$A$3:$A$4999)=日收支统计!A33)*出库表!$H$3:$H$4999) -> 0 | D33: =SUMPRODUCT((MONTH(入库表!$A$3:$A$5000)=日收支统计!$A$2)*(DAY(入库表!$A$3:$A$5000)=日收支统计!A33)*入库表!$H$3:$H$5000) -> 0

Sheet 应收汇总
A1: 应收汇总
A2: 客户名称 | B2: 应收金额 | C2: 实收金额 | D2: 欠款金额
A3: 客户1 | B3: =SUMIF(出库表!I:I,应收汇总!A3,出库表!H:H) -> 75200 | C3: =SUMIF(收款录入!B:B,应收汇总!A3,收款录入!C:C) -> 30000 | D3: =B3-C3 -> 45200
A4: 客户2 | B4: =SUMIF(出库表!I:I,应收汇总!A4,出库表!H:H) -> 36500 | C4: =SUMIF(收款录入!B:B,应收汇总!A4,收款录入!C:C) -> 5000 | D4: =B4-C4 -> 31500
B5: =SUMIF(出库表!I:I,应收汇总!A5,出库表!H:H) -> 0 | C5: =SUMIF(收款录入!B:B,应收汇总!A5,收款录入!C:C) -> 0 | D5: 0
B6: =SUMIF(出库表!I:I,应收汇总!A6,出库表!H:H) -> 0 | C6: =SUMIF(收款录入!B:B,应收汇总!A6,收款录入!C:C) -> 0 | D6: 0
B7: =SUMIF(出库表!I:I,应收汇总!A7,出库表!H:H) -> 0 | C7: =SUMIF(收款录入!B:B,应收汇总!A7,收款录入!C:C) -> 0 | D7: 0
B8: =SUMIF(出库表!I:I,应收汇总!A8,出库表!H:H) -> 0 | C8: =SUMIF(收款录入!B:B,应收汇总!A8,收款录入!C:C) -> 0 | D8: 0
B9: =SUMIF(出库表!I:I,应收汇总!A9,出库表!H:H) -> 0 | C9: =SUMIF(收款录入!B:B,应收汇总!A9,收款录入!C:C) -> 0 | D9: 0
B10: =SUMIF(出库表!I:I,应收汇总!A10,出库表!H:H) -> 0 | C10: =SUMIF(收款录入!B:B,应收汇总!A10,收款录入!C:C) -> 0 | D10: 0
B11: =SUMIF(出库表!I:I,应收汇总!A11,出库表!H:H) -> 0 | C11: =SUMIF(收款录入!B:B,应收汇总!A11,收款录入!C:C) -> 0 | D11: 0
B12: =SUMIF(出库表!I:I,应收汇总!A12,出库表!H:H) -> 0 | C12: =SUMIF(收款录入!B:B,应收汇总!A12,收款录入!C:C) -> 0 | D12: 0
B13: =SUMIF(出库表!I:I,应收汇总!A13,出库表!H:H) -> 0 | C13: =SUMIF(收款录入!B:B,应收汇总!A13,收款录入!C:C) -> 0 | D13: 0
B14: =SUMIF(出库表!I:I,应收汇总!A14,出库表!H:H) -> 0 | C14: =SUMIF(收款录入!B:B,应收汇总!A14,收款录入!C:C) -> 0 | D14: 0
B15: =SUMIF(出库表!I:I,应收汇总!A15,出库表!H:H) -> 0 | C15: =SUMIF(收款录入!B:B,应收汇总!A15,收款录入!C:C) -> 0 | D15: 0
B16: =SUMIF(出库表!I:I,应收汇总!A16,出库表!H:H) -> 0 | C16: =SUMIF(收款录入!B:B,应收汇总!A16,收款录入!C:C) -> 0 | D16: 0
B17: =SUMIF(出库表!I:I,应收汇总!A17,出库表!H:H) -> 0 | C17: =SUMIF(收款录入!B:B,应收汇总!A17,收款录入!C:C) -> 0 | D17: 0
B18: =SUMIF(出库表!I:I,应收汇总!A18,出库表!H:H) -> 0 | C18: =SUMIF(收款录入!B:B,应收汇总!A18,收款录入!C:C) -> 0 | D18: 0
B19: =SUMIF(出库表!I:I,应收汇总!A19,出库表!H:H) -> 0 | C19: =SUMIF(收款录入!B:B,应收汇总!A19,收款录入!C:C) -> 0 | D19: 0
B20: =SUMIF(出库表!I:I,应收汇总!A20,出库表!H:H) -> 0 | C20: =SUMIF(收款录入!B:B,应收汇总!A20,收款录入!C:C) -> 0 | D20: 0
B21: =SUMIF(出库表!I:I,应收汇总!A21,出库表!H:H) -> 0 | C21: =SUMIF(收款录入!B:B,应收汇总!A21,收款录入!C:C) -> 0 | D21: 0
B22: =SUMIF(出库表!I:I,应收汇总!A22,出库表!H:H) -> 0 | C22: =SUMIF(收款录入!B:B,应收汇总!A22,收款录入!C:C) -> 0 | D22: 0
B23: =SUMIF(出库表!I:I,应收汇总!A23,出库表!H:H) -> 0 | C23: =SUMIF(收款录入!B:B,应收汇总!A23,收款录入!C:C) -> 0 | D23: 0
B24: =SUMIF(出库表!I:I,应收汇总!A24,出库表!H:H) -> 0 | C24: =SUMIF(收款录入!B:B,应收汇总!A24,收款录入!C:C) -> 0 | D24: 0
B25: =SUMIF(出库表!I:I,应收汇总!A25,出库表!H:H) -> 0 | C25: =SUMIF(收款录入!B:B,应收汇总!A25,收款录入!C:C) -> 0 | D25: 0
B26: =SUMIF(出库表!I:I,应收汇总!A26,出库表!H:H) -> 0 | C26: =SUMIF(收款录入!B:B,应收汇总!A26,收款录入!C:C) -> 0 | D26: 0
B27: =SUMIF(出库表!I:I,应收汇总!A27,出库表!H:H) -> 0 | C27: =SUMIF(收款录入!B:B,应收汇总!A27,收款录入!C:C) -> 0 | D27: 0
B28: =SUMIF(出库表!I:I,应收汇总!A28,出库表!H:H) -> 0 | C28: =SUMIF(收款录入!B:B,应收汇总!A28,收款录入!C:C) -> 0 | D28: 0
B29: =SUMIF(出库表!I:I,应收汇总!A29,出库表!H:H) -> 0 | C29: =SUMIF(收款录入!B:B,应收汇总!A29,收款录入!C:C) -> 0 | D29: 0
B30: =SUMIF(出库表!I:I,应收汇总!A30,出库表!H:H) -> 0 | C30: =SUMIF(收款录入!B:B,应收汇总!A30,收款录入!C:C) -> 0 | D30: 0
B31: =SUMIF(出库表!I:I,应收汇总!A31,出库表!H:H) -> 0 | C31: =SUMIF(收款录入!B:B,应收汇总!A31,收款录入!C:C) -> 0 | D31: 0
B32: =SUMIF(出库表!I:I,应收汇总!A32,出库表!H:H) -> 0 | C32: =SUMIF(收款录入!B:B,应收汇总!A32,收款录入!C:C) -> 0 | D32: 0
B33: =SUMIF(出库表!I:I,应收汇总!A33,出库表!H:H) -> 0 | C33: =SUMIF(收款录入!B:B,应收汇总!A33,收款录入!C:C) -> 0 | D33: 0
B34: =SUMIF(出库表!I:I,应收汇总!A34,出库表!H:H) -> 0 | C34: =SUMIF(收款录入!B:B,应收汇总!A34,收款录入!C:C) -> 0 | D34: 0
B35: =SUMIF(出库表!I:I,应收汇总!A35,出库表!H:H) -> 0 | C35: =SUMIF(收款录入!B:B,应收汇总!A35,收款录入!C:C) -> 0 | D35: 0
B36: =SUMIF(出库表!I:I,应收汇总!A36,出库表!H:H) -> 0 | C36: =SUMIF(收款录入!B:B,应收汇总!A36,收款录入!C:C) -> 0 | D36: 0
B37: =SUMIF(出库表!I:I,应收汇总!A37,出库表!H:H) -> 0 | C37: =SUMIF(收款录入!B:B,应收汇总!A37,收款录入!C:C) -> 0 | D37: 0
B38: =SUMIF(出库表!I:I,应收汇总!A38,出库表!H:H) -> 0 | C38: =SUMIF(收款录入!B:B,应收汇总!A38,收款录入!C:C) -> 0 | D38: 0
B39: =SUMIF(出库表!I:I,应收汇总!A39,出库表!H:H) -> 0 | C39: =SUMIF(收款录入!B:B,应收汇总!A39,收款录入!C:C) -> 0 | D39: 0
B40: =SUMIF(出库表!I:I,应收汇总!A40,出库表!H:H) -> 0 | C40: =SUMIF(收款录入!B:B,应收汇总!A40,收款录入!C:C) -> 0 | D40: 0
B41: =SUMIF(出库表!I:I,应收汇总!A41,出库表!H:H) -> 0 | C41: =SUMIF(收款录入!B:B,应收汇总!A41,收款录入!C:C) -> 0 | D41: 0
B42: =SUMIF(出库表!I:I,应收汇总!A42,出库表!H:H) -> 0 | C42: =SUMIF(收款录入!B:B,应收汇总!A42,收款录入!C:C) -> 0 | D42: 0
B43: =SUMIF(出库表!I:I,应收汇总!A43,出库表!H:H) -> 0 | C43: =SUMIF(收款录入!B:B,应收汇总!A43,收款录入!C:C) -> 0 | D43: 0
B44: =SUMIF(出库表!I:I,应收汇总!A44,出库表!H:H) -> 0 | C44: =SUMIF(收款录入!B:B,应收汇总!A44,收款录入!C:C) -> 0 | D44: 0
B45: =SUMIF(出库表!I:I,应收汇总!A45,出库表!H:H) -> 0 | C45: =SUMIF(收款录入!B:B,应收汇总!A45,收款录入!C:C) -> 0 | D45: 0
B46: =SUMIF(出库表!I:I,应收汇总!A46,出库表!H:H) -> 0 | C46: =SUMIF(收款录入!B:B,应收汇总!A46,收款录入!C:C) -> 0 | D46: 0
B47: =SUMIF(出库表!I:I,应收汇总!A47,出库表!H:H) -> 0 | C47: =SUMIF(收款录入!B:B,应收汇总!A47,收款录入!C:C) -> 0 | D47: 0
B48: =SUMIF(出库表!I:I,应收汇总!A48,出库表!H:H) -> 0 | C48: =SUMIF(收款录入!B:B,应收汇总!A48,收款录入!C:C) -> 0 | D48: 0
B49: =SUMIF(出库表!I:I,应收汇总!A49,出库表!H:H) -> 0 | C49: =SUMIF(收款录入!B:B,应收汇总!A49,收款录入!C:C) -> 0 | D49: 0
B50: =SUMIF(出库表!I:I,应收汇总!A50,出库表!H:H) -> 0 | C50: =SUMIF(收款录入!B:B,应收汇总!A50,收款录入!C:C) -> 0 | D50: 0
B51: =SUMIF(出库表!I:I,应收汇总!A51,出库表!H:H) -> 0 | C51: =SUMIF(收款录入!B:B,应收汇总!A51,收款录入!C:C) -> 0 | D51: 0
B52: =SUMIF(出库表!I:I,应收汇总!A52,出库表!H:H) -> 0 | C52: =SUMIF(收款录入!B:B,应收汇总!A52,收款录入!C:C) -> 0 | D52: 0
B53: =SUMIF(出库表!I:I,应收汇总!A53,出库表!H:H) -> 0 | C53: =SUMIF(收款录入!B:B,应收汇总!A53,收款录入!C:C) -> 0 | D53: 0
B54: =SUMIF(出库表!I:I,应收汇总!A54,出库表!H:H) -> 0 | C54: =SUMIF(收款录入!B:B,应收汇总!A54,收款录入!C:C) -> 0 | D54: 0
B55: =SUMIF(出库表!I:I,应收汇总!A55,出库表!H:H) -> 0 | C55: =SUMIF(收款录入!B:B,应收汇总!A55,收款录入!C:C) -> 0 | D55: 0
B56: =SUMIF(出库表!I:I,应收汇总!A56,出库表!H:H) -> 0 | C56: =SUMIF(收款录入!B:B,应收汇总!A56,收款录入!C:C) -> 0 | D56: 0
B57: =SUMIF(出库表!I:I,应收汇总!A57,出库表!H:H) -> 0 | C57: =SUMIF(收款录入!B:B,应收汇总!A57,收款录入!C:C) -> 0 | D57: 0
B58: =SUMIF(出库表!I:I,应收汇总!A58,出库表!H:H) -> 0 | C58: =SUMIF(收款录入!B:B,应收汇总!A58,收款录入!C:C) -> 0 | D58: 0
B59: =SUMIF(出库表!I:I,应收汇总!A59,出库表!H:H) -> 0 | C59: =SUMIF(收款录入!B:B,应收汇总!A59,收款录入!C:C) -> 0 | D59: 0
B60: =SUMIF(出库表!I:I,应收汇总!A60,出库表!H:H) -> 0 | C60: =SUMIF(收款录入!B:B,应收汇总!A60,收款录入!C:C) -> 0 | D60: 0
B61: =SUMIF(出库表!I:I,应收汇总!A61,出库表!H:H) -> 0 | C61: =SUMIF(收款录入!B:B,应收汇总!A61,收款录入!C:C) -> 0 | D61: 0
B62: =SUMIF(出库表!I:I,应收汇总!A62,出库表!H:H) -> 0 | C62: =SUMIF(收款录入!B:B,应收汇总!A62,收款录入!C:C) -> 0 | D62: 0
B63: =SUMIF(出库表!I:I,应收汇总!A63,出库表!H:H) -> 0 | C63: =SUMIF(收款录入!B:B,应收汇总!A63,收款录入!C:C) -> 0 | D63: 0
B64: =SUMIF(出库表!I:I,应收汇总!A64,出库表!H:H) -> 0 | C64: =SUMIF(收款录入!B:B,应收汇总!A64,收款录入!C:C) -> 0 | D64: 0
B65: =SUMIF(出库表!I:I,应收汇总!A65,出库表!H:H) -> 0 | C65: =SUMIF(收款录入!B:B,应收汇总!A65,收款录入!C:C) -> 0 | D65: 0
B66: =SUMIF(出库表!I:I,应收汇总!A66,出库表!H:H) -> 0 | C66: =SUMIF(收款录入!B:B,应收汇总!A66,收款录入!C:C) -> 0 | D66: 0
B67: =SUMIF(出库表!I:I,应收汇总!A67,出库表!H:H) -> 0 | C67: =SUMIF(收款录入!B:B,应收汇总!A67,收款录入!C:C) -> 0 | D67: 0
B68: =SUMIF(出库表!I:I,应收汇总!A68,出库表!H:H) -> 0 | C68: =SUMIF(收款录入!B:B,应收汇总!A68,收款录入!C:C) -> 0 | D68: =B68-C68 -> 0
B69: =SUMIF(出库表!I:I,应收汇总!A69,出库表!H:H) -> 0 | C69: =SUMIF(收款录入!B:B,应收汇总!A69,收款录入!C:C) -> 0 | D69: 0
B70: =SUMIF(出库表!I:I,应收汇总!A70,出库表!H:H) -> 0 | C70: =SUMIF(收款录入!B:B,应收汇总!A70,收款录入!C:C) -> 0 | D70: 0
B71: =SUMIF(出库表!I:I,应收汇总!A71,出库表!H:H) -> 0 | C71: =SUMIF(收款录入!B:B,应收汇总!A71,收款录入!C:C) -> 0 | D71: 0
B72: =SUMIF(出库表!I:I,应收汇总!A72,出库表!H:H) -> 0 | C72: =SUMIF(收款录入!B:B,应收汇总!A72,收款录入!C:C) -> 0 | D72: 0
B73: =SUMIF(出库表!I:I,应收汇总!A73,出库表!H:H) -> 0 | C73: =SUMIF(收款录入!B:B,应收汇总!A73,收款录入!C:C) -> 0 | D73: 0
B74: =SUMIF(出库表!I:I,应收汇总!A74,出库表!H:H) -> 0 | C74: =SUMIF(收款录入!B:B,应收汇总!A74,收款录入!C:C) -> 0 | D74: 0
B75: =SUMIF(出库表!I:I,应收汇总!A75,出库表!H:H) -> 0 | C75: =SUMIF(收款录入!B:B,应收汇总!A75,收款录入!C:C) -> 0 | D75: 0
B76: =SUMIF(出库表!I:I,应收汇总!A76,出库表!H:H) -> 0 | C76: =SUMIF(收款录入!B:B,应收汇总!A76,收款录入!C:C) -> 0 | D76: 0
B77: =SUMIF(出库表!I:I,应收汇总!A77,出库表!H:H) -> 0 | C77: =SUMIF(收款录入!B:B,应收汇总!A77,收款录入!C:C) -> 0 | D77: 0
B78: =SUMIF(出库表!I:I,应收汇总!A78,出库表!H:H) -> 0 | C78: =SUMIF(收款录入!B:B,应收汇总!A78,收款录入!C:C) -> 0 | D78: 0
B79: =SUMIF(出库表!I:I,应收汇总!A79,出库表!H:H) -> 0 | C79: =SUMIF(收款录入!B:B,应收汇总!A79,收款录入!C:C) -> 0 | D79: 0
B80: =SUMIF(出库表!I:I,应收汇总!A80,出库表!H:H) -> 0 | C80: =SUMIF(收款录入!B:B,应收汇总!A80,收款录入!C:C) -> 0 | D80: 0
B81: =SUMIF(出库表!I:I,应收汇总!A81,出库表!H:H) -> 0 | C81: =SUMIF(收款录入!B:B,应收汇总!A81,收款录入!C:C) -> 0 | D81: 0
B82: =SUMIF(出库表!I:I,应收汇总!A82,出库表!H:H) -> 0 | C82: =SUMIF(收款录入!B:B,应收汇总!A82,收款录入!C:C) -> 0 | D82: 0
B83: =SUMIF(出库表!I:I,应收汇总!A83,出库表!H:H) -> 0 | C83: =SUMIF(收款录入!B:B,应收汇总!A83,收款录入!C:C) -> 0 | D83: 0
B84: =SUMIF(出库表!I:I,应收汇总!A84,出库表!H:H) -> 0 | C84: =SUMIF(收款录入!B:B,应收汇总!A84,收款录入!C:C) -> 0 | D84: 0
B85: =SUMIF(出库表!I:I,应收汇总!A85,出库表!H:H) -> 0 | C85: =SUMIF(收款录入!B:B,应收汇总!A85,收款录入!C:C) -> 0 | D85: 0
B86: =SUMIF(出库表!I:I,应收汇总!A86,出库表!H:H) -> 0 | C86: =SUMIF(收款录入!B:B,应收汇总!A86,收款录入!C:C) -> 0 | D86: 0
B87: =SUMIF(出库表!I:I,应收汇总!A87,出库表!H:H) -> 0 | C87: =SUMIF(收款录入!B:B,应收汇总!A87,收款录入!C:C) -> 0 | D87: 0
B88: =SUMIF(出库表!I:I,应收汇总!A88,出库表!H:H) -> 0 | C88: =SUMIF(收款录入!B:B,应收汇总!A88,收款录入!C:C) -> 0 | D88: 0
B89: =SUMIF(出库表!I:I,应收汇总!A89,出库表!H:H) -> 0 | C89: =SUMIF(收款录入!B:B,应收汇总!A89,收款录入!C:C) -> 0 | D89: 0
B90: =SUMIF(出库表!I:I,应收汇总!A90,出库表!H:H) -> 0 | C90: =SUMIF(收款录入!B:B,应收汇总!A90,收款录入!C:C) -> 0 | D90: 0
B91: =SUMIF(出库表!I:I,应收汇总!A91,出库表!H:H) -> 0 | C91: =SUMIF(收款录入!B:B,应收汇总!A91,收款录入!C:C) -> 0 | D91: 0
B92: =SUMIF(出库表!I:I,应收汇总!A92,出库表!H:H) -> 0 | C92: =SUMIF(收款录入!B:B,应收汇总!A92,收款录入!C:C) -> 0 | D92: 0
B93: =SUMIF(出库表!I:I,应收汇总!A93,出库表!H:H) -> 0 | C93: =SUMIF(收款录入!B:B,应收汇总!A93,收款录入!C:C) -> 0 | D93: 0
B94: =SUMIF(出库表!I:I,应收汇总!A94,出库表!H:H) -> 0 | C94: =SUMIF(收款录入!B:B,应收汇总!A94,收款录入!C:C) -> 0 | D94: 0
B95: =SUMIF(出库表!I:I,应收汇总!A95,出库表!H:H) -> 0 | C95: =SUMIF(收款录入!B:B,应收汇总!A95,收款录入!C:C) -> 0 | D95: 0
B96: =SUMIF(出库表!I:I,应收汇总!A96,出库表!H:H) -> 0 | C96: =SUMIF(收款录入!B:B,应收汇总!A96,收款录入!C:C) -> 0 | D96: 0
B97: =SUMIF(出库表!I:I,应收汇总!A97,出库表!H:H) -> 0 | C97: =SUMIF(收款录入!B:B,应收汇总!A97,收款录入!C:C) -> 0 | D97: 0
B98: =SUMIF(出库表!I:I,应收汇总!A98,出库表!H:H) -> 0 | C98: =SUMIF(收款录入!B:B,应收汇总!A98,收款录入!C:C) -> 0 | D98: 0
B99: =SUMIF(出库表!I:I,应收汇总!A99,出库表!H:H) -> 0 | C99: =SUMIF(收款录入!B:B,应收汇总!A99,收款录入!C:C) -> 0 | D99: 0
B100: =SUMIF(出库表!I:I,应收汇总!A100,出库表!H:H) -> 0 | C100: =SUMIF(收款录入!B:B,应收汇总!A100,收款录入!C:C) -> 0 | D100: 0
B101: =SUMIF(出库表!I:I,应收汇总!A101,出库表!H:H) -> 0 | C101: =SUMIF(收款录入!B:B,应收汇总!A101,收款录入!C:C) -> 0 | D101: 0
B102: =SUMIF(出库表!I:I,应收汇总!A102,出库表!H:H) -> 0 | C102: =SUMIF(收款录入!B:B,应收汇总!A102,收款录入!C:C) -> 0 | D102: 0
B103: =SUMIF(出库表!I:I,应收汇总!A103,出库表!H:H) -> 0 | C103: =SUMIF(收款录入!B:B,应收汇总!A103,收款录入!C:C) -> 0 | D103: 0
B104: =SUMIF(出库表!I:I,应收汇总!A104,出库表!H:H) -> 0 | C104: =SUMIF(收款录入!B:B,应收汇总!A104,收款录入!C:C) -> 0 | D104: 0
B105: =SUMIF(出库表!I:I,应收汇总!A105,出库表!H:H) -> 0 | C105: =SUMIF(收款录入!B:B,应收汇总!A105,收款录入!C:C) -> 0 | D105: 0
B106: =SUMIF(出库表!I:I,应收汇总!A106,出库表!H:H) -> 0 | C106: =SUMIF(收款录入!B:B,应收汇总!A106,收款录入!C:C) -> 0 | D106: 0
B107: =SUMIF(出库表!I:I,应收汇总!A107,出库表!H:H) -> 0 | C107: =SUMIF(收款录入!B:B,应收汇总!A107,收款录入!C:C) -> 0 | D107: 0
B108: =SUMIF(出库表!I:I,应收汇总!A108,出库表!H:H) -> 0 | C108: =SUMIF(收款录入!B:B,应收汇总!A108,收款录入!C:C) -> 0 | D108: 0
B109: =SUMIF(出库表!I:I,应收汇总!A109,出库表!H:H) -> 0 | C109: =SUMIF(收款录入!B:B,应收汇总!A109,收款录入!C:C) -> 0 | D109: 0
B110: =SUMIF(出库表!I:I,应收汇总!A110,出库表!H:H) -> 0 | C110: =SUMIF(收款录入!B:B,应收汇总!A110,收款录入!C:C) -> 0 | D110: 0
B111: =SUMIF(出库表!I:I,应收汇总!A111,出库表!H:H) -> 0 | C111: =SUMIF(收款录入!B:B,应收汇总!A111,收款录入!C:C) -> 0 | D111: 0
B112: =SUMIF(出库表!I:I,应收汇总!A112,出库表!H:H) -> 0 | C112: =SUMIF(收款录入!B:B,应收汇总!A112,收款录入!C:C) -> 0 | D112: 0
B113: =SUMIF(出库表!I:I,应收汇总!A113,出库表!H:H) -> 0 | C113: =SUMIF(收款录入!B:B,应收汇总!A113,收款录入!C:C) -> 0 | D113: 0
B114: =SUMIF(出库表!I:I,应收汇总!A114,出库表!H:H) -> 0 | C114: =SUMIF(收款录入!B:B,应收汇总!A114,收款录入!C:C) -> 0 | D114: 0
B115: =SUMIF(出库表!I:I,应收汇总!A115,出库表!H:H) -> 0 | C115: =SUMIF(收款录入!B:B,应收汇总!A115,收款录入!C:C) -> 0 | D115: 0
B116: =SUMIF(出库表!I:I,应收汇总!A116,出库表!H:H) -> 0 | C116: =SUMIF(收款录入!B:B,应收汇总!A116,收款录入!C:C) -> 0 | D116: 0
B117: =SUMIF(出库表!I:I,应收汇总!A117,出库表!H:H) -> 0 | C117: =SUMIF(收款录入!B:B,应收汇总!A117,收款录入!C:C) -> 0 | D117: 0
B118: =SUMIF(出库表!I:I,应收汇总!A118,出库表!H:H) -> 0 | C118: =SUMIF(收款录入!B:B,应收汇总!A118,收款录入!C:C) -> 0 | D118: 0
B119: =SUMIF(出库表!I:I,应收汇总!A119,出库表!H:H) -> 0 | C119: =SUMIF(收款录入!B:B,应收汇总!A119,收款录入!C:C) -> 0 | D119: 0
B120: =SUMIF(出库表!I:I,应收汇总!A120,出库表!H:H) -> 0 | C120: =SUMIF(收款录入!B:B,应收汇总!A120,收款录入!C:C) -> 0 | D120: 0
B121: =SUMIF(出库表!I:I,应收汇总!A121,出库表!H:H) -> 0 | C121: =SUMIF(收款录入!B:B,应收汇总!A121,收款录入!C:C) -> 0 | D121: 0
B122: =SUMIF(出库表!I:I,应收汇总!A122,出库表!H:H) -> 0 | C122: =SUMIF(收款录入!B:B,应收汇总!A122,收款录入!C:C) -> 0 | D122: 0
B123: =SUMIF(出库表!I:I,应收汇总!A123,出库表!H:H) -> 0 | C123: =SUMIF(收款录入!B:B,应收汇总!A123,收款录入!C:C) -> 0 | D123: 0
B124: =SUMIF(出库表!I:I,应收汇总!A124,出库表!H:H) -> 0 | C124: =SUMIF(收款录入!B:B,应收汇总!A124,收款录入!C:C) -> 0 | D124: 0
B125: =SUMIF(出库表!I:I,应收汇总!A125,出库表!H:H) -> 0 | C125: =SUMIF(收款录入!B:B,应收汇总!A125,收款录入!C:C) -> 0 | D125: 0
B126: =SUMIF(出库表!I:I,应收汇总!A126,出库表!H:H) -> 0 | C126: =SUMIF(收款录入!B:B,应收汇总!A126,收款录入!C:C) -> 0 | D126: 0
B127: =SUMIF(出库表!I:I,应收汇总!A127,出库表!H:H) -> 0 | C127: =SUMIF(收款录入!B:B,应收汇总!A127,收款录入!C:C) -> 0 | D127: 0
B128: =SUMIF(出库表!I:I,应收汇总!A128,出库表!H:H) -> 0 | C128: =SUMIF(收款录入!B:B,应收汇总!A128,收款录入!C:C) -> 0 | D128: 0
B129: =SUMIF(出库表!I:I,应收汇总!A129,出库表!H:H) -> 0 | C129: =SUMIF(收款录入!B:B,应收汇总!A129,收款录入!C:C) -> 0 | D129: 0
B130: =SUMIF(出库表!I:I,应收汇总!A130,出库表!H:H) -> 0 | C130: =SUMIF(收款录入!B:B,应收汇总!A130,收款录入!C:C) -> 0 | D130: 0
B131: =SUMIF(出库表!I:I,应收汇总!A131,出库表!H:H) -> 0 | C131: =SUMIF(收款录入!B:B,应收汇总!A131,收款录入!C:C) -> 0 | D131: 0
B132: =SUMIF(出库表!I:I,应收汇总!A132,出库表!H:H) -> 0 | C132: =SUMIF(收款录入!B:B,应收汇总!A132,收款录入!C:C) -> 0 | D132: =B132-C132 -> 0
B133: =SUMIF(出库表!I:I,应收汇总!A133,出库表!H:H) -> 0 | C133: =SUMIF(收款录入!B:B,应收汇总!A133,收款录入!C:C) -> 0 | D133: 0
B134: =SUMIF(出库表!I:I,应收汇总!A134,出库表!H:H) -> 0 | C134: =SUMIF(收款录入!B:B,应收汇总!A134,收款录入!C:C) -> 0 | D134: 0
B135: =SUMIF(出库表!I:I,应收汇总!A135,出库表!H:H) -> 0 | C135: =SUMIF(收款录入!B:B,应收汇总!A135,收款录入!C:C) -> 0 | D135: 0
B136: =SUMIF(出库表!I:I,应收汇总!A136,出库表!H:H) -> 0 | C136: =SUMIF(收款录入!B:B,应收汇总!A136,收款录入!C:C) -> 0 | D136: 0
B137: =SUMIF(出库表!I:I,应收汇总!A137,出库表!H:H) -> 0 | C137: =SUMIF(收款录入!B:B,应收汇总!A137,收款录入!C:C) -> 0 | D137: 0
B138: =SUMIF(出库表!I:I,应收汇总!A138,出库表!H:H) -> 0 | C138: =SUMIF(收款录入!B:B,应收汇总!A138,收款录入!C:C) -> 0 | D138: 0
B139: =SUMIF(出库表!I:I,应收汇总!A139,出库表!H:H) -> 0 | C139: =SUMIF(收款录入!B:B,应收汇总!A139,收款录入!C:C) -> 0 | D139: 0
B140: =SUMIF(出库表!I:I,应收汇总!A140,出库表!H:H) -> 0 | C140: =SUMIF(收款录入!B:B,应收汇总!A140,收款录入!C:C) -> 0 | D140: 0
B141: =SUMIF(出库表!I:I,应收汇总!A141,出库表!H:H) -> 0 | C141: =SUMIF(收款录入!B:B,应收汇总!A141,收款录入!C:C) -> 0 | D141: 0
B142: =SUMIF(出库表!I:I,应收汇总!A142,出库表!H:H) -> 0 | C142: =SUMIF(收款录入!B:B,应收汇总!A142,收款录入!C:C) -> 0 | D142: 0
B143: =SUMIF(出库表!I:I,应收汇总!A143,出库表!H:H) -> 0 | C143: =SUMIF(收款录入!B:B,应收汇总!A143,收款录入!C:C) -> 0 | D143: 0
B144: =SUMIF(出库表!I:I,应收汇总!A144,出库表!H:H) -> 0 | C144: =SUMIF(收款录入!B:B,应收汇总!A144,收款录入!C:C) -> 0 | D144: 0
B145: =SUMIF(出库表!I:I,应收汇总!A145,出库表!H:H) -> 0 | C145: =SUMIF(收款录入!B:B,应收汇总!A145,收款录入!C:C) -> 0 | D145: 0
B146: =SUMIF(出库表!I:I,应收汇总!A146,出库表!H:H) -> 0 | C146: =SUMIF(收款录入!B:B,应收汇总!A146,收款录入!C:C) -> 0 | D146: 0
B147: =SUMIF(出库表!I:I,应收汇总!A147,出库表!H:H) -> 0 | C147: =SUMIF(收款录入!B:B,应收汇总!A147,收款录入!C:C) -> 0 | D147: 0
B148: =SUMIF(出库表!I:I,应收汇总!A148,出库表!H:H) -> 0 | C148: =SUMIF(收款录入!B:B,应收汇总!A148,收款录入!C:C) -> 0 | D148: 0
B149: =SUMIF(出库表!I:I,应收汇总!A149,出库表!H:H) -> 0 | C149: =SUMIF(收款录入!B:B,应收汇总!A149,收款录入!C:C) -> 0 | D149: 0
B150: =SUMIF(出库表!I:I,应收汇总!A150,出库表!H:H) -> 0 | C150: =SUMIF(收款录入!B:B,应收汇总!A150,收款录入!C:C) -> 0 | D150: 0
B151: =SUMIF(出库表!I:I,应收汇总!A151,出库表!H:H) -> 0 | C151: =SUMIF(收款录入!B:B,应收汇总!A151,收款录入!C:C) -> 0 | D151: 0
B152: =SUMIF(出库表!I:I,应收汇总!A152,出库表!H:H) -> 0 | C152: =SUMIF(收款录入!B:B,应收汇总!A152,收款录入!C:C) -> 0 | D152: 0
B153: =SUMIF(出库表!I:I,应收汇总!A153,出库表!H:H) -> 0 | C153: =SUMIF(收款录入!B:B,应收汇总!A153,收款录入!C:C) -> 0 | D153: 0
B154: =SUMIF(出库表!I:I,应收汇总!A154,出库表!H:H) -> 0 | C154: =SUMIF(收款录入!B:B,应收汇总!A154,收款录入!C:C) -> 0 | D154: 0
B155: =SUMIF(出库表!I:I,应收汇总!A155,出库表!H:H) -> 0 | C155: =SUMIF(收款录入!B:B,应收汇总!A155,收款录入!C:C) -> 0 | D155: 0
B156: =SUMIF(出库表!I:I,应收汇总!A156,出库表!H:H) -> 0 | C156: =SUMIF(收款录入!B:B,应收汇总!A156,收款录入!C:C) -> 0 | D156: 0
B157: =SUMIF(出库表!I:I,应收汇总!A157,出库表!H:H) -> 0 | C157: =SUMIF(收款录入!B:B,应收汇总!A157,收款录入!C:C) -> 0 | D157: 0
B158: =SUMIF(出库表!I:I,应收汇总!A158,出库表!H:H) -> 0 | C158: =SUMIF(收款录入!B:B,应收汇总!A158,收款录入!C:C) -> 0 | D158: 0
B159: =SUMIF(出库表!I:I,应收汇总!A159,出库表!H:H) -> 0 | C159: =SUMIF(收款录入!B:B,应收汇总!A159,收款录入!C:C) -> 0 | D159: 0
B160: =SUMIF(出库表!I:I,应收汇总!A160,出库表!H:H) -> 0 | C160: =SUMIF(收款录入!B:B,应收汇总!A160,收款录入!C:C) -> 0 | D160: 0
B161: =SUMIF(出库表!I:I,应收汇总!A161,出库表!H:H) -> 0 | C161: =SUMIF(收款录入!B:B,应收汇总!A161,收款录入!C:C) -> 0 | D161: 0
B162: =SUMIF(出库表!I:I,应收汇总!A162,出库表!H:H) -> 0 | C162: =SUMIF(收款录入!B:B,应收汇总!A162,收款录入!C:C) -> 0 | D162: 0
B163: =SUMIF(出库表!I:I,应收汇总!A163,出库表!H:H) -> 0 | C163: =SUMIF(收款录入!B:B,应收汇总!A163,收款录入!C:C) -> 0 | D163: 0
B164: =SUMIF(出库表!I:I,应收汇总!A164,出库表!H:H) -> 0 | C164: =SUMIF(收款录入!B:B,应收汇总!A164,收款录入!C:C) -> 0 | D164: 0
B165: =SUMIF(出库表!I:I,应收汇总!A165,出库表!H:H) -> 0 | C165: =SUMIF(收款录入!B:B,应收汇总!A165,收款录入!C:C) -> 0 | D165: 0
B166: =SUMIF(出库表!I:I,应收汇总!A166,出库表!H:H) -> 0 | C166: =SUMIF(收款录入!B:B,应收汇总!A166,收款录入!C:C) -> 0 | D166: 0
B167: =SUMIF(出库表!I:I,应收汇总!A167,出库表!H:H) -> 0 | C167: =SUMIF(收款录入!B:B,应收汇总!A167,收款录入!C:C) -> 0 | D167: 0
B168: =SUMIF(出库表!I:I,应收汇总!A168,出库表!H:H) -> 0 | C168: =SUMIF(收款录入!B:B,应收汇总!A168,收款录入!C:C) -> 0 | D168: 0
B169: =SUMIF(出库表!I:I,应收汇总!A169,出库表!H:H) -> 0 | C169: =SUMIF(收款录入!B:B,应收汇总!A169,收款录入!C:C) -> 0 | D169: 0
B170: =SUMIF(出库表!I:I,应收汇总!A170,出库表!H:H) -> 0 | C170: =SUMIF(收款录入!B:B,应收汇总!A170,收款录入!C:C) -> 0 | D170: 0
B171: =SUMIF(出库表!I:I,应收汇总!A171,出库表!H:H) -> 0 | C171: =SUMIF(收款录入!B:B,应收汇总!A171,收款录入!C:C) -> 0 | D171: 0
B172: =SUMIF(出库表!I:I,应收汇总!A172,出库表!H:H) -> 0 | C172: =SUMIF(收款录入!B:B,应收汇总!A172,收款录入!C:C) -> 0 | D172: 0
B173: =SUMIF(出库表!I:I,应收汇总!A173,出库表!H:H) -> 0 | C173: =SUMIF(收款录入!B:B,应收汇总!A173,收款录入!C:C) -> 0 | D173: 0
B174: =SUMIF(出库表!I:I,应收汇总!A174,出库表!H:H) -> 0 | C174: =SUMIF(收款录入!B:B,应收汇总!A174,收款录入!C:C) -> 0 | D174: 0
B175: =SUMIF(出库表!I:I,应收汇总!A175,出库表!H:H) -> 0 | C175: =SUMIF(收款录入!B:B,应收汇总!A175,收款录入!C:C) -> 0 | D175: 0
B176: =SUMIF(出库表!I:I,应收汇总!A176,出库表!H:H) -> 0 | C176: =SUMIF(收款录入!B:B,应收汇总!A176,收款录入!C:C) -> 0 | D176: 0
B177: =SUMIF(出库表!I:I,应收汇总!A177,出库表!H:H) -> 0 | C177: =SUMIF(收款录入!B:B,应收汇总!A177,收款录入!C:C) -> 0 | D177: 0
B178: =SUMIF(出库表!I:I,应收汇总!A178,出库表!H:H) -> 0 | C178: =SUMIF(收款录入!B:B,应收汇总!A178,收款录入!C:C) -> 0 | D178: 0
B179: =SUMIF(出库表!I:I,应收汇总!A179,出库表!H:H) -> 0 | C179: =SUMIF(收款录入!B:B,应收汇总!A179,收款录入!C:C) -> 0 | D179: 0
B180: =SUMIF(出库表!I:I,应收汇总!A180,出库表!H:H) -> 0 | C180: =SUMIF(收款录入!B:B,应收汇总!A180,收款录入!C:C) -> 0 | D180: 0
B181: =SUMIF(出库表!I:I,应收汇总!A181,出库表!H:H) -> 0 | C181: =SUMIF(收款录入!B:B,应收汇总!A181,收款录入!C:C) -> 0 | D181: 0
B182: =SUMIF(出库表!I:I,应收汇总!A182,出库表!H:H) -> 0 | C182: =SUMIF(收款录入!B:B,应收汇总!A182,收款录入!C:C) -> 0 | D182: 0
B183: =SUMIF(出库表!I:I,应收汇总!A183,出库表!H:H) -> 0 | C183: =SUMIF(收款录入!B:B,应收汇总!A183,收款录入!C:C) -> 0 | D183: 0
B184: =SUMIF(出库表!I:I,应收汇总!A184,出库表!H:H) -> 0 | C184: =SUMIF(收款录入!B:B,应收汇总!A184,收款录入!C:C) -> 0 | D184: 0
B185: =SUMIF(出库表!I:I,应收汇总!A185,出库表!H:H) -> 0 | C185: =SUMIF(收款录入!B:B,应收汇总!A185,收款录入!C:C) -> 0 | D185: 0
B186: =SUMIF(出库表!I:I,应收汇总!A186,出库表!H:H) -> 0 | C186: =SUMIF(收款录入!B:B,应收汇总!A186,收款录入!C:C) -> 0 | D186: 0
B187: =SUMIF(出库表!I:I,应收汇总!A187,出库表!H:H) -> 0 | C187: =SUMIF(收款录入!B:B,应收汇总!A187,收款录入!C:C) -> 0 | D187: 0
B188: =SUMIF(出库表!I:I,应收汇总!A188,出库表!H:H) -> 0 | C188: =SUMIF(收款录入!B:B,应收汇总!A188,收款录入!C:C) -> 0 | D188: 0
B189: =SUMIF(出库表!I:I,应收汇总!A189,出库表!H:H) -> 0 | C189: =SUMIF(收款录入!B:B,应收汇总!A189,收款录入!C:C) -> 0 | D189: 0
B190: =SUMIF(出库表!I:I,应收汇总!A190,出库表!H:H) -> 0 | C190: =SUMIF(收款录入!B:B,应收汇总!A190,收款录入!C:C) -> 0 | D190: 0
B191: =SUMIF(出库表!I:I,应收汇总!A191,出库表!H:H) -> 0 | C191: =SUMIF(收款录入!B:B,应收汇总!A191,收款录入!C:C) -> 0 | D191: 0
B192: =SUMIF(出库表!I:I,应收汇总!A192,出库表!H:H) -> 0 | C192: =SUMIF(收款录入!B:B,应收汇总!A192,收款录入!C:C) -> 0 | D192: 0
B193: =SUMIF(出库表!I:I,应收汇总!A193,出库表!H:H) -> 0 | C193: =SUMIF(收款录入!B:B,应收汇总!A193,收款录入!C:C) -> 0 | D193: 0
B194: =SUMIF(出库表!I:I,应收汇总!A194,出库表!H:H) -> 0 | C194: =SUMIF(收款录入!B:B,应收汇总!A194,收款录入!C:C) -> 0 | D194: 0
B195: =SUMIF(出库表!I:I,应收汇总!A195,出库表!H:H) -> 0 | C195: =SUMIF(收款录入!B:B,应收汇总!A195,收款录入!C:C) -> 0 | D195: 0
B196: =SUMIF(出库表!I:I,应收汇总!A196,出库表!H:H) -> 0 | C196: =SUMIF(收款录入!B:B,应收汇总!A196,收款录入!C:C) -> 0 | D196: =B196-C196 -> 0
B197: =SUMIF(出库表!I:I,应收汇总!A197,出库表!H:H) -> 0 | C197: =SUMIF(收款录入!B:B,应收汇总!A197,收款录入!C:C) -> 0 | D197: 0
B198: =SUMIF(出库表!I:I,应收汇总!A198,出库表!H:H) -> 0 | C198: =SUMIF(收款录入!B:B,应收汇总!A198,收款录入!C:C) -> 0 | D198: 0
B199: =SUMIF(出库表!I:I,应收汇总!A199,出库表!H:H) -> 0 | C199: =SUMIF(收款录入!B:B,应收汇总!A199,收款录入!C:C) -> 0 | D199: 0
B200: =SUMIF(出库表!I:I,应收汇总!A200,出库表!H:H) -> 0 | C200: =SUMIF(收款录入!B:B,应收汇总!A200,收款录入!C:C) -> 0 | D200: 0
... 80 more rows

Sheet 应付汇总
A1: 应付汇总
A2: 供货单位 | B2: 应付金额 | C2: 实付金额 | D2: 欠款金额
A3: 供应商1 | B3: =SUMIF(入库表!I:I,应付汇总!A3,入库表!H:H) -> 46000 | C3: =SUMIF(付款录入!B:B,应付汇总!A3,付款录入!C:C) -> 20000 | D3: =B3-C3 -> 26000
A4: 供应商2 | B4: =SUMIF(入库表!I:I,应付汇总!A4,入库表!H:H) -> 0 | C4: =SUMIF(付款录入!B:B,应付汇总!A4,付款录入!C:C) -> 3000 | D4: =B4-C4 -> -3000
B5: =SUMIF(入库表!I:I,应付汇总!A5,入库表!H:H) -> 0 | C5: =SUMIF(付款录入!B:B,应付汇总!A5,付款录入!C:C) -> 0 | D5: 0
B6: =SUMIF(入库表!I:I,应付汇总!A6,入库表!H:H) -> 0 | C6: =SUMIF(付款录入!B:B,应付汇总!A6,付款录入!C:C) -> 0 | D6: 0
B7: =SUMIF(入库表!I:I,应付汇总!A7,入库表!H:H) -> 0 | C7: =SUMIF(付款录入!B:B,应付汇总!A7,付款录入!C:C) -> 0 | D7: 0
B8: =SUMIF(入库表!I:I,应付汇总!A8,入库表!H:H) -> 0 | C8: =SUMIF(付款录入!B:B,应付汇总!A8,付款录入!C:C) -> 0 | D8: 0
B9: =SUMIF(入库表!I:I,应付汇总!A9,入库表!H:H) -> 0 | C9: =SUMIF(付款录入!B:B,应付汇总!A9,付款录入!C:C) -> 0 | D9: 0
B10: =SUMIF(入库表!I:I,应付汇总!A10,入库表!H:H) -> 0 | C10: =SUMIF(付款录入!B:B,应付汇总!A10,付款录入!C:C) -> 0 | D10: 0
B11: =SUMIF(入库表!I:I,应付汇总!A11,入库表!H:H) -> 0 | C11: =SUMIF(付款录入!B:B,应付汇总!A11,付款录入!C:C) -> 0 | D11: 0
B12: =SUMIF(入库表!I:I,应付汇总!A12,入库表!H:H) -> 0 | C12: =SUMIF(付款录入!B:B,应付汇总!A12,付款录入!C:C) -> 0 | D12: 0
B13: =SUMIF(入库表!I:I,应付汇总!A13,入库表!H:H) -> 0 | C13: =SUMIF(付款录入!B:B,应付汇总!A13,付款录入!C:C) -> 0 | D13: 0
B14: =SUMIF(入库表!I:I,应付汇总!A14,入库表!H:H) -> 0 | C14: =SUMIF(付款录入!B:B,应付汇总!A14,付款录入!C:C) -> 0 | D14: 0
B15: =SUMIF(入库表!I:I,应付汇总!A15,入库表!H:H) -> 0 | C15: =SUMIF(付款录入!B:B,应付汇总!A15,付款录入!C:C) -> 0 | D15: 0
B16: =SUMIF(入库表!I:I,应付汇总!A16,入库表!H:H) -> 0 | C16: =SUMIF(付款录入!B:B,应付汇总!A16,付款录入!C:C) -> 0 | D16: 0
B17: =SUMIF(入库表!I:I,应付汇总!A17,入库表!H:H) -> 0 | C17: =SUMIF(付款录入!B:B,应付汇总!A17,付款录入!C:C) -> 0 | D17: 0
B18: =SUMIF(入库表!I:I,应付汇总!A18,入库表!H:H) -> 0 | C18: =SUMIF(付款录入!B:B,应付汇总!A18,付款录入!C:C) -> 0 | D18: 0
B19: =SUMIF(入库表!I:I,应付汇总!A19,入库表!H:H) -> 0 | C19: =SUMIF(付款录入!B:B,应付汇总!A19,付款录入!C:C) -> 0 | D19: 0
B20: =SUMIF(入库表!I:I,应付汇总!A20,入库表!H:H) -> 0 | C20: =SUMIF(付款录入!B:B,应付汇总!A20,付款录入!C:C) -> 0 | D20: 0
B21: =SUMIF(入库表!I:I,应付汇总!A21,入库表!H:H) -> 0 | C21: =SUMIF(付款录入!B:B,应付汇总!A21,付款录入!C:C) -> 0 | D21: 0
B22: =SUMIF(入库表!I:I,应付汇总!A22,入库表!H:H) -> 0 | C22: =SUMIF(付款录入!B:B,应付汇总!A22,付款录入!C:C) -> 0 | D22: 0
B23: =SUMIF(入库表!I:I,应付汇总!A23,入库表!H:H) -> 0 | C23: =SUMIF(付款录入!B:B,应付汇总!A23,付款录入!C:C) -> 0 | D23: 0
B24: =SUMIF(入库表!I:I,应付汇总!A24,入库表!H:H) -> 0 | C24: =SUMIF(付款录入!B:B,应付汇总!A24,付款录入!C:C) -> 0 | D24: 0
B25: =SUMIF(入库表!I:I,应付汇总!A25,入库表!H:H) -> 0 | C25: =SUMIF(付款录入!B:B,应付汇总!A25,付款录入!C:C) -> 0 | D25: 0
B26: =SUMIF(入库表!I:I,应付汇总!A26,入库表!H:H) -> 0 | C26: =SUMIF(付款录入!B:B,应付汇总!A26,付款录入!C:C) -> 0 | D26: 0
B27: =SUMIF(入库表!I:I,应付汇总!A27,入库表!H:H) -> 0 | C27: =SUMIF(付款录入!B:B,应付汇总!A27,付款录入!C:C) -> 0 | D27: 0
B28: =SUMIF(入库表!I:I,应付汇总!A28,入库表!H:H) -> 0 | C28: =SUMIF(付款录入!B:B,应付汇总!A28,付款录入!C:C) -> 0 | D28: 0
B29: =SUMIF(入库表!I:I,应付汇总!A29,入库表!H:H) -> 0 | C29: =SUMIF(付款录入!B:B,应付汇总!A29,付款录入!C:C) -> 0 | D29: 0
B30: =SUMIF(入库表!I:I,应付汇总!A30,入库表!H:H) -> 0 | C30: =SUMIF(付款录入!B:B,应付汇总!A30,付款录入!C:C) -> 0 | D30: 0
B31: =SUMIF(入库表!I:I,应付汇总!A31,入库表!H:H) -> 0 | C31: =SUMIF(付款录入!B:B,应付汇总!A31,付款录入!C:C) -> 0 | D31: 0
B32: =SUMIF(入库表!I:I,应付汇总!A32,入库表!H:H) -> 0 | C32: =SUMIF(付款录入!B:B,应付汇总!A32,付款录入!C:C) -> 0 | D32: 0
B33: =SUMIF(入库表!I:I,应付汇总!A33,入库表!H:H) -> 0 | C33: =SUMIF(付款录入!B:B,应付汇总!A33,付款录入!C:C) -> 0 | D33: 0
B34: =SUMIF(入库表!I:I,应付汇总!A34,入库表!H:H) -> 0 | C34: =SUMIF(付款录入!B:B,应付汇总!A34,付款录入!C:C) -> 0 | D34: 0
B35: =SUMIF(入库表!I:I,应付汇总!A35,入库表!H:H) -> 0 | C35: =SUMIF(付款录入!B:B,应付汇总!A35,付款录入!C:C) -> 0 | D35: 0
B36: =SUMIF(入库表!I:I,应付汇总!A36,入库表!H:H) -> 0 | C36: =SUMIF(付款录入!B:B,应付汇总!A36,付款录入!C:C) -> 0 | D36: 0
B37: =SUMIF(入库表!I:I,应付汇总!A37,入库表!H:H) -> 0 | C37: =SUMIF(付款录入!B:B,应付汇总!A37,付款录入!C:C) -> 0 | D37: 0
B38: =SUMIF(入库表!I:I,应付汇总!A38,入库表!H:H) -> 0 | C38: =SUMIF(付款录入!B:B,应付汇总!A38,付款录入!C:C) -> 0 | D38: 0
B39: =SUMIF(入库表!I:I,应付汇总!A39,入库表!H:H) -> 0 | C39: =SUMIF(付款录入!B:B,应付汇总!A39,付款录入!C:C) -> 0 | D39: 0
B40: =SUMIF(入库表!I:I,应付汇总!A40,入库表!H:H) -> 0 | C40: =SUMIF(付款录入!B:B,应付汇总!A40,付款录入!C:C) -> 0 | D40: 0
B41: =SUMIF(入库表!I:I,应付汇总!A41,入库表!H:H) -> 0 | C41: =SUMIF(付款录入!B:B,应付汇总!A41,付款录入!C:C) -> 0 | D41: 0
B42: =SUMIF(入库表!I:I,应付汇总!A42,入库表!H:H) -> 0 | C42: =SUMIF(付款录入!B:B,应付汇总!A42,付款录入!C:C) -> 0 | D42: 0
B43: =SUMIF(入库表!I:I,应付汇总!A43,入库表!H:H) -> 0 | C43: =SUMIF(付款录入!B:B,应付汇总!A43,付款录入!C:C) -> 0 | D43: 0
B44: =SUMIF(入库表!I:I,应付汇总!A44,入库表!H:H) -> 0 | C44: =SUMIF(付款录入!B:B,应付汇总!A44,付款录入!C:C) -> 0 | D44: 0
B45: =SUMIF(入库表!I:I,应付汇总!A45,入库表!H:H) -> 0 | C45: =SUMIF(付款录入!B:B,应付汇总!A45,付款录入!C:C) -> 0 | D45: 0
B46: =SUMIF(入库表!I:I,应付汇总!A46,入库表!H:H) -> 0 | C46: =SUMIF(付款录入!B:B,应付汇总!A46,付款录入!C:C) -> 0 | D46: 0
B47: =SUMIF(入库表!I:I,应付汇总!A47,入库表!H:H) -> 0 | C47: =SUMIF(付款录入!B:B,应付汇总!A47,付款录入!C:C) -> 0 | D47: 0
B48: =SUMIF(入库表!I:I,应付汇总!A48,入库表!H:H) -> 0 | C48: =SUMIF(付款录入!B:B,应付汇总!A48,付款录入!C:C) -> 0 | D48: 0
B49: =SUMIF(入库表!I:I,应付汇总!A49,入库表!H:H) -> 0 | C49: =SUMIF(付款录入!B:B,应付汇总!A49,付款录入!C:C) -> 0 | D49: 0
B50: =SUMIF(入库表!I:I,应付汇总!A50,入库表!H:H) -> 0 | C50: =SUMIF(付款录入!B:B,应付汇总!A50,付款录入!C:C) -> 0 | D50: 0
B51: =SUMIF(入库表!I:I,应付汇总!A51,入库表!H:H) -> 0 | C51: =SUMIF(付款录入!B:B,应付汇总!A51,付款录入!C:C) -> 0 | D51: 0
B52: =SUMIF(入库表!I:I,应付汇总!A52,入库表!H:H) -> 0 | C52: =SUMIF(付款录入!B:B,应付汇总!A52,付款录入!C:C) -> 0 | D52: 0
B53: =SUMIF(入库表!I:I,应付汇总!A53,入库表!H:H) -> 0 | C53: =SUMIF(付款录入!B:B,应付汇总!A53,付款录入!C:C) -> 0 | D53: 0
B54: =SUMIF(入库表!I:I,应付汇总!A54,入库表!H:H) -> 0 | C54: =SUMIF(付款录入!B:B,应付汇总!A54,付款录入!C:C) -> 0 | D54: 0
B55: =SUMIF(入库表!I:I,应付汇总!A55,入库表!H:H) -> 0 | C55: =SUMIF(付款录入!B:B,应付汇总!A55,付款录入!C:C) -> 0 | D55: 0
B56: =SUMIF(入库表!I:I,应付汇总!A56,入库表!H:H) -> 0 | C56: =SUMIF(付款录入!B:B,应付汇总!A56,付款录入!C:C) -> 0 | D56: 0
B57: =SUMIF(入库表!I:I,应付汇总!A57,入库表!H:H) -> 0 | C57: =SUMIF(付款录入!B:B,应付汇总!A57,付款录入!C:C) -> 0 | D57: 0
B58: =SUMIF(入库表!I:I,应付汇总!A58,入库表!H:H) -> 0 | C58: =SUMIF(付款录入!B:B,应付汇总!A58,付款录入!C:C) -> 0 | D58: 0
B59: =SUMIF(入库表!I:I,应付汇总!A59,入库表!H:H) -> 0 | C59: =SUMIF(付款录入!B:B,应付汇总!A59,付款录入!C:C) -> 0 | D59: 0
B60: =SUMIF(入库表!I:I,应付汇总!A60,入库表!H:H) -> 0 | C60: =SUMIF(付款录入!B:B,应付汇总!A60,付款录入!C:C) -> 0 | D60: 0
B61: =SUMIF(入库表!I:I,应付汇总!A61,入库表!H:H) -> 0 | C61: =SUMIF(付款录入!B:B,应付汇总!A61,付款录入!C:C) -> 0 | D61: 0
B62: =SUMIF(入库表!I:I,应付汇总!A62,入库表!H:H) -> 0 | C62: =SUMIF(付款录入!B:B,应付汇总!A62,付款录入!C:C) -> 0 | D62: 0
B63: =SUMIF(入库表!I:I,应付汇总!A63,入库表!H:H) -> 0 | C63: =SUMIF(付款录入!B:B,应付汇总!A63,付款录入!C:C) -> 0 | D63: 0
B64: =SUMIF(入库表!I:I,应付汇总!A64,入库表!H:H) -> 0 | C64: =SUMIF(付款录入!B:B,应付汇总!A64,付款录入!C:C) -> 0 | D64: 0
B65: =SUMIF(入库表!I:I,应付汇总!A65,入库表!H:H) -> 0 | C65: =SUMIF(付款录入!B:B,应付汇总!A65,付款录入!C:C) -> 0 | D65: 0
B66: =SUMIF(入库表!I:I,应付汇总!A66,入库表!H:H) -> 0 | C66: =SUMIF(付款录入!B:B,应付汇总!A66,付款录入!C:C) -> 0 | D66: 0
B67: =SUMIF(入库表!I:I,应付汇总!A67,入库表!H:H) -> 0 | C67: =SUMIF(付款录入!B:B,应付汇总!A67,付款录入!C:C) -> 0 | D67: 0
B68: =SUMIF(入库表!I:I,应付汇总!A68,入库表!H:H) -> 0 | C68: =SUMIF(付款录入!B:B,应付汇总!A68,付款录入!C:C) -> 0 | D68: =B68-C68 -> 0
B69: =SUMIF(入库表!I:I,应付汇总!A69,入库表!H:H) -> 0 | C69: =SUMIF(付款录入!B:B,应付汇总!A69,付款录入!C:C) -> 0 | D69: 0
B70: =SUMIF(入库表!I:I,应付汇总!A70,入库表!H:H) -> 0 | C70: =SUMIF(付款录入!B:B,应付汇总!A70,付款录入!C:C) -> 0 | D70: 0
B71: =SUMIF(入库表!I:I,应付汇总!A71,入库表!H:H) -> 0 | C71: =SUMIF(付款录入!B:B,应付汇总!A71,付款录入!C:C) -> 0 | D71: 0
B72: =SUMIF(入库表!I:I,应付汇总!A72,入库表!H:H) -> 0 | C72: =SUMIF(付款录入!B:B,应付汇总!A72,付款录入!C:C) -> 0 | D72: 0
B73: =SUMIF(入库表!I:I,应付汇总!A73,入库表!H:H) -> 0 | C73: =SUMIF(付款录入!B:B,应付汇总!A73,付款录入!C:C) -> 0 | D73: 0
B74: =SUMIF(入库表!I:I,应付汇总!A74,入库表!H:H) -> 0 | C74: =SUMIF(付款录入!B:B,应付汇总!A74,付款录入!C:C) -> 0 | D74: 0
B75: =SUMIF(入库表!I:I,应付汇总!A75,入库表!H:H) -> 0 | C75: =SUMIF(付款录入!B:B,应付汇总!A75,付款录入!C:C) -> 0 | D75: 0
B76: =SUMIF(入库表!I:I,应付汇总!A76,入库表!H:H) -> 0 | C76: =SUMIF(付款录入!B:B,应付汇总!A76,付款录入!C:C) -> 0 | D76: 0
B77: =SUMIF(入库表!I:I,应付汇总!A77,入库表!H:H) -> 0 | C77: =SUMIF(付款录入!B:B,应付汇总!A77,付款录入!C:C) -> 0 | D77: 0
B78: =SUMIF(入库表!I:I,应付汇总!A78,入库表!H:H) -> 0 | C78: =SUMIF(付款录入!B:B,应付汇总!A78,付款录入!C:C) -> 0 | D78: 0
B79: =SUMIF(入库表!I:I,应付汇总!A79,入库表!H:H) -> 0 | C79: =SUMIF(付款录入!B:B,应付汇总!A79,付款录入!C:C) -> 0 | D79: 0
B80: =SUMIF(入库表!I:I,应付汇总!A80,入库表!H:H) -> 0 | C80: =SUMIF(付款录入!B:B,应付汇总!A80,付款录入!C:C) -> 0 | D80: 0
B81: =SUMIF(入库表!I:I,应付汇总!A81,入库表!H:H) -> 0 | C81: =SUMIF(付款录入!B:B,应付汇总!A81,付款录入!C:C) -> 0 | D81: 0
B82: =SUMIF(入库表!I:I,应付汇总!A82,入库表!H:H) -> 0 | C82: =SUMIF(付款录入!B:B,应付汇总!A82,付款录入!C:C) -> 0 | D82: 0
B83: =SUMIF(入库表!I:I,应付汇总!A83,入库表!H:H) -> 0 | C83: =SUMIF(付款录入!B:B,应付汇总!A83,付款录入!C:C) -> 0 | D83: 0
B84: =SUMIF(入库表!I:I,应付汇总!A84,入库表!H:H) -> 0 | C84: =SUMIF(付款录入!B:B,应付汇总!A84,付款录入!C:C) -> 0 | D84: 0
B85: =SUMIF(入库表!I:I,应付汇总!A85,入库表!H:H) -> 0 | C85: =SUMIF(付款录入!B:B,应付汇总!A85,付款录入!C:C) -> 0 | D85: 0
B86: =SUMIF(入库表!I:I,应付汇总!A86,入库表!H:H) -> 0 | C86: =SUMIF(付款录入!B:B,应付汇总!A86,付款录入!C:C) -> 0 | D86: 0
B87: =SUMIF(入库表!I:I,应付汇总!A87,入库表!H:H) -> 0 | C87: =SUMIF(付款录入!B:B,应付汇总!A87,付款录入!C:C) -> 0 | D87: 0
B88: =SUMIF(入库表!I:I,应付汇总!A88,入库表!H:H) -> 0 | C88: =SUMIF(付款录入!B:B,应付汇总!A88,付款录入!C:C) -> 0 | D88: 0
B89: =SUMIF(入库表!I:I,应付汇总!A89,入库表!H:H) -> 0 | C89: =SUMIF(付款录入!B:B,应付汇总!A89,付款录入!C:C) -> 0 | D89: 0
B90: =SUMIF(入库表!I:I,应付汇总!A90,入库表!H:H) -> 0 | C90: =SUMIF(付款录入!B:B,应付汇总!A90,付款录入!C:C) -> 0 | D90: 0
B91: =SUMIF(入库表!I:I,应付汇总!A91,入库表!H:H) -> 0 | C91: =SUMIF(付款录入!B:B,应付汇总!A91,付款录入!C:C) -> 0 | D91: 0
B92: =SUMIF(入库表!I:I,应付汇总!A92,入库表!H:H) -> 0 | C92: =SUMIF(付款录入!B:B,应付汇总!A92,付款录入!C:C) -> 0 | D92: 0
B93: =SUMIF(入库表!I:I,应付汇总!A93,入库表!H:H) -> 0 | C93: =SUMIF(付款录入!B:B,应付汇总!A93,付款录入!C:C) -> 0 | D93: 0
B94: =SUMIF(入库表!I:I,应付汇总!A94,入库表!H:H) -> 0 | C94: =SUMIF(付款录入!B:B,应付汇总!A94,付款录入!C:C) -> 0 | D94: 0
B95: =SUMIF(入库表!I:I,应付汇总!A95,入库表!H:H) -> 0 | C95: =SUMIF(付款录入!B:B,应付汇总!A95,付款录入!C:C) -> 0 | D95: 0
B96: =SUMIF(入库表!I:I,应付汇总!A96,入库表!H:H) -> 0 | C96: =SUMIF(付款录入!B:B,应付汇总!A96,付款录入!C:C) -> 0 | D96: 0
B97: =SUMIF(入库表!I:I,应付汇总!A97,入库表!H:H) -> 0 | C97: =SUMIF(付款录入!B:B,应付汇总!A97,付款录入!C:C) -> 0 | D97: 0
B98: =SUMIF(入库表!I:I,应付汇总!A98,入库表!H:H) -> 0 | C98: =SUMIF(付款录入!B:B,应付汇总!A98,付款录入!C:C) -> 0 | D98: 0
B99: =SUMIF(入库表!I:I,应付汇总!A99,入库表!H:H) -> 0 | C99: =SUMIF(付款录入!B:B,应付汇总!A99,付款录入!C:C) -> 0 | D99: 0
B100: =SUMIF(入库表!I:I,应付汇总!A100,入库表!H:H) -> 0 | C100: =SUMIF(付款录入!B:B,应付汇总!A100,付款录入!C:C) -> 0 | D100: 0
B101: =SUMIF(入库表!I:I,应付汇总!A101,入库表!H:H) -> 0 | C101: =SUMIF(付款录入!B:B,应付汇总!A101,付款录入!C:C) -> 0 | D101: 0
B102: =SUMIF(入库表!I:I,应付汇总!A102,入库表!H:H) -> 0 | C102: =SUMIF(付款录入!B:B,应付汇总!A102,付款录入!C:C) -> 0 | D102: 0
B103: =SUMIF(入库表!I:I,应付汇总!A103,入库表!H:H) -> 0 | C103: =SUMIF(付款录入!B:B,应付汇总!A103,付款录入!C:C) -> 0 | D103: 0
B104: =SUMIF(入库表!I:I,应付汇总!A104,入库表!H:H) -> 0 | C104: =SUMIF(付款录入!B:B,应付汇总!A104,付款录入!C:C) -> 0 | D104: 0
B105: =SUMIF(入库表!I:I,应付汇总!A105,入库表!H:H) -> 0 | C105: =SUMIF(付款录入!B:B,应付汇总!A105,付款录入!C:C) -> 0 | D105: 0
B106: =SUMIF(入库表!I:I,应付汇总!A106,入库表!H:H) -> 0 | C106: =SUMIF(付款录入!B:B,应付汇总!A106,付款录入!C:C) -> 0 | D106: 0
B107: =SUMIF(入库表!I:I,应付汇总!A107,入库表!H:H) -> 0 | C107: =SUMIF(付款录入!B:B,应付汇总!A107,付款录入!C:C) -> 0 | D107: 0
B108: =SUMIF(入库表!I:I,应付汇总!A108,入库表!H:H) -> 0 | C108: =SUMIF(付款录入!B:B,应付汇总!A108,付款录入!C:C) -> 0 | D108: 0
B109: =SUMIF(入库表!I:I,应付汇总!A109,入库表!H:H) -> 0 | C109: =SUMIF(付款录入!B:B,应付汇总!A109,付款录入!C:C) -> 0 | D109: 0
B110: =SUMIF(入库表!I:I,应付汇总!A110,入库表!H:H) -> 0 | C110: =SUMIF(付款录入!B:B,应付汇总!A110,付款录入!C:C) -> 0 | D110: 0
B111: =SUMIF(入库表!I:I,应付汇总!A111,入库表!H:H) -> 0 | C111: =SUMIF(付款录入!B:B,应付汇总!A111,付款录入!C:C) -> 0 | D111: 0
B112: =SUMIF(入库表!I:I,应付汇总!A112,入库表!H:H) -> 0 | C112: =SUMIF(付款录入!B:B,应付汇总!A112,付款录入!C:C) -> 0 | D112: 0
B113: =SUMIF(入库表!I:I,应付汇总!A113,入库表!H:H) -> 0 | C113: =SUMIF(付款录入!B:B,应付汇总!A113,付款录入!C:C) -> 0 | D113: 0
B114: =SUMIF(入库表!I:I,应付汇总!A114,入库表!H:H) -> 0 | C114: =SUMIF(付款录入!B:B,应付汇总!A114,付款录入!C:C) -> 0 | D114: 0
B115: =SUMIF(入库表!I:I,应付汇总!A115,入库表!H:H) -> 0 | C115: =SUMIF(付款录入!B:B,应付汇总!A115,付款录入!C:C) -> 0 | D115: 0
B116: =SUMIF(入库表!I:I,应付汇总!A116,入库表!H:H) -> 0 | C116: =SUMIF(付款录入!B:B,应付汇总!A116,付款录入!C:C) -> 0 | D116: 0
B117: =SUMIF(入库表!I:I,应付汇总!A117,入库表!H:H) -> 0 | C117: =SUMIF(付款录入!B:B,应付汇总!A117,付款录入!C:C) -> 0 | D117: 0
B118: =SUMIF(入库表!I:I,应付汇总!A118,入库表!H:H) -> 0 | C118: =SUMIF(付款录入!B:B,应付汇总!A118,付款录入!C:C) -> 0 | D118: 0
B119: =SUMIF(入库表!I:I,应付汇总!A119,入库表!H:H) -> 0 | C119: =SUMIF(付款录入!B:B,应付汇总!A119,付款录入!C:C) -> 0 | D119: 0
B120: =SUMIF(入库表!I:I,应付汇总!A120,入库表!H:H) -> 0 | C120: =SUMIF(付款录入!B:B,应付汇总!A120,付款录入!C:C) -> 0 | D120: 0
B121: =SUMIF(入库表!I:I,应付汇总!A121,入库表!H:H) -> 0 | C121: =SUMIF(付款录入!B:B,应付汇总!A121,付款录入!C:C) -> 0 | D121: 0
B122: =SUMIF(入库表!I:I,应付汇总!A122,入库表!H:H) -> 0 | C122: =SUMIF(付款录入!B:B,应付汇总!A122,付款录入!C:C) -> 0 | D122: 0
B123: =SUMIF(入库表!I:I,应付汇总!A123,入库表!H:H) -> 0 | C123: =SUMIF(付款录入!B:B,应付汇总!A123,付款录入!C:C) -> 0 | D123: 0
B124: =SUMIF(入库表!I:I,应付汇总!A124,入库表!H:H) -> 0 | C124: =SUMIF(付款录入!B:B,应付汇总!A124,付款录入!C:C) -> 0 | D124: 0
B125: =SUMIF(入库表!I:I,应付汇总!A125,入库表!H:H) -> 0 | C125: =SUMIF(付款录入!B:B,应付汇总!A125,付款录入!C:C) -> 0 | D125: 0
B126: =SUMIF(入库表!I:I,应付汇总!A126,入库表!H:H) -> 0 | C126: =SUMIF(付款录入!B:B,应付汇总!A126,付款录入!C:C) -> 0 | D126: 0
B127: =SUMIF(入库表!I:I,应付汇总!A127,入库表!H:H) -> 0 | C127: =SUMIF(付款录入!B:B,应付汇总!A127,付款录入!C:C) -> 0 | D127: 0
B128: =SUMIF(入库表!I:I,应付汇总!A128,入库表!H:H) -> 0 | C128: =SUMIF(付款录入!B:B,应付汇总!A128,付款录入!C:C) -> 0 | D128: 0
B129: =SUMIF(入库表!I:I,应付汇总!A129,入库表!H:H) -> 0 | C129: =SUMIF(付款录入!B:B,应付汇总!A129,付款录入!C:C) -> 0 | D129: 0
B130: =SUMIF(入库表!I:I,应付汇总!A130,入库表!H:H) -> 0 | C130: =SUMIF(付款录入!B:B,应付汇总!A130,付款录入!C:C) -> 0 | D130: 0
B131: =SUMIF(入库表!I:I,应付汇总!A131,入库表!H:H) -> 0 | C131: =SUMIF(付款录入!B:B,应付汇总!A131,付款录入!C:C) -> 0 | D131: 0
B132: =SUMIF(入库表!I:I,应付汇总!A132,入库表!H:H) -> 0 | C132: =SUMIF(付款录入!B:B,应付汇总!A132,付款录入!C:C) -> 0 | D132: =B132-C132 -> 0
B133: =SUMIF(入库表!I:I,应付汇总!A133,入库表!H:H) -> 0 | C133: =SUMIF(付款录入!B:B,应付汇总!A133,付款录入!C:C) -> 0 | D133: 0
B134: =SUMIF(入库表!I:I,应付汇总!A134,入库表!H:H) -> 0 | C134: =SUMIF(付款录入!B:B,应付汇总!A134,付款录入!C:C) -> 0 | D134: 0
B135: =SUMIF(入库表!I:I,应付汇总!A135,入库表!H:H) -> 0 | C135: =SUMIF(付款录入!B:B,应付汇总!A135,付款录入!C:C) -> 0 | D135: 0
B136: =SUMIF(入库表!I:I,应付汇总!A136,入库表!H:H) -> 0 | C136: =SUMIF(付款录入!B:B,应付汇总!A136,付款录入!C:C) -> 0 | D136: 0
B137: =SUMIF(入库表!I:I,应付汇总!A137,入库表!H:H) -> 0 | C137: =SUMIF(付款录入!B:B,应付汇总!A137,付款录入!C:C) -> 0 | D137: 0
B138: =SUMIF(入库表!I:I,应付汇总!A138,入库表!H:H) -> 0 | C138: =SUMIF(付款录入!B:B,应付汇总!A138,付款录入!C:C) -> 0 | D138: 0
B139: =SUMIF(入库表!I:I,应付汇总!A139,入库表!H:H) -> 0 | C139: =SUMIF(付款录入!B:B,应付汇总!A139,付款录入!C:C) -> 0 | D139: 0
B140: =SUMIF(入库表!I:I,应付汇总!A140,入库表!H:H) -> 0 | C140: =SUMIF(付款录入!B:B,应付汇总!A140,付款录入!C:C) -> 0 | D140: 0
B141: =SUMIF(入库表!I:I,应付汇总!A141,入库表!H:H) -> 0 | C141: =SUMIF(付款录入!B:B,应付汇总!A141,付款录入!C:C) -> 0 | D141: 0
B142: =SUMIF(入库表!I:I,应付汇总!A142,入库表!H:H) -> 0 | C142: =SUMIF(付款录入!B:B,应付汇总!A142,付款录入!C:C) -> 0 | D142: 0
B143: =SUMIF(入库表!I:I,应付汇总!A143,入库表!H:H) -> 0 | C143: =SUMIF(付款录入!B:B,应付汇总!A143,付款录入!C:C) -> 0 | D143: 0
B144: =SUMIF(入库表!I:I,应付汇总!A144,入库表!H:H) -> 0 | C144: =SUMIF(付款录入!B:B,应付汇总!A144,付款录入!C:C) -> 0 | D144: 0
B145: =SUMIF(入库表!I:I,应付汇总!A145,入库表!H:H) -> 0 | C145: =SUMIF(付款录入!B:B,应付汇总!A145,付款录入!C:C) -> 0 | D145: 0
B146: =SUMIF(入库表!I:I,应付汇总!A146,入库表!H:H) -> 0 | C146: =SUMIF(付款录入!B:B,应付汇总!A146,付款录入!C:C) -> 0 | D146: 0
B147: =SUMIF(入库表!I:I,应付汇总!A147,入库表!H:H) -> 0 | C147: =SUMIF(付款录入!B:B,应付汇总!A147,付款录入!C:C) -> 0 | D147: 0
B148: =SUMIF(入库表!I:I,应付汇总!A148,入库表!H:H) -> 0 | C148: =SUMIF(付款录入!B:B,应付汇总!A148,付款录入!C:C) -> 0 | D148: 0
B149: =SUMIF(入库表!I:I,应付汇总!A149,入库表!H:H) -> 0 | C149: =SUMIF(付款录入!B:B,应付汇总!A149,付款录入!C:C) -> 0 | D149: 0
B150: =SUMIF(入库表!I:I,应付汇总!A150,入库表!H:H) -> 0 | C150: =SUMIF(付款录入!B:B,应付汇总!A150,付款录入!C:C) -> 0 | D150: 0
B151: =SUMIF(入库表!I:I,应付汇总!A151,入库表!H:H) -> 0 | C151: =SUMIF(付款录入!B:B,应付汇总!A151,付款录入!C:C) -> 0 | D151: 0
B152: =SUMIF(入库表!I:I,应付汇总!A152,入库表!H:H) -> 0 | C152: =SUMIF(付款录入!B:B,应付汇总!A152,付款录入!C:C) -> 0 | D152: 0
B153: =SUMIF(入库表!I:I,应付汇总!A153,入库表!H:H) -> 0 | C153: =SUMIF(付款录入!B:B,应付汇总!A153,付款录入!C:C) -> 0 | D153: 0
B154: =SUMIF(入库表!I:I,应付汇总!A154,入库表!H:H) -> 0 | C154: =SUMIF(付款录入!B:B,应付汇总!A154,付款录入!C:C) -> 0 | D154: 0
B155: =SUMIF(入库表!I:I,应付汇总!A155,入库表!H:H) -> 0 | C155: =SUMIF(付款录入!B:B,应付汇总!A155,付款录入!C:C) -> 0 | D155: 0
B156: =SUMIF(入库表!I:I,应付汇总!A156,入库表!H:H) -> 0 | C156: =SUMIF(付款录入!B:B,应付汇总!A156,付款录入!C:C) -> 0 | D156: 0
B157: =SUMIF(入库表!I:I,应付汇总!A157,入库表!H:H) -> 0 | C157: =SUMIF(付款录入!B:B,应付汇总!A157,付款录入!C:C) -> 0 | D157: 0
B158: =SUMIF(入库表!I:I,应付汇总!A158,入库表!H:H) -> 0 | C158: =SUMIF(付款录入!B:B,应付汇总!A158,付款录入!C:C) -> 0 | D158: 0
B159: =SUMIF(入库表!I:I,应付汇总!A159,入库表!H:H) -> 0 | C159: =SUMIF(付款录入!B:B,应付汇总!A159,付款录入!C:C) -> 0 | D159: 0
B160: =SUMIF(入库表!I:I,应付汇总!A160,入库表!H:H) -> 0 | C160: =SUMIF(付款录入!B:B,应付汇总!A160,付款录入!C:C) -> 0 | D160: 0
B161: =SUMIF(入库表!I:I,应付汇总!A161,入库表!H:H) -> 0 | C161: =SUMIF(付款录入!B:B,应付汇总!A161,付款录入!C:C) -> 0 | D161: 0
B162: =SUMIF(入库表!I:I,应付汇总!A162,入库表!H:H) -> 0 | C162: =SUMIF(付款录入!B:B,应付汇总!A162,付款录入!C:C) -> 0 | D162: 0
B163: =SUMIF(入库表!I:I,应付汇总!A163,入库表!H:H) -> 0 | C163: =SUMIF(付款录入!B:B,应付汇总!A163,付款录入!C:C) -> 0 | D163: 0
B164: =SUMIF(入库表!I:I,应付汇总!A164,入库表!H:H) -> 0 | C164: =SUMIF(付款录入!B:B,应付汇总!A164,付款录入!C:C) -> 0 | D164: 0
B165: =SUMIF(入库表!I:I,应付汇总!A165,入库表!H:H) -> 0 | C165: =SUMIF(付款录入!B:B,应付汇总!A165,付款录入!C:C) -> 0 | D165: 0
B166: =SUMIF(入库表!I:I,应付汇总!A166,入库表!H:H) -> 0 | C166: =SUMIF(付款录入!B:B,应付汇总!A166,付款录入!C:C) -> 0 | D166: 0
B167: =SUMIF(入库表!I:I,应付汇总!A167,入库表!H:H) -> 0 | C167: =SUMIF(付款录入!B:B,应付汇总!A167,付款录入!C:C) -> 0 | D167: 0
B168: =SUMIF(入库表!I:I,应付汇总!A168,入库表!H:H) -> 0 | C168: =SUMIF(付款录入!B:B,应付汇总!A168,付款录入!C:C) -> 0 | D168: 0
B169: =SUMIF(入库表!I:I,应付汇总!A169,入库表!H:H) -> 0 | C169: =SUMIF(付款录入!B:B,应付汇总!A169,付款录入!C:C) -> 0 | D169: 0
B170: =SUMIF(入库表!I:I,应付汇总!A170,入库表!H:H) -> 0 | C170: =SUMIF(付款录入!B:B,应付汇总!A170,付款录入!C:C) -> 0 | D170: 0
B171: =SUMIF(入库表!I:I,应付汇总!A171,入库表!H:H) -> 0 | C171: =SUMIF(付款录入!B:B,应付汇总!A171,付款录入!C:C) -> 0 | D171: 0
B172: =SUMIF(入库表!I:I,应付汇总!A172,入库表!H:H) -> 0 | C172: =SUMIF(付款录入!B:B,应付汇总!A172,付款录入!C:C) -> 0 | D172: 0
B173: =SUMIF(入库表!I:I,应付汇总!A173,入库表!H:H) -> 0 | C173: =SUMIF(付款录入!B:B,应付汇总!A173,付款录入!C:C) -> 0 | D173: 0
B174: =SUMIF(入库表!I:I,应付汇总!A174,入库表!H:H) -> 0 | C174: =SUMIF(付款录入!B:B,应付汇总!A174,付款录入!C:C) -> 0 | D174: 0
B175: =SUMIF(入库表!I:I,应付汇总!A175,入库表!H:H) -> 0 | C175: =SUMIF(付款录入!B:B,应付汇总!A175,付款录入!C:C) -> 0 | D175: 0
B176: =SUMIF(入库表!I:I,应付汇总!A176,入库表!H:H) -> 0 | C176: =SUMIF(付款录入!B:B,应付汇总!A176,付款录入!C:C) -> 0 | D176: 0
B177: =SUMIF(入库表!I:I,应付汇总!A177,入库表!H:H) -> 0 | C177: =SUMIF(付款录入!B:B,应付汇总!A177,付款录入!C:C) -> 0 | D177: 0
B178: =SUMIF(入库表!I:I,应付汇总!A178,入库表!H:H) -> 0 | C178: =SUMIF(付款录入!B:B,应付汇总!A178,付款录入!C:C) -> 0 | D178: 0
B179: =SUMIF(入库表!I:I,应付汇总!A179,入库表!H:H) -> 0 | C179: =SUMIF(付款录入!B:B,应付汇总!A179,付款录入!C:C) -> 0 | D179: 0
B180: =SUMIF(入库表!I:I,应付汇总!A180,入库表!H:H) -> 0 | C180: =SUMIF(付款录入!B:B,应付汇总!A180,付款录入!C:C) -> 0 | D180: 0
B181: =SUMIF(入库表!I:I,应付汇总!A181,入库表!H:H) -> 0 | C181: =SUMIF(付款录入!B:B,应付汇总!A181,付款录入!C:C) -> 0 | D181: 0
B182: =SUMIF(入库表!I:I,应付汇总!A182,入库表!H:H) -> 0 | C182: =SUMIF(付款录入!B:B,应付汇总!A182,付款录入!C:C) -> 0 | D182: 0
B183: =SUMIF(入库表!I:I,应付汇总!A183,入库表!H:H) -> 0 | C183: =SUMIF(付款录入!B:B,应付汇总!A183,付款录入!C:C) -> 0 | D183: 0
B184: =SUMIF(入库表!I:I,应付汇总!A184,入库表!H:H) -> 0 | C184: =SUMIF(付款录入!B:B,应付汇总!A184,付款录入!C:C) -> 0 | D184: 0
B185: =SUMIF(入库表!I:I,应付汇总!A185,入库表!H:H) -> 0 | C185: =SUMIF(付款录入!B:B,应付汇总!A185,付款录入!C:C) -> 0 | D185: 0
B186: =SUMIF(入库表!I:I,应付汇总!A186,入库表!H:H) -> 0 | C186: =SUMIF(付款录入!B:B,应付汇总!A186,付款录入!C:C) -> 0 | D186: 0
B187: =SUMIF(入库表!I:I,应付汇总!A187,入库表!H:H) -> 0 | C187: =SUMIF(付款录入!B:B,应付汇总!A187,付款录入!C:C) -> 0 | D187: 0
B188: =SUMIF(入库表!I:I,应付汇总!A188,入库表!H:H) -> 0 | C188: =SUMIF(付款录入!B:B,应付汇总!A188,付款录入!C:C) -> 0 | D188: 0
B189: =SUMIF(入库表!I:I,应付汇总!A189,入库表!H:H) -> 0 | C189: =SUMIF(付款录入!B:B,应付汇总!A189,付款录入!C:C) -> 0 | D189: 0
B190: =SUMIF(入库表!I:I,应付汇总!A190,入库表!H:H) -> 0 | C190: =SUMIF(付款录入!B:B,应付汇总!A190,付款录入!C:C) -> 0 | D190: 0
B191: =SUMIF(入库表!I:I,应付汇总!A191,入库表!H:H) -> 0 | C191: =SUMIF(付款录入!B:B,应付汇总!A191,付款录入!C:C) -> 0 | D191: 0
B192: =SUMIF(入库表!I:I,应付汇总!A192,入库表!H:H) -> 0 | C192: =SUMIF(付款录入!B:B,应付汇总!A192,付款录入!C:C) -> 0 | D192: 0
B193: =SUMIF(入库表!I:I,应付汇总!A193,入库表!H:H) -> 0 | C193: =SUMIF(付款录入!B:B,应付汇总!A193,付款录入!C:C) -> 0 | D193: 0
B194: =SUMIF(入库表!I:I,应付汇总!A194,入库表!H:H) -> 0 | C194: =SUMIF(付款录入!B:B,应付汇总!A194,付款录入!C:C) -> 0 | D194: 0
B195: =SUMIF(入库表!I:I,应付汇总!A195,入库表!H:H) -> 0 | C195: =SUMIF(付款录入!B:B,应付汇总!A195,付款录入!C:C) -> 0 | D195: 0
B196: =SUMIF(入库表!I:I,应付汇总!A196,入库表!H:H) -> 0 | C196: =SUMIF(付款录入!B:B,应付汇总!A196,付款录入!C:C) -> 0 | D196: =B196-C196 -> 0
B197: =SUMIF(入库表!I:I,应付汇总!A197,入库表!H:H) -> 0 | C197: =SUMIF(付款录入!B:B,应付汇总!A197,付款录入!C:C) -> 0 | D197: 0
B198: =SUMIF(入库表!I:I,应付汇总!A198,入库表!H:H) -> 0 | C198: =SUMIF(付款录入!B:B,应付汇总!A198,付款录入!C:C) -> 0 | D198: 0
B199: =SUMIF(入库表!I:I,应付汇总!A199,入库表!H:H) -> 0 | C199: =SUMIF(付款录入!B:B,应付汇总!A199,付款录入!C:C) -> 0 | D199: 0
B200: =SUMIF(入库表!I:I,应付汇总!A200,入库表!H:H) -> 0 | C200: =SUMIF(付款录入!B:B,应付汇总!A200,付款录入!C:C) -> 0 | D200: 0
... 245 more rows

Sheet 使用说明
B1: 使用说明
B2: 1.本表由VBA编码制作而成，用户使用本模板时需启动宏，工作表中带有公式的单元格不要去更改，本工作簿需要用户将基础信息录入进来，方便入库单和出库单的信息录入。 2.点击系统初始化即可清空系统数据。 3.入库单，出库单，退货单中供应商、客户的信息、日期都可以双击单元格弹出窗体，选中窗体信息双击即可完成录入，如果入库单和出库单的行数不够或者过多可以点击增加和减少行数按钮，单据的单号是时间格式自送变化（也可以手动更改），打印区域会自动设置直接点击按钮即可打印，录入之后点击保存按钮入库单和出库单的信息会自动保存到入库和出库报表中，欠款金额列是有公式自动计算的无需手动填写删改；退货单中的数量和金额会以负数的形式保存到出库表中，这样确保库存的实时数量。 4.库存表中只需用户录入产品编码(双击产品编码单元格可弹出窗体进行辅助输入)，其他的信息自动录入，所有产品的库存量实时自动更新。 5.库存查询工作表中需要用户进行选择入库、出库或者库存，选完后系统会根据用户填写的日期和商品编码进行查询（可以单独按时间或产品编码查询也可以综合查询）。 6.收款录入表和付款录入（双击供应商和客户单元格可弹出窗体辅助输入）表需手动录入，收付款明细查询中输入条件即可。 7.应收应付汇总表中只需填写客户名称和供应商（双击单元格可弹出窗体辅助输入），金额自动统计。 8.账户余额表中只需填写账户名称，需和收付款录入表中一致，只需填写账户名和期初余额，收入支出余额自动显示。 9.日收支统计表只需更改月份，其他的自动显示，公式已保护如需撤销-审阅-撤销保护。 10.WPS用户先启用宏，下载安装宏插件，宏插件下载地址：https://pan.baidu.com/s/1kVORBlt
